Workbook

Sheet Wksh 1 - Market Experience
A1: Press TAB and directional arrow keys to read through the document. If macros are disabled, press and hold the ALT key and press the F, then I, and then N key. After that, select the Enable All Content option by pressing enter. (note that you can also press the C key to select "Enable All Content") Instructions can be found in cells K1 through K4. If screen reader fails to announce a cell after performing a dropdown selection, please press F2 and then ESC to force the screen reader to resume. | B1: Unified Rate Review v6.0 [assistive technology users, please reference cell A1 for instructions] | K1: To add a product to Worksheet 2 - Plan Product Info, select the Add Product button or Ctrl + Shift + P.
K2: To add a plan to Worksheet 2 - Plan Product Info, select the Add Plan button or Ctrl + Shift + L.
B3: Company Legal Name: | C3: UnitedHealthcare of Kentucky, Ltd. | K3: To validate, select the Validate button or Ctrl + Shift + I.
B4: HIOS Issuer ID: | C4: 23671 | D4: State: | E4: KY | K4: To finalize, select the Finalize button or Ctrl + Shift + F.
B5: Effective Date of Rate Change(s): | C5: =MAX('Wksh 2 - Plan Product Info'!E19:FB19) -> 00:00:00 | D5: Market: | E5: Small Group
B8: Market Level Calculations (Same for all Plans)
B11: Section I: Experience Period Data
B12: Experience Period: | D12: 2022-01-01 | E12: to | F12: =EDATE(D12,12)-1 -> 12/31/2022
E13: Total | F13: PMPM
B14: Allowed Claims | E14: 30359099.41 | F14: =E14/E19 -> 648.1863
B15: Reinsurance | E15: 0 | F15: =E15/E19 -> 0
B16: Incurred Claims in Experience Period | E16: 23502777.57 | F16: =E16/E19 -> 501.7994
B17: Risk Adjustment | E17: -3045318.69 | F17: =E17/E19 -> -65.0195
B18: Experience Period Premium | E18: 31722069.66 | F18: =E18/E19 -> 677.2865
B19: Experience Period Member Months | E19: ='Wksh 2 - Plan Product Info'!D33 -> 46837
B21: Section II: Projections
D22: Year 1 Trend | F22: Year 2 Trend
B23: Benefit Category | C23: Experience Period Index Rate PMPM | D23: Cost | E23: Utilization | F23: Cost | G23: Utilization | H23: Trended EHB Allowed Claims PMPM
B24: Inpatient Hospital | C24: 87.93 | D24: 1.037 | E24: 1.037 | F24: 1.049 | G24: 1.047 | H24: =PRODUCT(C24:G24) -> 103.8525
B25: Outpatient Hospital | C25: 271.13 | D25: 1.037 | E25: 1.037 | F25: 1.049 | G25: 1.047 | H25: 320.2265
B26: Professional | C26: 116.05 | D26: 1.037 | E26: 1.037 | F26: 1.049 | G26: 1.047 | H26: 137.0644
B27: Other Medical | C27: 1.11 | D27: 1.037 | E27: 1.037 | F27: 1.049 | G27: 1.047 | H27: 1.311
B28: Capitation | C28: 15.03 | D28: 1.037 | E28: 1.037 | F28: 1.049 | G28: 1.047 | H28: 17.7516
B29: Prescription Drug | C29: 156.94 | D29: 1.037 | E29: 1.037 | F29: 1.049 | G29: 1.047 | H29: 185.3589
B30: Total | C30: =SUM(C24:C29) -> 648.19 | H30: =SUM(H24:H29) -> 765.5649
B32: Morbidity Adjustment | F32: 1.06
B33: Demographic Shift | F33: 1
B34: Plan Design Changes | F34: 1.007
B35: Other | F35: 0.956
B36: Adjusted Trended EHB Allowed Claims PMPM for | D36: =IF(C5<>"",C5,"") -> 1/1/2024 | F36: =H30*PRODUCT(F32:F35) -> 781.2234
B38: Manual EHB Allowed Claims PMPM | F38: 790.67
B39: Applied Credibility % | F39: 0
G41: Projected Period Totals
B42: Projected Index Rate for | D42: =IF(C5<>"",C5,"") -> 1/1/2024 | F42: =ROUND(F39*F36+(1-F39)*F38,2) -> 790.67 | G42: =F42*F48 -> 16503654.91
B43: Reinsurance | F43: 0 | G43: =F43*F48 -> 0
B44: Risk Adjustment Payment/Charge | F44: -106.8 | G44: =F44*F48 -> -2229236.4
B45: Exchange User Fees | F45: 0 | G45: =F45*F46*F48 -> 0
B46: Market Adjusted Index Rate | F46: =(F42-F43-F44)/(1-F45) -> 897.47 | G46: =F46*F48 -> 18732891.31
B48: Projected Member Months | F48: ='Wksh 2 - Plan Product Info'!D73 -> 20873
B50: Information Not Releasable to the Public Unless Authorized by Law: This information has not been publically disclosed and may be privileged and confidential. It is for internal government use only and must not be disseminated, distributed, or copied to persons not authorized to receive the information. Unauthorized disclosure may result in prosecution to the full extent of the law.

Sheet Wksh 2 - Plan Product Info
A1: Press TAB and directional arrow keys to read through the document. If macros are disabled, press and hold the ALT key and press the F, then I, and then N key. After that, select the Enable All Content option by pressing enter. (note that you can also press the C key to select "Enable All Content") Instructions can be found in cells P1 through P6. If screen reader fails to announce a cell after performing a dropdown selection, please press F2 and then ESC to force the screen reader to resume. | C1: Product-Plan Data Collection [assistive technology users, please reference cell A1 for instructions] | P1: To add a product to Worksheet 2 - Plan Product Info, select the Add Product button or Ctrl + Shift + P.
P2: To add a plan to Worksheet 2 - Plan Product Info, select the Add Plan button or Ctrl + Shift + L.
C3: Company Legal Name: | D3: =IF('Wksh 1 - Market Experience'!C3<>"", 'Wksh 1 - Market Experience'!C3,"") ->  | P3: To validate, select the Validate button or Ctrl + Shift + I.
C4: HIOS Issuer ID: | D4: =IF('Wksh 1 - Market Experience'!C4<>"", 'Wksh 1 - Market Experience'!C4,"") ->  | E4: State: | F4: =IF('Wksh 1 - Market Experience'!E4<>"",'Wksh 1 - Market Experience'!E4,"") ->  | P4: To finalize, select the Finalize button or Ctrl + Shift + F.
C5: Effective Date of Rate Change(s): | D5: =IF('Wksh 1 - Market Experience'!C5<>"", 'Wksh 1 - Market Experience'!C5,"") -> 00:00:00 | E5: Market: | F5: =IF('Wksh 1 - Market Experience'!E5<>"",'Wksh 1 - Market Experience'!E5,"") ->  | P5: To remove a product, navigate to the corresponding Product Name/Product ID field and select the Remove Product button or Ctrl + Shift + Q.
P6: To remove a plan, navigate to the corresponding Plan Name/Plan ID field and select the Remove Plan button or Ctrl + Shift + A.
C7: Product/Plan Level Calculations
B9: Field # | C9: Section I: General Product and Plan Information
B10: 1.1 | C10: Product Name | E10: 23671KY001 Plans | F10: 23671KY002 Plans | AD10: 23671KY006 Plans | AJ10: 23671KY007 Plans | CS10: 23671KY008 Plans | FA10: 23671KY009 Plans
B11: 1.2 | C11: Product ID | E11: 23671KY001 | F11: 23671KY002 | AD11: 23671KY006 | AJ11: 23671KY007 | CS11: 23671KY008 | FA11: 23671KY009
B12: 1.3 | C12: Plan Name | E12: CC-CW | F12: CC-B4 | G12: BO-6C | H12: CC-B3 | I12: CC-B2 | J12: CC-BI | K12: BO-6F | L12: CC-B8 | M12: CC-BU | N12: CC-BV | O12: CC-BJ | P12: CC-BW | Q12: CC-CB | R12: CC-CT | S12: BO-63 | T12: BO-64 | U12: CC-CX | V12: BO-66 | W12: CC-CH | X12: CC-CJ | Y12: CC-CK | Z12: CC-C2 | AA12: CC-C3 | AB12: CC-C4 | AC12: CC-CI | AD12: BG-ZL | AE12: BG-ZM | AF12: CC-CS | AG12: CC-CV | AH12: BO-7D | AI12: BO-7F | AJ12: DDSX | AK12: DDSE | AL12: DDSI | AM12: CT8S | AN12: DDSF | AO12: DDSG | AP12: DDSH | AQ12: DDSJ | AR12: DDSK | AS12: DDSL | AT12: CT8C | AU12: CT8N | AV12: DDT5 | AW12: CT8P | AX12: CT8Q | AY12: CT8R | AZ12: CT8T | BA12: CT8U | BB12: CT8V | BC12: CP-2F | BD12: CC-B5 | BE12: CM-SA | BF12: CC-CM | BG12: CC-B7 | BH12: CM-SW | BI12: CC-DA | BJ12: CC-DB | BK12: CM-SX | BL12: CC-CA | BM12: CC-BY | BN12: CC-BZ | BO12: CM-R6 | BP12: CM-R7 | BQ12: CM-R8 | BR12: CM-R9 | BS12: CM-SC | BT12: CM-SD | BU12: CM-SE | BV12: CM-S2 | BW12: CM-S3 | BX12: CM-S4 | BY12: CM-S5 | BZ12: CM-S6 | CA12: CM-S7 | CB12: CM-S8 | CC12: CM-S9 | CD12: CM-TA | CE12: CM-TB | CF12: CM-TC | CG12: CM-SG | CH12: CM-SH | CI12: CM-SI | CJ12: CM-SJ | CK12: CM-ST | CL12: CM-TF | CM12: CM-TG | CN12: CM-TK | CO12: CM-TL | CP12: CM-TM | CQ12: CM-TN | CR12: CM-TO | CS12: DDSY | CT12: DDSZ | CU12: DDST | CV12: CT9F | CW12: CT86 | CX12: CT7Z | CY12: CT72 | CZ12: CT73 | DA12: CT74 | DB12: DDSM | DC12: DDSN | DD12: DDSO | DE12: DDSP | DF12: CT8D | DG12: CT8W | DH12: DDT6 | DI12: CT8Y | DJ12: CT8Z | DK12: CT82 | DL12: CT83 | DM12: CT84 | DN12: CT85 | DO12: CT8E | DP12: CT8F | DQ12: CT8G | DR12: CT8H | DS12: DDSU | DT12: DDSV | DU12: DDSW | DV12: CT8M | DW12: CT87 | DX12: DDT7 | DY12: CT89 | DZ12: CT9A | EA12: CT9B | EB12: CT9C | EC12: CT9D | ED12: CT9E | EE12: CC-BK | EF12: CC-B9 | EG12: CC-CF | EH12: CC-CG | EI12: CM-SU | EJ12: CC-C6 | EK12: CC-C7 | EL12: CM-SV | EM12: CM-SF | EN12: CC-DJ | EO12: CM-SK | EP12: CM-SL | EQ12: CM-SM | ER12: CM-SN | ES12: CM-SQ | ET12: CM-SR | EU12: CM-SS | EV12: CM-TD | EW12: CM-TE | EX12: CM-TH | EY12: CM-TI | EZ12: CM-TJ | FA12: CC-CO | FB12: CC-CP
B13: 1.4 | C13: Plan ID (Standard Component ID) | E13: 23671KY0010027 | F13: 23671KY0020025 | G13: 23671KY0020026 | H13: 23671KY0020031 | I13: 23671KY0020045 | J13: 23671KY0020047 | K13: 23671KY0020048 | L13: 23671KY0020056 | M13: 23671KY0020058 | N13: 23671KY0020061 | O13: 23671KY0020062 | P13: 23671KY0020067 | Q13: 23671KY0020074 | R13: 23671KY0020075 | S13: 23671KY0020076 | T13: 23671KY0020077 | U13: 23671KY0020078 | V13: 23671KY0020079 | W13: 23671KY0020080 | X13: 23671KY0020081 | Y13: 23671KY0020082 | Z13: 23671KY0020085 | AA13: 23671KY0020086 | AB13: 23671KY0020087 | AC13: 23671KY0020088 | AD13: 23671KY0060004 | AE13: 23671KY0060005 | AF13: 23671KY0060006 | AG13: 23671KY0060009 | AH13: 23671KY0060016 | AI13: 23671KY0060018 | AJ13: 23671KY0070061 | AK13: 23671KY0070003 | AL13: 23671KY0070012 | AM13: 23671KY0070037 | AN13: 23671KY0070046 | AO13: 23671KY0070047 | AP13: 23671KY0070048 | AQ13: 23671KY0070049 | AR13: 23671KY0070050 | AS13: 23671KY0070051 | AT13: 23671KY0070052 | AU13: 23671KY0070053 | AV13: 23671KY0070054 | AW13: 23671KY0070055 | AX13: 23671KY0070056 | AY13: 23671KY0070057 | AZ13: 23671KY0070058 | BA13: 23671KY0070059 | BB13: 23671KY0070060 | BC13: 23671KY0070001 | BD13: 23671KY0070002 | BE13: 23671KY0070004 | BF13: 23671KY0070005 | BG13: 23671KY0070006 | BH13: 23671KY0070007 | BI13: 23671KY0070008 | BJ13: 23671KY0070009 | BK13: 23671KY0070010 | BL13: 23671KY0070011 | BM13: 23671KY0070013 | BN13: 23671KY0070014 | BO13: 23671KY0070015 | BP13: 23671KY0070016 | BQ13: 23671KY0070017 | BR13: 23671KY0070018 | BS13: 23671KY0070019 | BT13: 23671KY0070020 | BU13: 23671KY0070021 | BV13: 23671KY0070022 | BW13: 23671KY0070023 | BX13: 23671KY0070024 | BY13: 23671KY0070025 | BZ13: 23671KY0070026 | CA13: 23671KY0070027 | CB13: 23671KY0070028 | CC13: 23671KY0070029 | CD13: 23671KY0070030 | CE13: 23671KY0070031 | CF13: 23671KY0070032 | CG13: 23671KY0070033 | CH13: 23671KY0070034 | CI13: 23671KY0070035 | CJ13: 23671KY0070036 | CK13: 23671KY0070038 | CL13: 23671KY0070039 | CM13: 23671KY0070040 | CN13: 23671KY0070041 | CO13: 23671KY0070042 | CP13: 23671KY0070043 | CQ13: 23671KY0070044 | CR13: 23671KY0070045 | CS13: 23671KY0080067 | CT13: 23671KY0080068 | CU13: 23671KY0080009 | CV13: 23671KY0080010 | CW13: 23671KY0080025 | CX13: 23671KY0080034 | CY13: 23671KY0080035 | CZ13: 23671KY0080036 | DA13: 23671KY0080037 | DB13: 23671KY0080038 | DC13: 23671KY0080039 | DD13: 23671KY0080040 | DE13: 23671KY0080041 | DF13: 23671KY0080042 | DG13: 23671KY0080043 | DH13: 23671KY0080044 | DI13: 23671KY0080045 | DJ13: 23671KY0080046 | DK13: 23671KY0080047 | DL13: 23671KY0080048 | DM13: 23671KY0080049 | DN13: 23671KY0080050 | DO13: 23671KY0080051 | DP13: 23671KY0080052 | DQ13: 23671KY0080053 | DR13: 23671KY0080054 | DS13: 23671KY0080055 | DT13: 23671KY0080056 | DU13: 23671KY0080057 | DV13: 23671KY0080058 | DW13: 23671KY0080059 | DX13: 23671KY0080060 | DY13: 23671KY0080061 | DZ13: 23671KY0080062 | EA13: 23671KY0080063 | EB13: 23671KY0080064 | EC13: 23671KY0080065 | ED13: 23671KY0080066 | EE13: 23671KY0080001 | EF13: 23671KY0080002 | EG13: 23671KY0080003 | EH13: 23671KY0080004 | EI13: 23671KY0080005 | EJ13: 23671KY0080006 | EK13: 23671KY0080007 | EL13: 23671KY0080008 | EM13: 23671KY0080011 | EN13: 23671KY0080017 | EO13: 23671KY0080021 | EP13: 23671KY0080022 | EQ13: 23671KY0080023 | ER13: 23671KY0080024 | ES13: 23671KY0080026 | ET13: 23671KY0080027 | EU13: 23671KY0080028 | EV13: 23671KY0080029 | EW13: 23671KY0080030 | EX13: 23671KY0080031 | EY13: 23671KY0080032 | EZ13: 23671KY0080033 | FA13: 23671KY0090001 | FB13: 23671KY0090002
B14: 1.5 | C14: Metal | E14: Gold | F14: Gold | G14: Gold | H14: Silver | I14: Silver | J14: Silver | K14: Silver | L14: Silver | M14: Gold | N14: Gold | O14: Gold | P14: Silver | Q14: Bronze | R14: Gold | S14: Gold | T14: Gold | U14: Silver | V14: Silver | W14: Platinum | X14: Gold | Y14: Gold | Z14: Gold | AA14: Gold | AB14: Gold | AC14: Platinum | AD14: Gold | AE14: Gold | AF14: Silver | AG14: Gold | AH14: Gold | AI14: Silver | AJ14: Gold | AK14: Gold | AL14: Silver | AM14: Gold | AN14: Gold | AO14: Gold | AP14: Gold | AQ14: Silver | AR14: Bronze | AS14: Gold | AT14: Gold | AU14: Platinum | AV14: Platinum | AW14: Gold | AX14: Gold | AY14: Gold | AZ14: Gold | BA14: Gold | BB14: Silver | BC14: Silver | BD14: Silver | BE14: Bronze | BF14: Silver | BG14: Gold | BH14: Silver | BI14: Silver | BJ14: Silver | BK14: Silver | BL14: Silver | BM14: Silver | BN14: Silver | BO14: Gold | BP14: Gold | BQ14: Silver | BR14: Silver | BS14: Bronze | BT14: Silver | BU14: Gold | BV14: Platinum | BW14: Platinum | BX14: Gold | BY14: Gold | BZ14: Silver | CA14: Silver | CB14: Silver | CC14: Gold | CD14: Gold | CE14: Gold | CF14: Silver | CG14: Platinum | CH14: Gold | CI14: Gold | CJ14: Gold | CK14: Silver | CL14: Gold | CM14: Gold | CN14: Gold | CO14: Gold | CP14: Gold | CQ14: Silver | CR14: Silver | CS14: Gold | CT14: Gold | CU14: Silver | CV14: Silver | CW14: Silver | CX14: Gold | CY14: Gold | CZ14: Gold | DA14: Gold | DB14: Silver | DC14: Silver | DD14: Bronze | DE14: Gold | DF14: Gold | DG14: Platinum | DH14: Platinum | DI14: Gold | DJ14: Gold | DK14: Gold | DL14: Gold | DM14: Gold | DN14: Gold | DO14: Gold | DP14: Gold | DQ14: Gold | DR14: Gold | DS14: Silver | DT14: Bronze | DU14: Gold | DV14: Gold | DW14: Platinum | DX14: Platinum | DY14: Gold | DZ14: Gold | EA14: Gold | EB14: Gold | EC14: Gold | ED14: Gold | EE14: Silver | EF14: Silver | EG14: Gold | EH14: Silver | EI14: Silver | EJ14: Silver | EK14: Silver | EL14: Silver | EM14: Silver | EN14: Silver | EO14: Platinum | EP14: Gold | EQ14: Gold | ER14: Gold | ES14: Silver | ET14: Gold | EU14: Gold | EV14: Gold | EW14: Gold | EX14: Gold | EY14: Gold | EZ14: Silver | FA14: Silver | FB14: Silver
B15: 1.6 | C15: AV Metal Value | E15: 0.816 | F15: 0.815 | G15: 0.813 | H15: 0.719 | I15: 0.72 | J15: 0.718 | K15: 0.718 | L15: 0.719 | M15: 0.798 | N15: 0.814 | O15: 0.798 | P15: 0.698 | Q15: 0.649 | R15: 0.819 | S15: 0.804 | T15: 0.79 | U15: 0.72 | V15: 0.714 | W15: 0.88 | X15: 0.785 | Y15: 0.78 | Z15: 0.78 | AA15: 0.783 | AB15: 0.792 | AC15: 0.88 | AD15: 0.804 | AE15: 0.79 | AF15: 0.719 | AG15: 0.806 | AH15: 0.78 | AI15: 0.71 | AJ15: 0.818 | AK15: 0.807 | AL15: 0.72 | AM15: 0.808 | AN15: 0.797 | AO15: 0.793 | AP15: 0.793 | AQ15: 0.716 | AR15: 0.649 | AS15: 0.816 | AT15: 0.79 | AU15: 0.903 | AV15: 0.881 | AW15: 0.809 | AX15: 0.795 | AY15: 0.815 | AZ15: 0.796 | BA15: 0.787 | BB15: 0.718 | BC15: 0.718 | BD15: 0.717 | BE15: 0.65 | BF15: 0.713 | BG15: 0.815 | BH15: 0.705 | BI15: 0.693 | BJ15: 0.68 | BK15: 0.68 | BL15: 0.719 | BM15: 0.719 | BN15: 0.72 | BO15: 0.808 | BP15: 0.788 | BQ15: 0.715 | BR15: 0.704 | BS15: 0.65 | BT15: 0.719 | BU15: 0.818 | BV15: 0.88 | BW15: 0.88 | BX15: 0.787 | BY15: 0.781 | BZ15: 0.718 | CA15: 0.719 | CB15: 0.72 | CC15: 0.801 | CD15: 0.802 | CE15: 0.814 | CF15: 0.698 | CG15: 0.88 | CH15: 0.818 | CI15: 0.781 | CJ15: 0.78 | CK15: 0.719 | CL15: 0.806 | CM15: 0.791 | CN15: 0.78 | CO15: 0.784 | CP15: 0.795 | CQ15: 0.705 | CR15: 0.715 | CS15: 0.818 | CT15: 0.818 | CU15: 0.72 | CV15: 0.718 | CW15: 0.718 | CX15: 0.807 | CY15: 0.797 | CZ15: 0.793 | DA15: 0.793 | DB15: 0.72 | DC15: 0.716 | DD15: 0.649 | DE15: 0.816 | DF15: 0.79 | DG15: 0.903 | DH15: 0.881 | DI15: 0.809 | DJ15: 0.795 | DK15: 0.815 | DL15: 0.808 | DM15: 0.796 | DN15: 0.787 | DO15: 0.807 | DP15: 0.797 | DQ15: 0.793 | DR15: 0.793 | DS15: 0.716 | DT15: 0.649 | DU15: 0.816 | DV15: 0.79 | DW15: 0.903 | DX15: 0.881 | DY15: 0.809 | DZ15: 0.795 | EA15: 0.815 | EB15: 0.808 | EC15: 0.796 | ED15: 0.787 | EE15: 0.712 | EF15: 0.713 | EG15: 0.796 | EH15: 0.712 | EI15: 0.705 | EJ15: 0.693 | EK15: 0.67 | EL15: 0.662 | EM15: 0.718 | EN15: 0.719 | EO15: 0.864 | EP15: 0.818 | EQ15: 0.781 | ER15: 0.768 | ES15: 0.717 | ET15: 0.806 | EU15: 0.82 | EV15: 0.806 | EW15: 0.791 | EX15: 0.813 | EY15: 0.776 | EZ15: 0.715 | FA15: 0.718 | FB15: 0.716
B16: 1.7 | C16: Plan Category | E16: Terminated | F16: Terminated | G16: Terminated | H16: Terminated | I16: Terminated | J16: Terminated | K16: Terminated | L16: Terminated | M16: Terminated | N16: Terminated | O16: Terminated | P16: Terminated | Q16: Terminated | R16: Terminated | S16: Terminated | T16: Terminated | U16: Terminated | V16: Terminated | W16: Terminated | X16: Terminated | Y16: Terminated | Z16: Terminated | AA16: Terminated | AB16: Terminated | AC16: Terminated | AD16: Terminated | AE16: Terminated | AF16: Terminated | AG16: Terminated | AH16: Terminated | AI16: Terminated | AJ16: New | AK16: Renewing | AL16: Renewing | AM16: Renewing | AN16: Renewing | AO16: Renewing | AP16: Renewing | AQ16: Renewing | AR16: Renewing | AS16: Renewing | AT16: Renewing | AU16: Renewing | AV16: Renewing | AW16: Renewing | AX16: Renewing | AY16: Renewing | AZ16: Renewing | BA16: Renewing | BB16: Renewing | BC16: Terminated | BD16: Terminated | BE16: Terminated | BF16: Terminated | BG16: Terminated | BH16: Terminated | BI16: Terminated | BJ16: Terminated | BK16: Terminated | BL16: Terminated | BM16: Terminated | BN16: Terminated | BO16: Terminated | BP16: Terminated | BQ16: Terminated | BR16: Terminated | BS16: Terminated | BT16: Terminated | BU16: Terminated | BV16: Terminated | BW16: Terminated | BX16: Terminated | BY16: Terminated | BZ16: Terminated | CA16: Terminated | CB16: Terminated | CC16: Terminated | CD16: Terminated | CE16: Terminated | CF16: Terminated | CG16: Terminated | CH16: Terminated | CI16: Terminated | CJ16: Terminated | CK16: Terminated | CL16: Terminated | CM16: Terminated | CN16: Terminated | CO16: Terminated | CP16: Terminated | CQ16: Terminated | CR16: Terminated | CS16: New | CT16: New | CU16: Renewing | CV16: Renewing | CW16: Renewing | CX16: Renewing | CY16: Renewing | CZ16: Renewing | DA16: Renewing | DB16: Renewing | DC16: Renewing | DD16: Renewing | DE16: Renewing | DF16: Renewing | DG16: Renewing | DH16: Renewing | DI16: Renewing | DJ16: Renewing | DK16: Renewing | DL16: Renewing | DM16: Renewing | DN16: Renewing | DO16: Renewing | DP16: Renewing | DQ16: Renewing | DR16: Renewing | DS16: Renewing | DT16: Renewing | DU16: Renewing | DV16: Renewing | DW16: Renewing | DX16: Renewing | DY16: Renewing | DZ16: Renewing | EA16: Renewing | EB16: Renewing | EC16: Renewing | ED16: Renewing | EE16: Terminated | EF16: Terminated | EG16: Terminated | EH16: Terminated | EI16: Terminated | EJ16: Terminated | EK16: Terminated | EL16: Terminated | EM16: Terminated | EN16: Terminated | EO16: Terminated | EP16: Terminated | EQ16: Terminated | ER16: Terminated | ES16: Terminated | ET16: Terminated | EU16: Terminated | EV16: Terminated | EW16: Terminated | EX16: Terminated | EY16: Terminated | EZ16: Terminated | FA16: Terminated | FB16: Terminated
B17: 1.8 | C17: Plan Type | E17: HMO | F17: POS | G17: POS | H17: POS | I17: POS | J17: POS | K17: POS | L17: POS | M17: POS | N17: POS | O17: POS | P17: POS | Q17: POS | R17: POS | S17: POS | T17: POS | U17: POS | V17: POS | W17: POS | X17: POS | Y17: POS | Z17: POS | AA17: POS | AB17: POS | AC17: POS | AD17: HMO | AE17: HMO | AF17: HMO | AG17: HMO | AH17: HMO | AI17: HMO | AJ17: POS | AK17: POS | AL17: POS | AM17: POS | AN17: POS | AO17: POS | AP17: POS | AQ17: POS | AR17: POS | AS17: POS | AT17: POS | AU17: POS | AV17: POS | AW17: POS | AX17: POS | AY17: POS | AZ17: POS | BA17: POS | BB17: POS | BC17: POS | BD17: POS | BE17: POS | BF17: POS | BG17: POS | BH17: POS | BI17: POS | BJ17: POS | BK17: POS | BL17: POS | BM17: POS | BN17: POS | BO17: POS | BP17: POS | BQ17: POS | BR17: POS | BS17: POS | BT17: POS | BU17: POS | BV17: POS | BW17: POS | BX17: POS | BY17: POS | BZ17: POS | CA17: POS | CB17: POS | CC17: POS | CD17: POS | CE17: POS | CF17: POS | CG17: POS | CH17: POS | CI17: POS | CJ17: POS | CK17: POS | CL17: POS | CM17: POS | CN17: POS | CO17: POS | CP17: POS | CQ17: POS | CR17: POS | CS17: HMO | CT17: HMO | CU17: HMO | CV17: HMO | CW17: HMO | CX17: HMO | CY17: HMO | CZ17: HMO | DA17: HMO | DB17: HMO | DC17: HMO | DD17: HMO | DE17: HMO | DF17: HMO | DG17: HMO | DH17: HMO | DI17: HMO | DJ17: HMO | DK17: HMO | DL17: HMO | DM17: HMO | DN17: HMO | DO17: HMO | DP17: HMO | DQ17: HMO | DR17: HMO | DS17: HMO | DT17: HMO | DU17: HMO | DV17: HMO | DW17: HMO | DX17: HMO | DY17: HMO | DZ17: HMO | EA17: HMO | EB17: HMO | EC17: HMO | ED17: HMO | EE17: HMO | EF17: HMO | EG17: HMO | EH17: HMO | EI17: HMO | EJ17: HMO | EK17: HMO | EL17: HMO | EM17: HMO | EN17: HMO | EO17: HMO | EP17: HMO | EQ17: HMO | ER17: HMO | ES17: HMO | ET17: HMO | EU17: HMO | EV17: HMO | EW17: HMO | EX17: HMO | EY17: HMO | EZ17: HMO | FA17: POS | FB17: POS
B18: 1.9 | C18: Exchange Plan? | E18: No | F18: No | G18: No | H18: No | I18: No | J18: No | K18: No | L18: No | M18: No | N18: No | O18: No | P18: No | Q18: No | R18: No | S18: No | T18: No | U18: No | V18: No | W18: No | X18: No | Y18: No | Z18: No | AA18: No | AB18: No | AC18: No | AD18: No | AE18: No | AF18: No | AG18: No | AH18: No | AI18: No | AJ18: No | AK18: No | AL18: No | AM18: No | AN18: No | AO18: No | AP18: No | AQ18: No | AR18: No | AS18: No | AT18: No | AU18: No | AV18: No | AW18: No | AX18: No | AY18: No | AZ18: No | BA18: No | BB18: No | BC18: No | BD18: No | BE18: No | BF18: No | BG18: No | BH18: No | BI18: No | BJ18: No | BK18: No | BL18: No | BM18: No | BN18: No | BO18: No | BP18: No | BQ18: No | BR18: No | BS18: No | BT18: No | BU18: No | BV18: No | BW18: No | BX18: No | BY18: No | BZ18: No | CA18: No | CB18: No | CC18: No | CD18: No | CE18: No | CF18: No | CG18: No | CH18: No | CI18: No | CJ18: No | CK18: No | CL18: No | CM18: No | CN18: No | CO18: No | CP18: No | CQ18: No | CR18: No | CS18: No | CT18: No | CU18: No | CV18: No | CW18: No | CX18: No | CY18: No | CZ18: No | DA18: No | DB18: No | DC18: No | DD18: No | DE18: No | DF18: No | DG18: No | DH18: No | DI18: No | DJ18: No | DK18: No | DL18: No | DM18: No | DN18: No | DO18: No | DP18: No | DQ18: No | DR18: No | DS18: No | DT18: No | DU18: No | DV18: No | DW18: No | DX18: No | DY18: No | DZ18: No | EA18: No | EB18: No | EC18: No | ED18: No | EE18: No | EF18: No | EG18: No | EH18: No | EI18: No | EJ18: No | EK18: No | EL18: No | EM18: No | EN18: No | EO18: No | EP18: No | EQ18: No | ER18: No | ES18: No | ET18: No | EU18: No | EV18: No | EW18: No | EX18: No | EY18: No | EZ18: No | FA18: No | FB18: No
B19: 1.10 | C19: Effective Date of Proposed Rates | E19: 2024-01-01 | F19: 2024-01-01 | G19: 2024-01-01 | H19: 2024-01-01 | I19: 2024-01-01 | J19: 2024-01-01 | K19: 2024-01-01 | L19: 2024-01-01 | M19: 2024-01-01 | N19: 2024-01-01 | O19: 2024-01-01 | P19: 2024-01-01 | Q19: 2024-01-01 | R19: 2024-01-01 | S19: 2024-01-01 | T19: 2024-01-01 | U19: 2024-01-01 | V19: 2024-01-01 | W19: 2024-01-01 | X19: 2024-01-01 | Y19: 2024-01-01 | Z19: 2024-01-01 | AA19: 2024-01-01 | AB19: 2024-01-01 | AC19: 2024-01-01 | AD19: 2024-01-01 | AE19: 2024-01-01 | AF19: 2024-01-01 | AG19: 2024-01-01 | AH19: 2024-01-01 | AI19: 2024-01-01 | AJ19: 2024-01-01 | AK19: 2024-01-01 | AL19: 2024-01-01 | AM19: 2024-01-01 | AN19: 2024-01-01 | AO19: 2024-01-01 | AP19: 2024-01-01 | AQ19: 2024-01-01 | AR19: 2024-01-01 | AS19: 2024-01-01 | AT19: 2024-01-01 | AU19: 2024-01-01 | AV19: 2024-01-01 | AW19: 2024-01-01 | AX19: 2024-01-01 | AY19: 2024-01-01 | AZ19: 2024-01-01 | BA19: 2024-01-01 | BB19: 2024-01-01 | BC19: 2024-01-01 | BD19: 2024-01-01 | BE19: 2024-01-01 | BF19: 2024-01-01 | BG19: 2024-01-01 | BH19: 2024-01-01 | BI19: 2024-01-01 | BJ19: 2024-01-01 | BK19: 2024-01-01 | BL19: 2024-01-01 | BM19: 2024-01-01 | BN19: 2024-01-01 | BO19: 2024-01-01 | BP19: 2024-01-01 | BQ19: 2024-01-01 | BR19: 2024-01-01 | BS19: 2024-01-01 | BT19: 2024-01-01 | BU19: 2024-01-01 | BV19: 2024-01-01 | BW19: 2024-01-01 | BX19: 2024-01-01 | BY19: 2024-01-01 | BZ19: 2024-01-01 | CA19: 2024-01-01 | CB19: 2024-01-01 | CC19: 2024-01-01 | CD19: 2024-01-01 | CE19: 2024-01-01 | CF19: 2024-01-01 | CG19: 2024-01-01 | CH19: 2024-01-01 | CI19: 2024-01-01 | CJ19: 2024-01-01 | CK19: 2024-01-01 | CL19: 2024-01-01 | CM19: 2024-01-01 | CN19: 2024-01-01 | CO19: 2024-01-01 | CP19: 2024-01-01 | CQ19: 2024-01-01 | CR19: 2024-01-01 | CS19: 2024-01-01 | CT19: 2024-01-01 | CU19: 2024-01-01 | CV19: 2024-01-01 | CW19: 2024-01-01 | CX19: 2024-01-01 | CY19: 2024-01-01 | CZ19: 2024-01-01 | DA19: 2024-01-01 | DB19: 2024-01-01 | DC19: 2024-01-01 | DD19: 2024-01-01 | DE19: 2024-01-01 | DF19: 2024-01-01 | DG19: 2024-01-01 | DH19: 2024-01-01 | DI19: 2024-01-01 | DJ19: 2024-01-01 | DK19: 2024-01-01 | DL19: 2024-01-01 | DM19: 2024-01-01 | DN19: 2024-01-01 | DO19: 2024-01-01 | DP19: 2024-01-01 | DQ19: 2024-01-01 | DR19: 2024-01-01 | DS19: 2024-01-01 | DT19: 2024-01-01 | DU19: 2024-01-01 | DV19: 2024-01-01 | DW19: 2024-01-01 | DX19: 2024-01-01 | DY19: 2024-01-01 | DZ19: 2024-01-01 | EA19: 2024-01-01 | EB19: 2024-01-01 | EC19: 2024-01-01 | ED19: 2024-01-01 | EE19: 2024-01-01 | EF19: 2024-01-01 | EG19: 2024-01-01 | EH19: 2024-01-01 | EI19: 2024-01-01 | EJ19: 2024-01-01 | EK19: 2024-01-01 | EL19: 2024-01-01 | EM19: 2024-01-01 | EN19: 2024-01-01 | EO19: 2024-01-01 | EP19: 2024-01-01 | EQ19: 2024-01-01 | ER19: 2024-01-01 | ES19: 2024-01-01 | ET19: 2024-01-01 | EU19: 2024-01-01 | EV19: 2024-01-01 | EW19: 2024-01-01 | EX19: 2024-01-01 | EY19: 2024-01-01 | EZ19: 2024-01-01 | FA19: 2024-01-01 | FB19: 2024-01-01
B20: 1.11 | C20: Cumulative Rate Change % (over 12 mos prior) | E20: 0 | F20: 0 | G20: 0 | H20: 0 | I20: 0 | J20: 0 | K20: 0 | L20: 0 | M20: 0 | N20: 0 | O20: 0 | P20: 0 | Q20: 0 | R20: 0 | S20: 0 | T20: 0 | U20: 0 | V20: 0 | W20: 0 | X20: 0 | Y20: 0 | Z20: 0 | AA20: 0 | AB20: 0 | AC20: 0 | AD20: 0 | AE20: 0 | AF20: 0 | AG20: 0 | AH20: 0 | AI20: 0 | AJ20: 0 | AK20: 0.1447 | AL20: 0.1483 | AM20: 0.1474 | AN20: 0.1455 | AO20: 0.1478 | AP20: 0.1512 | AQ20: 0.1819 | AR20: 0.1478 | AS20: 0.1661 | AT20: 0.148 | AU20: 0.1515 | AV20: 0.1525 | AW20: 0.1462 | AX20: 0.1466 | AY20: 0.1461 | AZ20: 0.1463 | BA20: 0.1476 | BB20: 0.1424 | BC20: 0 | BD20: 0 | BE20: 0 | BF20: 0 | BG20: 0 | BH20: 0 | BI20: 0 | BJ20: 0 | BK20: 0 | BL20: 0 | BM20: 0 | BN20: 0 | BO20: 0 | BP20: 0 | BQ20: 0 | BR20: 0 | BS20: 0 | BT20: 0 | BU20: 0 | BV20: 0 | BW20: 0 | BX20: 0 | BY20: 0 | BZ20: 0 | CA20: 0 | CB20: 0 | CC20: 0 | CD20: 0 | CE20: 0 | CF20: 0 | CG20: 0 | CH20: 0 | CI20: 0 | CJ20: 0 | CK20: 0 | CL20: 0 | CM20: 0 | CN20: 0 | CO20: 0 | CP20: 0 | CQ20: 0 | CR20: 0 | CS20: 0 | CT20: 0 | CU20: 0.1481 | CV20: 0.143 | CW20: 0.1475 | CX20: 0.1444 | CY20: 0.1449 | CZ20: 0.1472 | DA20: 0.1507 | DB20: 0.1476 | DC20: 0.1812 | DD20: 0.1469 | DE20: 0.1653 | DF20: 0.1474 | DG20: 0.1509 | DH20: 0.152 | DI20: 0.1456 | DJ20: 0.1462 | DK20: 0.1457 | DL20: 0.1468 | DM20: 0.1459 | DN20: 0.147 | DO20: 0.1449 | DP20: 0.1453 | DQ20: 0.1477 | DR20: 0.1509 | DS20: 0.1813 | DT20: 0.1475 | DU20: 0.1659 | DV20: 0.148 | DW20: 0.1514 | DX20: 0.1525 | DY20: 0.1459 | DZ20: 0.1465 | EA20: 0.146 | EB20: 0.1471 | EC20: 0.1464 | ED20: 0.1473 | EE20: 0 | EF20: 0 | EG20: 0 | EH20: 0 | EI20: 0 | EJ20: 0 | EK20: 0 | EL20: 0 | EM20: 0 | EN20: 0 | EO20: 0 | EP20: 0 | EQ20: 0 | ER20: 0 | ES20: 0 | ET20: 0 | EU20: 0 | EV20: 0 | EW20: 0 | EX20: 0 | EY20: 0 | EZ20: 0 | FA20: 0 | FB20: 0
B21: 1.12 | C21: Product Rate Increase % | E21: =IF(SUMPRODUCT((E16:E16="Renewing")*((E14:E14="Platinum")+(E14:E14="Gold")+(E14:E14="Silver")+(E14:E14="Bronze")+(E14:E14="Catastrophic")))=0, 0, ROUND(ROUND(SUMPRODUCT(1+E20:E20,E34:E34,E35:E35,--(E16:E16="Renewing")*((E14:E14="Platinum")+(E14:E14="Gold")+(E14:E14="Silver")+(E14:E14="Bronze")+(E14:E14="Catastrophic")))/SUMPRODUCT(E34:E34,E35:E35,--(E16:E16="Renewing")*((E14:E14="Platinum")+(E14:E14="Gold")+(E14:E14="Silver")+(E14:E14="Bronze")+(E14:E14="Catastrophic"))), 4)-1, 4)) -> 0 | F21: =IF(SUMPRODUCT((F16:AC16="Renewing")*((F14:AC14="Platinum")+(F14:AC14="Gold")+(F14:AC14="Silver")+(F14:AC14="Bronze")+(F14:AC14="Catastrophic")))=0, 0, ROUND(ROUND(SUMPRODUCT(1+F20:AC20,F34:AC34,F35:AC35,--(F16:AC16="Renewing")*((F14:AC14="Platinum")+(F14:AC14="Gold")+(F14:AC14="Silver")+(F14:AC14="Bronze")+(F14:AC14="Catastrophic")))/SUMPRODUCT(F34:AC34,F35:AC35,--(F16:AC16="Renewing")*((F14:AC14="Platinum")+(F14:AC14="Gold")+(F14:AC14="Silver")+(F14:AC14="Bronze")+(F14:AC14="Catastrophic"))), 4)-1, 4)) -> 0 | AD21: =IF(SUMPRODUCT((AD16:AI16="Renewing")*((AD14:AI14="Platinum")+(AD14:AI14="Gold")+(AD14:AI14="Silver")+(AD14:AI14="Bronze")+(AD14:AI14="Catastrophic")))=0, 0, ROUND(ROUND(SUMPRODUCT(1+AD20:AI20,AD34:AI34,AD35:AI35,--(AD16:AI16="Renewing")*((AD14:AI14="Platinum")+(AD14:AI14="Gold")+(AD14:AI14="Silver")+(AD14:AI14="Bronze")+(AD14:AI14="Catastrophic")))/SUMPRODUCT(AD34:AI34,AD35:AI35,--(AD16:AI16="Renewing")*((AD14:AI14="Platinum")+(AD14:AI14="Gold")+(AD14:AI14="Silver")+(AD14:AI14="Bronze")+(AD14:AI14="Catastrophic"))), 4)-1, 4)) -> 0 | AJ21: =IF(SUMPRODUCT((AJ16:CR16="Renewing")*((AJ14:CR14="Platinum")+(AJ14:CR14="Gold")+(AJ14:CR14="Silver")+(AJ14:CR14="Bronze")+(AJ14:CR14="Catastrophic")))=0, 0, ROUND(ROUND(SUMPRODUCT(1+AJ20:CR20,AJ34:CR34,AJ35:CR35,--(AJ16:CR16="Renewing")*((AJ14:CR14="Platinum")+(AJ14:CR14="Gold")+(AJ14:CR14="Silver")+(AJ14:CR14="Bronze")+(AJ14:CR14="Catastrophic")))/SUMPRODUCT(AJ34:CR34,AJ35:CR35,--(AJ16:CR16="Renewing")*((AJ14:CR14="Platinum")+(AJ14:CR14="Gold")+(AJ14:CR14="Silver")+(AJ14:CR14="Bronze")+(AJ14:CR14="Catastrophic"))), 4)-1, 4)) -> 0 | CS21: =IF(SUMPRODUCT((CS16:EZ16="Renewing")*((CS14:EZ14="Platinum")+(CS14:EZ14="Gold")+(CS14:EZ14="Silver")+(CS14:EZ14="Bronze")+(CS14:EZ14="Catastrophic")))=0, 0, ROUND(ROUND(SUMPRODUCT(1+CS20:EZ20,CS34:EZ34,CS35:EZ35,--(CS16:EZ16="Renewing")*((CS14:EZ14="Platinum")+(CS14:EZ14="Gold")+(CS14:EZ14="Silver")+(CS14:EZ14="Bronze")+(CS14:EZ14="Catastrophic")))/SUMPRODUCT(CS34:EZ34,CS35:EZ35,--(CS16:EZ16="Renewing")*((CS14:EZ14="Platinum")+(CS14:EZ14="Gold")+(CS14:EZ14="Silver")+(CS14:EZ14="Bronze")+(CS14:EZ14="Catastrophic"))), 4)-1, 4)) -> 0 | FA21: =IF(SUMPRODUCT((FA16:FB16="Renewing")*((FA14:FB14="Platinum")+(FA14:FB14="Gold")+(FA14:FB14="Silver")+(FA14:FB14="Bronze")+(FA14:FB14="Catastrophic")))=0, 0, ROUND(ROUND(SUMPRODUCT(1+FA20:FB20,FA34:FB34,FA35:FB35,--(FA16:FB16="Renewing")*((FA14:FB14="Platinum")+(FA14:FB14="Gold")+(FA14:FB14="Silver")+(FA14:FB14="Bronze")+(FA14:FB14="Catastrophic")))/SUMPRODUCT(FA34:FB34,FA35:FB35,--(FA16:FB16="Renewing")*((FA14:FB14="Platinum")+(FA14:FB14="Gold")+(FA14:FB14="Silver")+(FA14:FB14="Bronze")+(FA14:FB14="Catastrophic"))), 4)-1, 4)) -> 0
B22: 1.13 | C22: Submission Level Rate Increase % | E22: =IF(SUMPRODUCT((E16:FB16="Renewing")*((E14:FB14="Platinum")+(E14:FB14="Gold")+(E14:FB14="Silver")+(E14:FB14="Bronze")+(E14:FB14="Catastrophic")))=0, 0, ROUND(ROUND(SUMPRODUCT(1+E20:FB20,E34:FB34,E35:FB35,--(E16:FB16="Renewing")*((E14:FB14="Platinum")+(E14:FB14="Gold")+(E14:FB14="Silver")+(E14:FB14="Bronze")+(E14:FB14="Catastrophic")))/SUMPRODUCT(E34:FB34,E35:FB35,--(E16:FB16="Renewing")*((E14:FB14="Platinum")+(E14:FB14="Gold")+(E14:FB14="Silver")+(E14:FB14="Bronze")+(E14:FB14="Catastrophic"))), 4)-1, 4)) -> 0
A24: Worksheet 1 Totals | C24: Section II: Experience Period and Current Plan Level Information
B25: 2.1 | C25: Plan ID (Standard Component ID) | D25: Total | E25: =E13 -> 0 | F25: =F13 -> 0 | G25: =G13 -> 0 | H25: =H13 -> 0 | I25: =I13 -> 0 | J25: =J13 -> 0 | K25: =K13 -> 0 | L25: =L13 -> 0 | M25: =M13 -> 0 | N25: =N13 -> 0 | O25: =O13 -> 0 | P25: =P13 -> 0 | Q25: =Q13 -> 0 | R25: =R13 -> 0 | S25: =S13 -> 0 | T25: =T13 -> 0 | U25: =U13 -> 0 | V25: =V13 -> 0 | W25: =W13 -> 0 | X25: =X13 -> 0 | Y25: =Y13 -> 0 | Z25: =Z13 -> 0 | AA25: =AA13 -> 0 | AB25: =AB13 -> 0 | AC25: =AC13 -> 0 | AD25: =AD13 -> 0 | AE25: =AE13 -> 0 | AF25: =AF13 -> 0 | AG25: =AG13 -> 0 | AH25: =AH13 -> 0 | AI25: =AI13 -> 0 | AJ25: =AJ13 -> 0 | AK25: =AK13 -> 0 | AL25: =AL13 -> 0 | AM25: =AM13 -> 0 | AN25: =AN13 -> 0 | AO25: =AO13 -> 0 | AP25: =AP13 -> 0 | AQ25: =AQ13 -> 0 | AR25: =AR13 -> 0 | AS25: =AS13 -> 0 | AT25: =AT13 -> 0 | AU25: =AU13 -> 0 | AV25: =AV13 -> 0 | AW25: =AW13 -> 0 | AX25: =AX13 -> 0 | AY25: =AY13 -> 0 | AZ25: =AZ13 -> 0 | BA25: =BA13 -> 0 | BB25: =BB13 -> 0 | BC25: =BC13 -> 0 | BD25: =BD13 -> 0 | BE25: =BE13 -> 0 | BF25: =BF13 -> 0 | BG25: =BG13 -> 0 | BH25: =BH13 -> 0 | BI25: =BI13 -> 0 | BJ25: =BJ13 -> 0 | BK25: =BK13 -> 0 | BL25: =BL13 -> 0 | BM25: =BM13 -> 0 | BN25: =BN13 -> 0 | BO25: =BO13 -> 0 | BP25: =BP13 -> 0 | BQ25: =BQ13 -> 0 | BR25: =BR13 -> 0 | BS25: =BS13 -> 0 | BT25: =BT13 -> 0 | BU25: =BU13 -> 0 | BV25: =BV13 -> 0 | BW25: =BW13 -> 0 | BX25: =BX13 -> 0 | BY25: =BY13 -> 0 | BZ25: =BZ13 -> 0 | CA25: =CA13 -> 0 | CB25: =CB13 -> 0 | CC25: =CC13 -> 0 | CD25: =CD13 -> 0 | CE25: =CE13 -> 0 | CF25: =CF13 -> 0 | CG25: =CG13 -> 0 | CH25: =CH13 -> 0 | CI25: =CI13 -> 0 | CJ25: =CJ13 -> 0 | CK25: =CK13 -> 0 | CL25: =CL13 -> 0 | CM25: =CM13 -> 0 | CN25: =CN13 -> 0 | CO25: =CO13 -> 0 | CP25: =CP13 -> 0 | CQ25: =CQ13 -> 0 | CR25: =CR13 -> 0 | CS25: =CS13 -> 0 | CT25: =CT13 -> 0 | CU25: =CU13 -> 0 | CV25: =CV13 -> 0 | CW25: =CW13 -> 0 | CX25: =CX13 -> 0 | CY25: =CY13 -> 0 | CZ25: =CZ13 -> 0 | DA25: =DA13 -> 0 | DB25: =DB13 -> 0 | DC25: =DC13 -> 0 | DD25: =DD13 -> 0 | DE25: =DE13 -> 0 | DF25: =DF13 -> 0 | DG25: =DG13 -> 0 | DH25: =DH13 -> 0 | DI25: =DI13 -> 0 | DJ25: =DJ13 -> 0 | DK25: =DK13 -> 0 | DL25: =DL13 -> 0 | DM25: =DM13 -> 0 | DN25: =DN13 -> 0 | DO25: =DO13 -> 0 | DP25: =DP13 -> 0 | DQ25: =DQ13 -> 0 | DR25: =DR13 -> 0 | DS25: =DS13 -> 0 | DT25: =DT13 -> 0 | DU25: =DU13 -> 0 | DV25: =DV13 -> 0 | DW25: =DW13 -> 0 | DX25: =DX13 -> 0 | DY25: =DY13 -> 0 | DZ25: =DZ13 -> 0 | EA25: =EA13 -> 0 | EB25: =EB13 -> 0 | EC25: =EC13 -> 0 | ED25: =ED13 -> 0 | EE25: =EE13 -> 0 | EF25: =EF13 -> 0 | EG25: =EG13 -> 0 | EH25: =EH13 -> 0 | EI25: =EI13 -> 0 | EJ25: =EJ13 -> 0 | EK25: =EK13 -> 0 | EL25: =EL13 -> 0 | EM25: =EM13 -> 0 | EN25: =EN13 -> 0 | EO25: =EO13 -> 0 | EP25: =EP13 -> 0 | EQ25: =EQ13 -> 0 | ER25: =ER13 -> 0 | ES25: =ES13 -> 0 | ET25: =ET13 -> 0 | EU25: =EU13 -> 0 | EV25: =EV13 -> 0 | EW25: =EW13 -> 0 | EX25: =EX13 -> 0 | EY25: =EY13 -> 0 | EZ25: =EZ13 -> 0 | FA25: =FA13 -> 0 | FB25: =FB13 -> 0
A26: ='Wksh 1 - Market Experience'!E14 -> 0 | B26: 2.2 | C26: Allowed Claims | D26: =SUM(E26:XFD26) -> 30359099.41 | E26: =259419.61 -> 0 | F26: =557774.53 -> 0 | G26: =0 -> 0 | H26: =494268.51 -> 0 | I26: =508379.52 -> 0 | J26: =2290673.31 -> 0 | K26: =0 -> 0 | L26: =1100.67 -> 0 | M26: =998828.79 -> 0 | N26: =172376.85 -> 0 | O26: =407112.99 -> 0 | P26: =49524.86 -> 0 | Q26: =197528.35 -> 0 | R26: =23056.99 -> 0 | S26: =10836.01 -> 0 | T26: =494062.5 -> 0 | U26: =27063.42 -> 0 | V26: =0 -> 0 | W26: =18491.25 -> 0 | X26: =6090.55 -> 0 | Y26: =203867.61 -> 0 | Z26: =217.99 -> 0 | AA26: =4554.9 -> 0 | AB26: =14940.84 -> 0 | AC26: =309952.1 -> 0 | AD26: =8788.55 -> 0 | AE26: =13300.24 -> 0 | AF26: =4183.03 -> 0 | AG26: =55847.02 -> 0 | AH26: =45.03 -> 0 | AI26: =2503.92 -> 0 | AJ26: =0 -> 0 | AK26: =3826768.66 -> 0 | AL26: =3247.14 -> 0 | AM26: =74784.69 -> 0 | AN26: =0 -> 0 | AO26: =0 -> 0 | AP26: =0 -> 0 | AQ26: =0 -> 0 | AR26: =0 -> 0 | AS26: =0 -> 0 | AT26: =0 -> 0 | AU26: =0 -> 0 | AV26: =0 -> 0 | AW26: =0 -> 0 | AX26: =0 -> 0 | AY26: =0 -> 0 | AZ26: =0 -> 0 | BA26: =0 -> 0 | BB26: =0 -> 0 | BC26: =96733.51 -> 0 | BD26: =667860.25 -> 0 | BE26: =813154.35 -> 0 | BF26: =312533.18 -> 0 | BG26: =4386124.72 -> 0 | BH26: =126040.54 -> 0 | BI26: =57449.56 -> 0 | BJ26: =34988.59 -> 0 | BK26: =0 -> 0 | BL26: =60912.67 -> 0 | BM26: =29753.68 -> 0 | BN26: =183097.71 -> 0 | BO26: =0 -> 0 | BP26: =0 -> 0 | BQ26: =7357.55 -> 0 | BR26: =0 -> 0 | BS26: =262914.46 -> 0 | BT26: =739975.79 -> 0 | BU26: =389996.36 -> 0 | BV26: =540148.44 -> 0 | BW26: =206921.08 -> 0 | BX26: =121359.17 -> 0 | BY26: =545654.81 -> 0 | BZ26: =244978.25 -> 0 | CA26: =0 -> 0 | CB26: =2906434.04 -> 0 | CC26: =533117.4 -> 0 | CD26: =902295.99 -> 0 | CE26: =41440.94 -> 0 | CF26: =140197.14 -> 0 | CG26: =0 -> 0 | CH26: =0 -> 0 | CI26: =121498.4 -> 0 | CJ26: =0 -> 0 | CK26: =0 -> 0 | CL26: =330010.34 -> 0 | CM26: =136639.16 -> 0 | CN26: =4297.46 -> 0 | CO26: =23370.85 -> 0 | CP26: =133064.6 -> 0 | CQ26: =0 -> 0 | CR26: =404137.68 -> 0 | CS26: =0 -> 0 | CT26: =0 -> 0 | CU26: =192.98 -> 0 | CV26: =199887.6 -> 0 | CW26: =2163166.72 -> 0 | CX26: =0 -> 0 | CY26: =0 -> 0 | CZ26: =0 -> 0 | DA26: =0 -> 0 | DB26: =0 -> 0 | DC26: =0 -> 0 | DD26: =0 -> 0 | DE26: =0 -> 0 | DF26: =0 -> 0 | DG26: =0 -> 0 | DH26: =0 -> 0 | DI26: =0 -> 0 | DJ26: =0 -> 0 | DK26: =0 -> 0 | DL26: =0 -> 0 | DM26: =0 -> 0 | DN26: =0 -> 0 | DO26: =0 -> 0 | DP26: =0 -> 0 | DQ26: =0 -> 0 | DR26: =0 -> 0 | DS26: =0 -> 0 | DT26: =0 -> 0 | DU26: =0 -> 0 | DV26: =0 -> 0 | DW26: =0 -> 0 | DX26: =0 -> 0 | DY26: =0 -> 0 | DZ26: =0 -> 0 | EA26: =0 -> 0 | EB26: =0 -> 0 | EC26: =0 -> 0 | ED26: =0 -> 0 | EE26: =16030.71 -> 0 | EF26: =0 -> 0 | EG26: =730547.19 -> 0 | EH26: =691.65 -> 0 | EI26: =14547.31 -> 0 | EJ26: =223249.8 -> 0 | EK26: =124856.81 -> 0 | EL26: =0 -> 0 | EM26: =0 -> 0 | EN26: =349.04 -> 0 | EO26: =0 -> 0 | EP26: =0 -> 0 | EQ26: =57615.58 -> 0 | ER26: =0 -> 0 | ES26: =0 -> 0 | ET26: =0 -> 0 | EU26: =179584.03 -> 0 | EV26: =5116.22 -> 0 | EW26: =0 -> 0 | EX26: =24782.32 -> 0 | EY26: =150.1 -> 0 | EZ26: =11166.84 -> 0 | FA26: =41139.45 -> 0 | FB26: =21975.96 -> 0
A27: ='Wksh 1 - Market Experience'!E15 -> 0 | B27: 2.3 | C27: Reinsurance | D27: =SUM(E27:XFD27) -> 0 | E27: =0 -> 0 | F27: =0 -> 0 | G27: =0 -> 0 | H27: =0 -> 0 | I27: =0 -> 0 | J27: =0 -> 0 | K27: =0 -> 0 | L27: =0 -> 0 | M27: =0 -> 0 | N27: =0 -> 0 | O27: =0 -> 0 | P27: =0 -> 0 | Q27: =0 -> 0 | R27: =0 -> 0 | S27: =0 -> 0 | T27: =0 -> 0 | U27: =0 -> 0 | V27: =0 -> 0 | W27: =0 -> 0 | X27: =0 -> 0 | Y27: =0 -> 0 | Z27: =0 -> 0 | AA27: =0 -> 0 | AB27: =0 -> 0 | AC27: =0 -> 0 | AD27: =0 -> 0 | AE27: =0 -> 0 | AF27: =0 -> 0 | AG27: =0 -> 0 | AH27: =0 -> 0 | AI27: =0 -> 0 | AJ27: =0 -> 0 | AK27: =0 -> 0 | AL27: =0 -> 0 | AM27: =0 -> 0 | AN27: =0 -> 0 | AO27: =0 -> 0 | AP27: =0 -> 0 | AQ27: =0 -> 0 | AR27: =0 -> 0 | AS27: =0 -> 0 | AT27: =0 -> 0 | AU27: =0 -> 0 | AV27: =0 -> 0 | AW27: =0 -> 0 | AX27: =0 -> 0 | AY27: =0 -> 0 | AZ27: =0 -> 0 | BA27: =0 -> 0 | BB27: =0 -> 0 | BC27: =0 -> 0 | BD27: =0 -> 0 | BE27: =0 -> 0 | BF27: =0 -> 0 | BG27: =0 -> 0 | BH27: =0 -> 0 | BI27: =0 -> 0 | BJ27: =0 -> 0 | BK27: =0 -> 0 | BL27: =0 -> 0 | BM27: =0 -> 0 | BN27: =0 -> 0 | BO27: =0 -> 0 | BP27: =0 -> 0 | BQ27: =0 -> 0 | BR27: =0 -> 0 | BS27: =0 -> 0 | BT27: =0 -> 0 | BU27: =0 -> 0 | BV27: =0 -> 0 | BW27: =0 -> 0 | BX27: =0 -> 0 | BY27: =0 -> 0 | BZ27: =0 -> 0 | CA27: =0 -> 0 | CB27: =0 -> 0 | CC27: =0 -> 0 | CD27: =0 -> 0 | CE27: =0 -> 0 | CF27: =0 -> 0 | CG27: =0 -> 0 | CH27: =0 -> 0 | CI27: =0 -> 0 | CJ27: =0 -> 0 | CK27: =0 -> 0 | CL27: =0 -> 0 | CM27: =0 -> 0 | CN27: =0 -> 0 | CO27: =0 -> 0 | CP27: =0 -> 0 | CQ27: =0 -> 0 | CR27: =0 -> 0 | CS27: =0 -> 0 | CT27: =0 -> 0 | CU27: =0 -> 0 | CV27: =0 -> 0 | CW27: =0 -> 0 | CX27: =0 -> 0 | CY27: =0 -> 0 | CZ27: =0 -> 0 | DA27: =0 -> 0 | DB27: =0 -> 0 | DC27: =0 -> 0 | DD27: =0 -> 0 | DE27: =0 -> 0 | DF27: =0 -> 0 | DG27: =0 -> 0 | DH27: =0 -> 0 | DI27: =0 -> 0 | DJ27: =0 -> 0 | DK27: =0 -> 0 | DL27: =0 -> 0 | DM27: =0 -> 0 | DN27: =0 -> 0 | DO27: =0 -> 0 | DP27: =0 -> 0 | DQ27: =0 -> 0 | DR27: =0 -> 0 | DS27: =0 -> 0 | DT27: =0 -> 0 | DU27: =0 -> 0 | DV27: =0 -> 0 | DW27: =0 -> 0 | DX27: =0 -> 0 | DY27: =0 -> 0 | DZ27: =0 -> 0 | EA27: =0 -> 0 | EB27: =0 -> 0 | EC27: =0 -> 0 | ED27: =0 -> 0 | EE27: =0 -> 0 | EF27: =0 -> 0 | EG27: =0 -> 0 | EH27: =0 -> 0 | EI27: =0 -> 0 | EJ27: =0 -> 0 | EK27: =0 -> 0 | EL27: =0 -> 0 | EM27: =0 -> 0 | EN27: =0 -> 0 | EO27: =0 -> 0 | EP27: =0 -> 0 | EQ27: =0 -> 0 | ER27: =0 -> 0 | ES27: =0 -> 0 | ET27: =0 -> 0 | EU27: =0 -> 0 | EV27: =0 -> 0 | EW27: =0 -> 0 | EX27: =0 -> 0 | EY27: =0 -> 0 | EZ27: =0 -> 0 | FA27: =0 -> 0 | FB27: =0 -> 0
B28: 2.4 | C28: Member Cost Sharing | D28: =SUM(E28:XFD28) -> 6856321.84 | E28: =43017.14 -> 0 | F28: =135069.34 -> 0 | G28: =0 -> 0 | H28: =189544 -> 0 | I28: =146873.9 -> 0 | J28: =682321.25 -> 0 | K28: =0 -> 0 | L28: =318.31 -> 0 | M28: =252447.92 -> 0 | N28: =23719.33 -> 0 | O28: =116383.51 -> 0 | P28: =14953.33 -> 0 | Q28: =81163.7 -> 0 | R28: =6094.68 -> 0 | S28: =1949.73 -> 0 | T28: =80309.54 -> 0 | U28: =13052.68 -> 0 | V28: =0 -> 0 | W28: =1259.71 -> 0 | X28: =2819.55 -> 0 | Y28: =69732.65 -> 0 | Z28: =0 -> 0 | AA28: =2763.15 -> 0 | AB28: =1973.59 -> 0 | AC28: =26332.42 -> 0 | AD28: =4722.02 -> 0 | AE28: =3585.45 -> 0 | AF28: =2640.83 -> 0 | AG28: =14650.51 -> 0 | AH28: =0 -> 0 | AI28: =1562.44 -> 0 | AJ28: =0 -> 0 | AK28: =837324.57 -> 0 | AL28: =1036.99 -> 0 | AM28: =12435.61 -> 0 | AN28: =0 -> 0 | AO28: =0 -> 0 | AP28: =0 -> 0 | AQ28: =0 -> 0 | AR28: =0 -> 0 | AS28: =0 -> 0 | AT28: =0 -> 0 | AU28: =0 -> 0 | AV28: =0 -> 0 | AW28: =0 -> 0 | AX28: =0 -> 0 | AY28: =0 -> 0 | AZ28: =0 -> 0 | BA28: =0 -> 0 | BB28: =0 -> 0 | BC28: =39922.48 -> 0 | BD28: =175823.47 -> 0 | BE28: =165413.61 -> 0 | BF28: =73362.83 -> 0 | BG28: =731043.91 -> 0 | BH28: =46764.86 -> 0 | BI28: =15399.96 -> 0 | BJ28: =5454.58 -> 0 | BK28: =0 -> 0 | BL28: =21305.01 -> 0 | BM28: =14520.72 -> 0 | BN28: =31083.7 -> 0 | BO28: =0 -> 0 | BP28: =0 -> 0 | BQ28: =2706.16 -> 0 | BR28: =0 -> 0 | BS28: =104720.61 -> 0 | BT28: =231673.2 -> 0 | BU28: =87109.32 -> 0 | BV28: =96900.21 -> 0 | BW28: =33709.48 -> 0 | BX28: =33245.09 -> 0 | BY28: =83447.08 -> 0 | BZ28: =61343.87 -> 0 | CA28: =0 -> 0 | CB28: =571720.06 -> 0 | CC28: =60530.58 -> 0 | CD28: =114628.5 -> 0 | CE28: =18279.1 -> 0 | CF28: =24062.27 -> 0 | CG28: =0 -> 0 | CH28: =0 -> 0 | CI28: =17972.9 -> 0 | CJ28: =0 -> 0 | CK28: =0 -> 0 | CL28: =34884.85 -> 0 | CM28: =47674.64 -> 0 | CN28: =1887.36 -> 0 | CO28: =9324.32 -> 0 | CP28: =27871.25 -> 0 | CQ28: =0 -> 0 | CR28: =13986.83 -> 0 | CS28: =0 -> 0 | CT28: =0 -> 0 | CU28: =35.42 -> 0 | CV28: =52659.54 -> 0 | CW28: =666715.88 -> 0 | CX28: =0 -> 0 | CY28: =0 -> 0 | CZ28: =0 -> 0 | DA28: =0 -> 0 | DB28: =0 -> 0 | DC28: =0 -> 0 | DD28: =0 -> 0 | DE28: =0 -> 0 | DF28: =0 -> 0 | DG28: =0 -> 0 | DH28: =0 -> 0 | DI28: =0 -> 0 | DJ28: =0 -> 0 | DK28: =0 -> 0 | DL28: =0 -> 0 | DM28: =0 -> 0 | DN28: =0 -> 0 | DO28: =0 -> 0 | DP28: =0 -> 0 | DQ28: =0 -> 0 | DR28: =0 -> 0 | DS28: =0 -> 0 | DT28: =0 -> 0 | DU28: =0 -> 0 | DV28: =0 -> 0 | DW28: =0 -> 0 | DX28: =0 -> 0 | DY28: =0 -> 0 | DZ28: =0 -> 0 | EA28: =0 -> 0 | EB28: =0 -> 0 | EC28: =0 -> 0 | ED28: =0 -> 0 | EE28: =10254.07 -> 0 | EF28: =0 -> 0 | EG28: =198876.87 -> 0 | EH28: =192.25 -> 0 | EI28: =9075.68 -> 0 | EJ28: =35541.57 -> 0 | EK28: =29494.86 -> 0 | EL28: =0 -> 0 | EM28: =0 -> 0 | EN28: =128.1 -> 0 | EO28: =0 -> 0 | EP28: =0 -> 0 | EQ28: =5776.81 -> 0 | ER28: =0 -> 0 | ES28: =0 -> 0 | ET28: =0 -> 0 | EU28: =29608.06 -> 0 | EV28: =2798.17 -> 0 | EW28: =0 -> 0 | EX28: =9749.79 -> 0 | EY28: =0 -> 0 | EZ28: =5684.78 -> 0 | FA28: =17358.39 -> 0 | FB28: =14540.94 -> 0
B29: 2.5 | C29: Cost Sharing Reduction | D29: =SUM(E29:XFD29) -> 0 | E29: =0 -> 0 | F29: =0 -> 0 | G29: =0 -> 0 | H29: =0 -> 0 | I29: =0 -> 0 | J29: =0 -> 0 | K29: =0 -> 0 | L29: =0 -> 0 | M29: =0 -> 0 | N29: =0 -> 0 | O29: =0 -> 0 | P29: =0 -> 0 | Q29: =0 -> 0 | R29: =0 -> 0 | S29: =0 -> 0 | T29: =0 -> 0 | U29: =0 -> 0 | V29: =0 -> 0 | W29: =0 -> 0 | X29: =0 -> 0 | Y29: =0 -> 0 | Z29: =0 -> 0 | AA29: =0 -> 0 | AB29: =0 -> 0 | AC29: =0 -> 0 | AD29: =0 -> 0 | AE29: =0 -> 0 | AF29: =0 -> 0 | AG29: =0 -> 0 | AH29: =0 -> 0 | AI29: =0 -> 0 | AJ29: =0 -> 0 | AK29: =0 -> 0 | AL29: =0 -> 0 | AM29: =0 -> 0 | AN29: =0 -> 0 | AO29: =0 -> 0 | AP29: =0 -> 0 | AQ29: =0 -> 0 | AR29: =0 -> 0 | AS29: =0 -> 0 | AT29: =0 -> 0 | AU29: =0 -> 0 | AV29: =0 -> 0 | AW29: =0 -> 0 | AX29: =0 -> 0 | AY29: =0 -> 0 | AZ29: =0 -> 0 | BA29: =0 -> 0 | BB29: =0 -> 0 | BC29: =0 -> 0 | BD29: =0 -> 0 | BE29: =0 -> 0 | BF29: =0 -> 0 | BG29: =0 -> 0 | BH29: =0 -> 0 | BI29: =0 -> 0 | BJ29: =0 -> 0 | BK29: =0 -> 0 | BL29: =0 -> 0 | BM29: =0 -> 0 | BN29: =0 -> 0 | BO29: =0 -> 0 | BP29: =0 -> 0 | BQ29: =0 -> 0 | BR29: =0 -> 0 | BS29: =0 -> 0 | BT29: =0 -> 0 | BU29: =0 -> 0 | BV29: =0 -> 0 | BW29: =0 -> 0 | BX29: =0 -> 0 | BY29: =0 -> 0 | BZ29: =0 -> 0 | CA29: =0 -> 0 | CB29: =0 -> 0 | CC29: =0 -> 0 | CD29: =0 -> 0 | CE29: =0 -> 0 | CF29: =0 -> 0 | CG29: =0 -> 0 | CH29: =0 -> 0 | CI29: =0 -> 0 | CJ29: =0 -> 0 | CK29: =0 -> 0 | CL29: =0 -> 0 | CM29: =0 -> 0 | CN29: =0 -> 0 | CO29: =0 -> 0 | CP29: =0 -> 0 | CQ29: =0 -> 0 | CR29: =0 -> 0 | CS29: =0 -> 0 | CT29: =0 -> 0 | CU29: =0 -> 0 | CV29: =0 -> 0 | CW29: =0 -> 0 | CX29: =0 -> 0 | CY29: =0 -> 0 | CZ29: =0 -> 0 | DA29: =0 -> 0 | DB29: =0 -> 0 | DC29: =0 -> 0 | DD29: =0 -> 0 | DE29: =0 -> 0 | DF29: =0 -> 0 | DG29: =0 -> 0 | DH29: =0 -> 0 | DI29: =0 -> 0 | DJ29: =0 -> 0 | DK29: =0 -> 0 | DL29: =0 -> 0 | DM29: =0 -> 0 | DN29: =0 -> 0 | DO29: =0 -> 0 | DP29: =0 -> 0 | DQ29: =0 -> 0 | DR29: =0 -> 0 | DS29: =0 -> 0 | DT29: =0 -> 0 | DU29: =0 -> 0 | DV29: =0 -> 0 | DW29: =0 -> 0 | DX29: =0 -> 0 | DY29: =0 -> 0 | DZ29: =0 -> 0 | EA29: =0 -> 0 | EB29: =0 -> 0 | EC29: =0 -> 0 | ED29: =0 -> 0 | EE29: =0 -> 0 | EF29: =0 -> 0 | EG29: =0 -> 0 | EH29: =0 -> 0 | EI29: =0 -> 0 | EJ29: =0 -> 0 | EK29: =0 -> 0 | EL29: =0 -> 0 | EM29: =0 -> 0 | EN29: =0 -> 0 | EO29: =0 -> 0 | EP29: =0 -> 0 | EQ29: =0 -> 0 | ER29: =0 -> 0 | ES29: =0 -> 0 | ET29: =0 -> 0 | EU29: =0 -> 0 | EV29: =0 -> 0 | EW29: =0 -> 0 | EX29: =0 -> 0 | EY29: =0 -> 0 | EZ29: =0 -> 0 | FA29: =0 -> 0 | FB29: =0 -> 0
A30: ='Wksh 1 - Market Experience'!E16 -> 0 | B30: 2.6 | C30: Incurred Claims | D30: =D26-D27-D28-D29 -> 23502777.57 | E30: =E26-E27-E28-E29 -> 0 | F30: =F26-F27-F28-F29 -> 0 | G30: =G26-G27-G28-G29 -> 0 | H30: =H26-H27-H28-H29 -> 0 | I30: =I26-I27-I28-I29 -> 0 | J30: =J26-J27-J28-J29 -> 0 | K30: =K26-K27-K28-K29 -> 0 | L30: =L26-L27-L28-L29 -> 0 | M30: =M26-M27-M28-M29 -> 0 | N30: =N26-N27-N28-N29 -> 0 | O30: =O26-O27-O28-O29 -> 0 | P30: =P26-P27-P28-P29 -> 0 | Q30: =Q26-Q27-Q28-Q29 -> 0 | R30: =R26-R27-R28-R29 -> 0 | S30: =S26-S27-S28-S29 -> 0 | T30: =T26-T27-T28-T29 -> 0 | U30: =U26-U27-U28-U29 -> 0 | V30: =V26-V27-V28-V29 -> 0 | W30: =W26-W27-W28-W29 -> 0 | X30: =X26-X27-X28-X29 -> 0 | Y30: =Y26-Y27-Y28-Y29 -> 0 | Z30: =Z26-Z27-Z28-Z29 -> 0 | AA30: =AA26-AA27-AA28-AA29 -> 0 | AB30: =AB26-AB27-AB28-AB29 -> 0 | AC30: =AC26-AC27-AC28-AC29 -> 0 | AD30: =AD26-AD27-AD28-AD29 -> 0 | AE30: =AE26-AE27-AE28-AE29 -> 0 | AF30: =AF26-AF27-AF28-AF29 -> 0 | AG30: =AG26-AG27-AG28-AG29 -> 0 | AH30: =AH26-AH27-AH28-AH29 -> 0 | AI30: =AI26-AI27-AI28-AI29 -> 0 | AJ30: =AJ26-AJ27-AJ28-AJ29 -> 0 | AK30: =AK26-AK27-AK28-AK29 -> 0 | AL30: =AL26-AL27-AL28-AL29 -> 0 | AM30: =AM26-AM27-AM28-AM29 -> 0 | AN30: =AN26-AN27-AN28-AN29 -> 0 | AO30: =AO26-AO27-AO28-AO29 -> 0 | AP30: =AP26-AP27-AP28-AP29 -> 0 | AQ30: =AQ26-AQ27-AQ28-AQ29 -> 0 | AR30: =AR26-AR27-AR28-AR29 -> 0 | AS30: =AS26-AS27-AS28-AS29 -> 0 | AT30: =AT26-AT27-AT28-AT29 -> 0 | AU30: =AU26-AU27-AU28-AU29 -> 0 | AV30: =AV26-AV27-AV28-AV29 -> 0 | AW30: =AW26-AW27-AW28-AW29 -> 0 | AX30: =AX26-AX27-AX28-AX29 -> 0 | AY30: =AY26-AY27-AY28-AY29 -> 0 | AZ30: =AZ26-AZ27-AZ28-AZ29 -> 0 | BA30: =BA26-BA27-BA28-BA29 -> 0 | BB30: =BB26-BB27-BB28-BB29 -> 0 | BC30: =BC26-BC27-BC28-BC29 -> 0 | BD30: =BD26-BD27-BD28-BD29 -> 0 | BE30: =BE26-BE27-BE28-BE29 -> 0 | BF30: =BF26-BF27-BF28-BF29 -> 0 | BG30: =BG26-BG27-BG28-BG29 -> 0 | BH30: =BH26-BH27-BH28-BH29 -> 0 | BI30: =BI26-BI27-BI28-BI29 -> 0 | BJ30: =BJ26-BJ27-BJ28-BJ29 -> 0 | BK30: =BK26-BK27-BK28-BK29 -> 0 | BL30: =BL26-BL27-BL28-BL29 -> 0 | BM30: =BM26-BM27-BM28-BM29 -> 0 | BN30: =BN26-BN27-BN28-BN29 -> 0 | BO30: =BO26-BO27-BO28-BO29 -> 0 | BP30: =BP26-BP27-BP28-BP29 -> 0 | BQ30: =BQ26-BQ27-BQ28-BQ29 -> 0 | BR30: =BR26-BR27-BR28-BR29 -> 0 | BS30: =BS26-BS27-BS28-BS29 -> 0 | BT30: =BT26-BT27-BT28-BT29 -> 0 | BU30: =BU26-BU27-BU28-BU29 -> 0 | BV30: =BV26-BV27-BV28-BV29 -> 0 | BW30: =BW26-BW27-BW28-BW29 -> 0 | BX30: =BX26-BX27-BX28-BX29 -> 0 | BY30: =BY26-BY27-BY28-BY29 -> 0 | BZ30: =BZ26-BZ27-BZ28-BZ29 -> 0 | CA30: =CA26-CA27-CA28-CA29 -> 0 | CB30: =CB26-CB27-CB28-CB29 -> 0 | CC30: =CC26-CC27-CC28-CC29 -> 0 | CD30: =CD26-CD27-CD28-CD29 -> 0 | CE30: =CE26-CE27-CE28-CE29 -> 0 | CF30: =CF26-CF27-CF28-CF29 -> 0 | CG30: =CG26-CG27-CG28-CG29 -> 0 | CH30: =CH26-CH27-CH28-CH29 -> 0 | CI30: =CI26-CI27-CI28-CI29 -> 0 | CJ30: =CJ26-CJ27-CJ28-CJ29 -> 0 | CK30: =CK26-CK27-CK28-CK29 -> 0 | CL30: =CL26-CL27-CL28-CL29 -> 0 | CM30: =CM26-CM27-CM28-CM29 -> 0 | CN30: =CN26-CN27-CN28-CN29 -> 0 | CO30: =CO26-CO27-CO28-CO29 -> 0 | CP30: =CP26-CP27-CP28-CP29 -> 0 | CQ30: =CQ26-CQ27-CQ28-CQ29 -> 0 | CR30: =CR26-CR27-CR28-CR29 -> 0 | CS30: =CS26-CS27-CS28-CS29 -> 0 | CT30: =CT26-CT27-CT28-CT29 -> 0 | CU30: =CU26-CU27-CU28-CU29 -> 0 | CV30: =CV26-CV27-CV28-CV29 -> 0 | CW30: =CW26-CW27-CW28-CW29 -> 0 | CX30: =CX26-CX27-CX28-CX29 -> 0 | CY30: =CY26-CY27-CY28-CY29 -> 0 | CZ30: =CZ26-CZ27-CZ28-CZ29 -> 0 | DA30: =DA26-DA27-DA28-DA29 -> 0 | DB30: =DB26-DB27-DB28-DB29 -> 0 | DC30: =DC26-DC27-DC28-DC29 -> 0 | DD30: =DD26-DD27-DD28-DD29 -> 0 | DE30: =DE26-DE27-DE28-DE29 -> 0 | DF30: =DF26-DF27-DF28-DF29 -> 0 | DG30: =DG26-DG27-DG28-DG29 -> 0 | DH30: =DH26-DH27-DH28-DH29 -> 0 | DI30: =DI26-DI27-DI28-DI29 -> 0 | DJ30: =DJ26-DJ27-DJ28-DJ29 -> 0 | DK30: =DK26-DK27-DK28-DK29 -> 0 | DL30: =DL26-DL27-DL28-DL29 -> 0 | DM30: =DM26-DM27-DM28-DM29 -> 0 | DN30: =DN26-DN27-DN28-DN29 -> 0 | DO30: =DO26-DO27-DO28-DO29 -> 0 | DP30: =DP26-DP27-DP28-DP29 -> 0 | DQ30: =DQ26-DQ27-DQ28-DQ29 -> 0 | DR30: =DR26-DR27-DR28-DR29 -> 0 | DS30: =DS26-DS27-DS28-DS29 -> 0 | DT30: =DT26-DT27-DT28-DT29 -> 0 | DU30: =DU26-DU27-DU28-DU29 -> 0 | DV30: =DV26-DV27-DV28-DV29 -> 0 | DW30: =DW26-DW27-DW28-DW29 -> 0 | DX30: =DX26-DX27-DX28-DX29 -> 0 | DY30: =DY26-DY27-DY28-DY29 -> 0 | DZ30: =DZ26-DZ27-DZ28-DZ29 -> 0 | EA30: =EA26-EA27-EA28-EA29 -> 0 | EB30: =EB26-EB27-EB28-EB29 -> 0 | EC30: =EC26-EC27-EC28-EC29 -> 0 | ED30: =ED26-ED27-ED28-ED29 -> 0 | EE30: =EE26-EE27-EE28-EE29 -> 0 | EF30: =EF26-EF27-EF28-EF29 -> 0 | EG30: =EG26-EG27-EG28-EG29 -> 0 | EH30: =EH26-EH27-EH28-EH29 -> 0 | EI30: =EI26-EI27-EI28-EI29 -> 0 | EJ30: =EJ26-EJ27-EJ28-EJ29 -> 0 | EK30: =EK26-EK27-EK28-EK29 -> 0 | EL30: =EL26-EL27-EL28-EL29 -> 0 | EM30: =EM26-EM27-EM28-EM29 -> 0 | EN30: =EN26-EN27-EN28-EN29 -> 0 | EO30: =EO26-EO27-EO28-EO29 -> 0 | EP30: =EP26-EP27-EP28-EP29 -> 0 | EQ30: =EQ26-EQ27-EQ28-EQ29 -> 0 | ER30: =ER26-ER27-ER28-ER29 -> 0 | ES30: =ES26-ES27-ES28-ES29 -> 0 | ET30: =ET26-ET27-ET28-ET29 -> 0 | EU30: =EU26-EU27-EU28-EU29 -> 0 | EV30: =EV26-EV27-EV28-EV29 -> 0 | EW30: =EW26-EW27-EW28-EW29 -> 0 | EX30: =EX26-EX27-EX28-EX29 -> 0 | EY30: =EY26-EY27-EY28-EY29 -> 0 | EZ30: =EZ26-EZ27-EZ28-EZ29 -> 0 | FA30: =FA26-FA27-FA28-FA29 -> 0 | FB30: =FB26-FB27-FB28-FB29 -> 0
A31: ='Wksh 1 - Market Experience'!E17 -> 0 | B31: 2.7 | C31: Risk Adjustment Transfer Amount | D31: =SUM(E31:XFD31) -> -3045318.72 | E31: =-29554.9 -> 0 | F31: =-83048.1 -> 0 | G31: =0 -> 0 | H31: =-71974.95 -> 0 | I31: =-49549.27 -> 0 | J31: =-207428.83 -> 0 | K31: =0 -> 0 | L31: =-73.18 -> 0 | M31: =-105729.02 -> 0 | N31: =-22709.46 -> 0 | O31: =-51800.64 -> 0 | P31: =-2029.03 -> 0 | Q31: =-26933.74 -> 0 | R31: =-4626.18 -> 0 | S31: =-3261.4 -> 0 | T31: =-41164.72 -> 0 | U31: =-5975.04 -> 0 | V31: =0 -> 0 | W31: =-2018.87 -> 0 | X31: =-2387.42 -> 0 | Y31: =-30113.8 -> 0 | Z31: =-406.96 -> 0 | AA31: =-1769.8 -> 0 | AB31: =-1916.4 -> 0 | AC31: =-34561.1 -> 0 | AD31: =-2112.29 -> 0 | AE31: =-2775.55 -> 0 | AF31: =-1949.29 -> 0 | AG31: =-5829.36 -> 0 | AH31: =-137.44 -> 0 | AI31: =-683.88 -> 0 | AJ31: =0 -> 0 | AK31: =-457810 -> 0 | AL31: =-790.8 -> 0 | AM31: =-2407.88 -> 0 | AN31: =0 -> 0 | AO31: =0 -> 0 | AP31: =0 -> 0 | AQ31: =0 -> 0 | AR31: =0 -> 0 | AS31: =0 -> 0 | AT31: =0 -> 0 | AU31: =0 -> 0 | AV31: =0 -> 0 | AW31: =0 -> 0 | AX31: =0 -> 0 | AY31: =0 -> 0 | AZ31: =0 -> 0 | BA31: =0 -> 0 | BB31: =0 -> 0 | BC31: =-18159.59 -> 0 | BD31: =-72939.2 -> 0 | BE31: =-31195.34 -> 0 | BF31: =-37546.4 -> 0 | BG31: =-383227.47 -> 0 | BH31: =-33233.77 -> 0 | BI31: =-7374.94 -> 0 | BJ31: =-2639.8 -> 0 | BK31: =0 -> 0 | BL31: =-3154.86 -> 0 | BM31: =-3180.23 -> 0 | BN31: =-13566.76 -> 0 | BO31: =0 -> 0 | BP31: =0 -> 0 | BQ31: =-4105.6 -> 0 | BR31: =0 -> 0 | BS31: =-42452.77 -> 0 | BT31: =-102483.51 -> 0 | BU31: =-36599.33 -> 0 | BV31: =-85149.14 -> 0 | BW31: =-30278.63 -> 0 | BX31: =-14314.86 -> 0 | BY31: =-30286.5 -> 0 | BZ31: =-31746.89 -> 0 | CA31: =0 -> 0 | CB31: =-254063.38 -> 0 | CC31: =-42798.33 -> 0 | CD31: =-66962.2 -> 0 | CE31: =-9395.86 -> 0 | CF31: =-8370.96 -> 0 | CG31: =0 -> 0 | CH31: =0 -> 0 | CI31: =-9170.02 -> 0 | CJ31: =0 -> 0 | CK31: =0 -> 0 | CL31: =-18737.26 -> 0 | CM31: =-25869.9 -> 0 | CN31: =-4491.97 -> 0 | CO31: =-7482.15 -> 0 | CP31: =-27289.18 -> 0 | CQ31: =0 -> 0 | CR31: =-8261.71 -> 0 | CS31: =0 -> 0 | CT31: =0 -> 0 | CU31: =-165.62 -> 0 | CV31: =-28150.45 -> 0 | CW31: =-111213.5 -> 0 | CX31: =0 -> 0 | CY31: =0 -> 0 | CZ31: =0 -> 0 | DA31: =0 -> 0 | DB31: =0 -> 0 | DC31: =0 -> 0 | DD31: =0 -> 0 | DE31: =0 -> 0 | DF31: =0 -> 0 | DG31: =0 -> 0 | DH31: =0 -> 0 | DI31: =0 -> 0 | DJ31: =0 -> 0 | DK31: =0 -> 0 | DL31: =0 -> 0 | DM31: =0 -> 0 | DN31: =0 -> 0 | DO31: =0 -> 0 | DP31: =0 -> 0 | DQ31: =0 -> 0 | DR31: =0 -> 0 | DS31: =0 -> 0 | DT31: =0 -> 0 | DU31: =0 -> 0 | DV31: =0 -> 0 | DW31: =0 -> 0 | DX31: =0 -> 0 | DY31: =0 -> 0 | DZ31: =0 -> 0 | EA31: =0 -> 0 | EB31: =0 -> 0 | EC31: =0 -> 0 | ED31: =0 -> 0 | EE31: =-3494.59 -> 0 | EF31: =0 -> 0 | EG31: =-103910.76 -> 0 | EH31: =-758.31 -> 0 | EI31: =-6750.46 -> 0 | EJ31: =-13834.56 -> 0 | EK31: =-6933.16 -> 0 | EL31: =0 -> 0 | EM31: =0 -> 0 | EN31: =-177.92 -> 0 | EO31: =0 -> 0 | EP31: =0 -> 0 | EQ31: =-3321.72 -> 0 | ER31: =0 -> 0 | ES31: =0 -> 0 | ET31: =0 -> 0 | EU31: =-19677.49 -> 0 | EV31: =-3983.29 -> 0 | EW31: =0 -> 0 | EX31: =-5841.04 -> 0 | EY31: =-553.81 -> 0 | EZ31: =-2398.9 -> 0 | FA31: =-7927.2 -> 0 | FB31: =-6168.13 -> 0
A32: ='Wksh 1 - Market Experience'!E18 -> 0 | B32: 2.8 | C32: Premium | D32: =SUM(E32:XFD32) -> 31722069.66 | E32: =307863.58 -> 0 | F32: =865084.39 -> 0 | G32: =0 -> 0 | H32: =749739.07 -> 0 | I32: =516138.19 -> 0 | J32: =2160716.99 -> 0 | K32: =0 -> 0 | L32: =762.29 -> 0 | M32: =1101343.96 -> 0 | N32: =236556.85 -> 0 | O32: =539589.96 -> 0 | P32: =21135.7 -> 0 | Q32: =280559.8 -> 0 | R32: =48189.34 -> 0 | S32: =33972.89 -> 0 | T32: =428799.13 -> 0 | U32: =62239.96 -> 0 | V32: =0 -> 0 | W32: =21029.89 -> 0 | X32: =24868.95 -> 0 | Y32: =313685.38 -> 0 | Z32: =4239.16 -> 0 | AA32: =18435.4 -> 0 | AB32: =19962.45 -> 0 | AC32: =360011.48 -> 0 | AD32: =22003.03 -> 0 | AE32: =28911.98 -> 0 | AF32: =20305.06 -> 0 | AG32: =60722.53 -> 0 | AH32: =1431.71 -> 0 | AI32: =7123.78 -> 0 | AJ32: =0 -> 0 | AK32: =4768854.15 -> 0 | AL32: =8237.48 -> 0 | AM32: =25082.04 -> 0 | AN32: =0 -> 0 | AO32: =0 -> 0 | AP32: =0 -> 0 | AQ32: =0 -> 0 | AR32: =0 -> 0 | AS32: =0 -> 0 | AT32: =0 -> 0 | AU32: =0 -> 0 | AV32: =0 -> 0 | AW32: =0 -> 0 | AX32: =0 -> 0 | AY32: =0 -> 0 | AZ32: =0 -> 0 | BA32: =0 -> 0 | BB32: =0 -> 0 | BC32: =189162.37 -> 0 | BD32: =759783.37 -> 0 | BE32: =324951.43 -> 0 | BF32: =391108.35 -> 0 | BG32: =3991952.83 -> 0 | BH32: =346185.06 -> 0 | BI32: =76822.29 -> 0 | BJ32: =27497.89 -> 0 | BK32: =0 -> 0 | BL32: =32863.13 -> 0 | BM32: =33127.39 -> 0 | BN32: =141320.42 -> 0 | BO32: =0 -> 0 | BP32: =0 -> 0 | BQ32: =42766.64 -> 0 | BR32: =0 -> 0 | BS32: =442216.34 -> 0 | BT32: =1067536.61 -> 0 | BU32: =381242.98 -> 0 | BV32: =886970.23 -> 0 | BW32: =315402.44 -> 0 | BX32: =149113.08 -> 0 | BY32: =315484.42 -> 0 | BZ32: =330696.76 -> 0 | CA32: =0 -> 0 | CB32: =2646493.54 -> 0 | CC32: =445815.97 -> 0 | CD32: =697522.95 -> 0 | CE32: =97873.51 -> 0 | CF32: =87197.55 -> 0 | CG32: =0 -> 0 | CH32: =0 -> 0 | CI32: =95521.04 -> 0 | CJ32: =0 -> 0 | CK32: =0 -> 0 | CL32: =195179.74 -> 0 | CM32: =269478.12 -> 0 | CN32: =46791.39 -> 0 | CO32: =77939.03 -> 0 | CP32: =284262.27 -> 0 | CQ32: =0 -> 0 | CR32: =86059.43 -> 0 | CS32: =0 -> 0 | CT32: =0 -> 0 | CU32: =1725.24 -> 0 | CV32: =293233.81 -> 0 | CW32: =1158473.99 -> 0 | CX32: =0 -> 0 | CY32: =0 -> 0 | CZ32: =0 -> 0 | DA32: =0 -> 0 | DB32: =0 -> 0 | DC32: =0 -> 0 | DD32: =0 -> 0 | DE32: =0 -> 0 | DF32: =0 -> 0 | DG32: =0 -> 0 | DH32: =0 -> 0 | DI32: =0 -> 0 | DJ32: =0 -> 0 | DK32: =0 -> 0 | DL32: =0 -> 0 | DM32: =0 -> 0 | DN32: =0 -> 0 | DO32: =0 -> 0 | DP32: =0 -> 0 | DQ32: =0 -> 0 | DR32: =0 -> 0 | DS32: =0 -> 0 | DT32: =0 -> 0 | DU32: =0 -> 0 | DV32: =0 -> 0 | DW32: =0 -> 0 | DX32: =0 -> 0 | DY32: =0 -> 0 | DZ32: =0 -> 0 | EA32: =0 -> 0 | EB32: =0 -> 0 | EC32: =0 -> 0 | ED32: =0 -> 0 | EE32: =36401.93 -> 0 | EF32: =0 -> 0 | EG32: =1082403.76 -> 0 | EH32: =7899.1 -> 0 | EI32: =70317.24 -> 0 | EJ32: =144110 -> 0 | EK32: =72220.43 -> 0 | EL32: =0 -> 0 | EM32: =0 -> 0 | EN32: =1853.3 -> 0 | EO32: =0 -> 0 | EP32: =0 -> 0 | EQ32: =34601.3 -> 0 | ER32: =0 -> 0 | ES32: =0 -> 0 | ET32: =0 -> 0 | EU32: =204973.81 -> 0 | EV32: =41492.64 -> 0 | EW32: =0 -> 0 | EX32: =60844.2 -> 0 | EY32: =5768.9 -> 0 | EZ32: =24988.49 -> 0 | FA32: =82575 -> 0 | FB32: =64251.38 -> 0
A33: ='Wksh 1 - Market Experience'!E19 -> 0 | B33: 2.9 | C33: Experience Period Member Months | D33: =SUM(E33:XFD33) -> 46837 | E33: =396 -> 0 | F33: =1174 -> 0 | G33: =0 -> 0 | H33: =1283 -> 0 | I33: =794 -> 0 | J33: =3329 -> 0 | K33: =0 -> 0 | L33: =2 -> 0 | M33: =1641 -> 0 | N33: =285 -> 0 | O33: =810 -> 0 | P33: =57 -> 0 | Q33: =533 -> 0 | R33: =83 -> 0 | S33: =50 -> 0 | T33: =673 -> 0 | U33: =132 -> 0 | V33: =0 -> 0 | W33: =37 -> 0 | X33: =40 -> 0 | Y33: =430 -> 0 | Z33: =8 -> 0 | AA33: =32 -> 0 | AB33: =24 -> 0 | AC33: =348 -> 0 | AD33: =23 -> 0 | AE33: =65 -> 0 | AF33: =33 -> 0 | AG33: =90 -> 0 | AH33: =3 -> 0 | AI33: =16 -> 0 | AJ33: =0 -> 0 | AK33: =6676 -> 0 | AL33: =9 -> 0 | AM33: =36 -> 0 | AN33: =0 -> 0 | AO33: =0 -> 0 | AP33: =0 -> 0 | AQ33: =0 -> 0 | AR33: =0 -> 0 | AS33: =0 -> 0 | AT33: =0 -> 0 | AU33: =0 -> 0 | AV33: =0 -> 0 | AW33: =0 -> 0 | AX33: =0 -> 0 | AY33: =0 -> 0 | AZ33: =0 -> 0 | BA33: =0 -> 0 | BB33: =0 -> 0 | BC33: =264 -> 0 | BD33: =1078 -> 0 | BE33: =779 -> 0 | BF33: =616 -> 0 | BG33: =5442 -> 0 | BH33: =447 -> 0 | BI33: =113 -> 0 | BJ33: =34 -> 0 | BK33: =0 -> 0 | BL33: =69 -> 0 | BM33: =69 -> 0 | BN33: =192 -> 0 | BO33: =0 -> 0 | BP33: =0 -> 0 | BQ33: =68 -> 0 | BR33: =0 -> 0 | BS33: =760 -> 0 | BT33: =1618 -> 0 | BU33: =486 -> 0 | BV33: =983 -> 0 | BW33: =293 -> 0 | BX33: =200 -> 0 | BY33: =498 -> 0 | BZ33: =480 -> 0 | CA33: =0 -> 0 | CB33: =3851 -> 0 | CC33: =574 -> 0 | CD33: =967 -> 0 | CE33: =108 -> 0 | CF33: =160 -> 0 | CG33: =0 -> 0 | CH33: =0 -> 0 | CI33: =146 -> 0 | CJ33: =0 -> 0 | CK33: =0 -> 0 | CL33: =272 -> 0 | CM33: =413 -> 0 | CN33: =56 -> 0 | CO33: =121 -> 0 | CP33: =349 -> 0 | CQ33: =0 -> 0 | CR33: =104 -> 0 | CS33: =0 -> 0 | CT33: =0 -> 0 | CU33: =3 -> 0 | CV33: =432 -> 0 | CW33: =2925 -> 0 | CX33: =0 -> 0 | CY33: =0 -> 0 | CZ33: =0 -> 0 | DA33: =0 -> 0 | DB33: =0 -> 0 | DC33: =0 -> 0 | DD33: =0 -> 0 | DE33: =0 -> 0 | DF33: =0 -> 0 | DG33: =0 -> 0 | DH33: =0 -> 0 | DI33: =0 -> 0 | DJ33: =0 -> 0 | DK33: =0 -> 0 | DL33: =0 -> 0 | DM33: =0 -> 0 | DN33: =0 -> 0 | DO33: =0 -> 0 | DP33: =0 -> 0 | DQ33: =0 -> 0 | DR33: =0 -> 0 | DS33: =0 -> 0 | DT33: =0 -> 0 | DU33: =0 -> 0 | DV33: =0 -> 0 | DW33: =0 -> 0 | DX33: =0 -> 0 | DY33: =0 -> 0 | DZ33: =0 -> 0 | EA33: =0 -> 0 | EB33: =0 -> 0 | EC33: =0 -> 0 | ED33: =0 -> 0 | EE33: =65 -> 0 | EF33: =0 -> 0 | EG33: =1462 -> 0 | EH33: =15 -> 0 | EI33: =158 -> 0 | EJ33: =285 -> 0 | EK33: =118 -> 0 | EL33: =0 -> 0 | EM33: =0 -> 0 | EN33: =4 -> 0 | EO33: =0 -> 0 | EP33: =0 -> 0 | EQ33: =60 -> 0 | ER33: =0 -> 0 | ES33: =0 -> 0 | ET33: =0 -> 0 | EU33: =210 -> 0 | EV33: =45 -> 0 | EW33: =0 -> 0 | EX33: =73 -> 0 | EY33: =10 -> 0 | EZ33: =46 -> 0 | FA33: =87 -> 0 | FB33: =117 -> 0
B34: 2.10 | C34: Current Enrollment | D34: =SUM(E34:XFD34) -> 3340 | E34: =0 -> 0 | F34: =0 -> 0 | G34: =0 -> 0 | H34: =0 -> 0 | I34: =0 -> 0 | J34: =2 -> 0 | K34: =0 -> 0 | L34: =0 -> 0 | M34: =0 -> 0 | N34: =0 -> 0 | O34: =0 -> 0 | P34: =0 -> 0 | Q34: =0 -> 0 | R34: =0 -> 0 | S34: =0 -> 0 | T34: =8 -> 0 | U34: =0 -> 0 | V34: =0 -> 0 | W34: =0 -> 0 | X34: =0 -> 0 | Y34: =0 -> 0 | Z34: =0 -> 0 | AA34: =0 -> 0 | AB34: =0 -> 0 | AC34: =0 -> 0 | AD34: =0 -> 0 | AE34: =0 -> 0 | AF34: =0 -> 0 | AG34: =0 -> 0 | AH34: =0 -> 0 | AI34: =0 -> 0 | AJ34: =0 -> 0 | AK34: =448 -> 0 | AL34: =0 -> 0 | AM34: =4 -> 0 | AN34: =0 -> 0 | AO34: =0 -> 0 | AP34: =0 -> 0 | AQ34: =0 -> 0 | AR34: =0 -> 0 | AS34: =0 -> 0 | AT34: =0 -> 0 | AU34: =0 -> 0 | AV34: =0 -> 0 | AW34: =0 -> 0 | AX34: =0 -> 0 | AY34: =0 -> 0 | AZ34: =0 -> 0 | BA34: =0 -> 0 | BB34: =0 -> 0 | BC34: =0 -> 0 | BD34: =82 -> 0 | BE34: =62 -> 0 | BF34: =37 -> 0 | BG34: =427 -> 0 | BH34: =53 -> 0 | BI34: =20 -> 0 | BJ34: =4 -> 0 | BK34: =0 -> 0 | BL34: =5 -> 0 | BM34: =2 -> 0 | BN34: =20 -> 0 | BO34: =0 -> 0 | BP34: =0 -> 0 | BQ34: =6 -> 0 | BR34: =0 -> 0 | BS34: =86 -> 0 | BT34: =208 -> 0 | BU34: =74 -> 0 | BV34: =129 -> 0 | BW34: =57 -> 0 | BX34: =25 -> 0 | BY34: =49 -> 0 | BZ34: =93 -> 0 | CA34: =0 -> 0 | CB34: =471 -> 0 | CC34: =84 -> 0 | CD34: =134 -> 0 | CE34: =17 -> 0 | CF34: =18 -> 0 | CG34: =0 -> 0 | CH34: =0 -> 0 | CI34: =15 -> 0 | CJ34: =0 -> 0 | CK34: =0 -> 0 | CL34: =24 -> 0 | CM34: =37 -> 0 | CN34: =7 -> 0 | CO34: =13 -> 0 | CP34: =41 -> 0 | CQ34: =0 -> 0 | CR34: =16 -> 0 | CS34: =0 -> 0 | CT34: =0 -> 0 | CU34: =3 -> 0 | CV34: =45 -> 0 | CW34: =233 -> 0 | CX34: =0 -> 0 | CY34: =0 -> 0 | CZ34: =0 -> 0 | DA34: =0 -> 0 | DB34: =0 -> 0 | DC34: =0 -> 0 | DD34: =0 -> 0 | DE34: =0 -> 0 | DF34: =0 -> 0 | DG34: =0 -> 0 | DH34: =0 -> 0 | DI34: =0 -> 0 | DJ34: =0 -> 0 | DK34: =0 -> 0 | DL34: =0 -> 0 | DM34: =0 -> 0 | DN34: =0 -> 0 | DO34: =0 -> 0 | DP34: =0 -> 0 | DQ34: =0 -> 0 | DR34: =0 -> 0 | DS34: =0 -> 0 | DT34: =0 -> 0 | DU34: =0 -> 0 | DV34: =0 -> 0 | DW34: =0 -> 0 | DX34: =0 -> 0 | DY34: =0 -> 0 | DZ34: =0 -> 0 | EA34: =0 -> 0 | EB34: =0 -> 0 | EC34: =0 -> 0 | ED34: =0 -> 0 | EE34: =8 -> 0 | EF34: =0 -> 0 | EG34: =123 -> 0 | EH34: =2 -> 0 | EI34: =11 -> 0 | EJ34: =41 -> 0 | EK34: =10 -> 0 | EL34: =0 -> 0 | EM34: =0 -> 0 | EN34: =0 -> 0 | EO34: =0 -> 0 | EP34: =0 -> 0 | EQ34: =6 -> 0 | ER34: =0 -> 0 | ES34: =0 -> 0 | ET34: =0 -> 0 | EU34: =46 -> 0 | EV34: =9 -> 0 | EW34: =0 -> 0 | EX34: =7 -> 0 | EY34: =1 -> 0 | EZ34: =3 -> 0 | FA34: =5 -> 0 | FB34: =9 -> 0
B35: 2.11 | C35: Current Premium PMPM | D35: =SUMPRODUCT(E35:XFD35,E34:XFD34)/D34 -> 699.1424 | E35: =0 -> 0 | F35: =0 -> 0 | G35: =0 -> 0 | H35: =0 -> 0 | I35: =0 -> 0 | J35: =567.86 -> 0 | K35: =0 -> 0 | L35: =0 -> 0 | M35: =0 -> 0 | N35: =0 -> 0 | O35: =0 -> 0 | P35: =0 -> 0 | Q35: =0 -> 0 | R35: =0 -> 0 | S35: =0 -> 0 | T35: =1016.94 -> 0 | U35: =0 -> 0 | V35: =0 -> 0 | W35: =0 -> 0 | X35: =0 -> 0 | Y35: =0 -> 0 | Z35: =0 -> 0 | AA35: =0 -> 0 | AB35: =0 -> 0 | AC35: =0 -> 0 | AD35: =0 -> 0 | AE35: =0 -> 0 | AF35: =0 -> 0 | AG35: =0 -> 0 | AH35: =0 -> 0 | AI35: =0 -> 0 | AJ35: =0 -> 0 | AK35: =735.65 -> 0 | AL35: =0 -> 0 | AM35: =675.54 -> 0 | AN35: =0 -> 0 | AO35: =0 -> 0 | AP35: =0 -> 0 | AQ35: =0 -> 0 | AR35: =0 -> 0 | AS35: =0 -> 0 | AT35: =0 -> 0 | AU35: =0 -> 0 | AV35: =0 -> 0 | AW35: =0 -> 0 | AX35: =0 -> 0 | AY35: =0 -> 0 | AZ35: =0 -> 0 | BA35: =0 -> 0 | BB35: =0 -> 0 | BC35: =0 -> 0 | BD35: =739.08 -> 0 | BE35: =426.99 -> 0 | BF35: =646.68 -> 0 | BG35: =741.65 -> 0 | BH35: =779.43 -> 0 | BI35: =603.18 -> 0 | BJ35: =791.9 -> 0 | BK35: =0 -> 0 | BL35: =446.48 -> 0 | BM35: =500.03 -> 0 | BN35: =642.48 -> 0 | BO35: =0 -> 0 | BP35: =0 -> 0 | BQ35: =619.05 -> 0 | BR35: =0 -> 0 | BS35: =588.04 -> 0 | BT35: =666.66 -> 0 | BU35: =709.1 -> 0 | BV35: =943.86 -> 0 | BW35: =1091.8 -> 0 | BX35: =690.12 -> 0 | BY35: =656.56 -> 0 | BZ35: =686.75 -> 0 | CA35: =0 -> 0 | CB35: =702.43 -> 0 | CC35: =720.08 -> 0 | CD35: =698.23 -> 0 | CE35: =949.53 -> 0 | CF35: =488.86 -> 0 | CG35: =0 -> 0 | CH35: =0 -> 0 | CI35: =659.65 -> 0 | CJ35: =0 -> 0 | CK35: =0 -> 0 | CL35: =670.88 -> 0 | CM35: =670.51 -> 0 | CN35: =797.74 -> 0 | CO35: =650.2 -> 0 | CP35: =748.81 -> 0 | CQ35: =0 -> 0 | CR35: =817.16 -> 0 | CS35: =0 -> 0 | CT35: =0 -> 0 | CU35: =575.08 -> 0 | CV35: =680.36 -> 0 | CW35: =405.96 -> 0 | CX35: =0 -> 0 | CY35: =0 -> 0 | CZ35: =0 -> 0 | DA35: =0 -> 0 | DB35: =0 -> 0 | DC35: =0 -> 0 | DD35: =0 -> 0 | DE35: =0 -> 0 | DF35: =0 -> 0 | DG35: =0 -> 0 | DH35: =0 -> 0 | DI35: =0 -> 0 | DJ35: =0 -> 0 | DK35: =0 -> 0 | DL35: =0 -> 0 | DM35: =0 -> 0 | DN35: =0 -> 0 | DO35: =0 -> 0 | DP35: =0 -> 0 | DQ35: =0 -> 0 | DR35: =0 -> 0 | DS35: =0 -> 0 | DT35: =0 -> 0 | DU35: =0 -> 0 | DV35: =0 -> 0 | DW35: =0 -> 0 | DX35: =0 -> 0 | DY35: =0 -> 0 | DZ35: =0 -> 0 | EA35: =0 -> 0 | EB35: =0 -> 0 | EC35: =0 -> 0 | ED35: =0 -> 0 | EE35: =560.29 -> 0 | EF35: =0 -> 0 | EG35: =777.19 -> 0 | EH35: =545.45 -> 0 | EI35: =441.86 -> 0 | EJ35: =490.46 -> 0 | EK35: =608.67 -> 0 | EL35: =0 -> 0 | EM35: =0 -> 0 | EN35: =0 -> 0 | EO35: =0 -> 0 | EP35: =0 -> 0 | EQ35: =576.69 -> 0 | ER35: =0 -> 0 | ES35: =0 -> 0 | ET35: =0 -> 0 | EU35: =939.03 -> 0 | EV35: =809.33 -> 0 | EW35: =0 -> 0 | EX35: =724.34 -> 0 | EY35: =576.89 -> 0 | EZ35: =644.72 -> 0 | FA35: =1189.83 -> 0 | FB35: =610.49 -> 0
B36: 2.12 | C36: Loss Ratio | D36: =D30/(D31+D32) -> 0.8195760259 | E36: =E30/(E31+E32) -> 0 | F36: =F30/(F31+F32) -> 0 | G36: =G30/(G31+G32) -> 0 | H36: =H30/(H31+H32) -> 0 | I36: =I30/(I31+I32) -> 0 | J36: =J30/(J31+J32) -> 0 | K36: =K30/(K31+K32) -> 0 | L36: =L30/(L31+L32) -> 0 | M36: =M30/(M31+M32) -> 0 | N36: =N30/(N31+N32) -> 0 | O36: =O30/(O31+O32) -> 0 | P36: =P30/(P31+P32) -> 0 | Q36: =Q30/(Q31+Q32) -> 0 | R36: =R30/(R31+R32) -> 0 | S36: =S30/(S31+S32) -> 0 | T36: =T30/(T31+T32) -> 0 | U36: =U30/(U31+U32) -> 0 | V36: =V30/(V31+V32) -> 0 | W36: =W30/(W31+W32) -> 0 | X36: =X30/(X31+X32) -> 0 | Y36: =Y30/(Y31+Y32) -> 0 | Z36: =Z30/(Z31+Z32) -> 0 | AA36: =AA30/(AA31+AA32) -> 0 | AB36: =AB30/(AB31+AB32) -> 0 | AC36: =AC30/(AC31+AC32) -> 0 | AD36: =AD30/(AD31+AD32) -> 0 | AE36: =AE30/(AE31+AE32) -> 0 | AF36: =AF30/(AF31+AF32) -> 0 | AG36: =AG30/(AG31+AG32) -> 0 | AH36: =AH30/(AH31+AH32) -> 0 | AI36: =AI30/(AI31+AI32) -> 0 | AJ36: =AJ30/(AJ31+AJ32) -> 0 | AK36: =AK30/(AK31+AK32) -> 0 | AL36: =AL30/(AL31+AL32) -> 0 | AM36: =AM30/(AM31+AM32) -> 0 | AN36: =AN30/(AN31+AN32) -> 0 | AO36: =AO30/(AO31+AO32) -> 0 | AP36: =AP30/(AP31+AP32) -> 0 | AQ36: =AQ30/(AQ31+AQ32) -> 0 | AR36: =AR30/(AR31+AR32) -> 0 | AS36: =AS30/(AS31+AS32) -> 0 | AT36: =AT30/(AT31+AT32) -> 0 | AU36: =AU30/(AU31+AU32) -> 0 | AV36: =AV30/(AV31+AV32) -> 0 | AW36: =AW30/(AW31+AW32) -> 0 | AX36: =AX30/(AX31+AX32) -> 0 | AY36: =AY30/(AY31+AY32) -> 0 | AZ36: =AZ30/(AZ31+AZ32) -> 0 | BA36: =BA30/(BA31+BA32) -> 0 | BB36: =BB30/(BB31+BB32) -> 0 | BC36: =BC30/(BC31+BC32) -> 0 | BD36: =BD30/(BD31+BD32) -> 0 | BE36: =BE30/(BE31+BE32) -> 0 | BF36: =BF30/(BF31+BF32) -> 0 | BG36: =BG30/(BG31+BG32) -> 0 | BH36: =BH30/(BH31+BH32) -> 0 | BI36: =BI30/(BI31+BI32) -> 0 | BJ36: =BJ30/(BJ31+BJ32) -> 0 | BK36: =BK30/(BK31+BK32) -> 0 | BL36: =BL30/(BL31+BL32) -> 0 | BM36: =BM30/(BM31+BM32) -> 0 | BN36: =BN30/(BN31+BN32) -> 0 | BO36: =BO30/(BO31+BO32) -> 0 | BP36: =BP30/(BP31+BP32) -> 0 | BQ36: =BQ30/(BQ31+BQ32) -> 0 | BR36: =BR30/(BR31+BR32) -> 0 | BS36: =BS30/(BS31+BS32) -> 0 | BT36: =BT30/(BT31+BT32) -> 0 | BU36: =BU30/(BU31+BU32) -> 0 | BV36: =BV30/(BV31+BV32) -> 0 | BW36: =BW30/(BW31+BW32) -> 0 | BX36: =BX30/(BX31+BX32) -> 0 | BY36: =BY30/(BY31+BY32) -> 0 | BZ36: =BZ30/(BZ31+BZ32) -> 0 | CA36: =CA30/(CA31+CA32) -> 0 | CB36: =CB30/(CB31+CB32) -> 0 | CC36: =CC30/(CC31+CC32) -> 0 | CD36: =CD30/(CD31+CD32) -> 0 | CE36: =CE30/(CE31+CE32) -> 0 | CF36: =CF30/(CF31+CF32) -> 0 | CG36: =CG30/(CG31+CG32) -> 0 | CH36: =CH30/(CH31+CH32) -> 0 | CI36: =CI30/(CI31+CI32) -> 0 | CJ36: =CJ30/(CJ31+CJ32) -> 0 | CK36: =CK30/(CK31+CK32) -> 0 | CL36: =CL30/(CL31+CL32) -> 0 | CM36: =CM30/(CM31+CM32) -> 0 | CN36: =CN30/(CN31+CN32) -> 0 | CO36: =CO30/(CO31+CO32) -> 0 | CP36: =CP30/(CP31+CP32) -> 0 | CQ36: =CQ30/(CQ31+CQ32) -> 0 | CR36: =CR30/(CR31+CR32) -> 0 | CS36: =CS30/(CS31+CS32) -> 0 | CT36: =CT30/(CT31+CT32) -> 0 | CU36: =CU30/(CU31+CU32) -> 0 | CV36: =CV30/(CV31+CV32) -> 0 | CW36: =CW30/(CW31+CW32) -> 0 | CX36: =CX30/(CX31+CX32) -> 0 | CY36: =CY30/(CY31+CY32) -> 0 | CZ36: =CZ30/(CZ31+CZ32) -> 0 | DA36: =DA30/(DA31+DA32) -> 0 | DB36: =DB30/(DB31+DB32) -> 0 | DC36: =DC30/(DC31+DC32) -> 0 | DD36: =DD30/(DD31+DD32) -> 0 | DE36: =DE30/(DE31+DE32) -> 0 | DF36: =DF30/(DF31+DF32) -> 0 | DG36: =DG30/(DG31+DG32) -> 0 | DH36: =DH30/(DH31+DH32) -> 0 | DI36: =DI30/(DI31+DI32) -> 0 | DJ36: =DJ30/(DJ31+DJ32) -> 0 | DK36: =DK30/(DK31+DK32) -> 0 | DL36: =DL30/(DL31+DL32) -> 0 | DM36: =DM30/(DM31+DM32) -> 0 | DN36: =DN30/(DN31+DN32) -> 0 | DO36: =DO30/(DO31+DO32) -> 0 | DP36: =DP30/(DP31+DP32) -> 0 | DQ36: =DQ30/(DQ31+DQ32) -> 0 | DR36: =DR30/(DR31+DR32) -> 0 | DS36: =DS30/(DS31+DS32) -> 0 | DT36: =DT30/(DT31+DT32) -> 0 | DU36: =DU30/(DU31+DU32) -> 0 | DV36: =DV30/(DV31+DV32) -> 0 | DW36: =DW30/(DW31+DW32) -> 0 | DX36: =DX30/(DX31+DX32) -> 0 | DY36: =DY30/(DY31+DY32) -> 0 | DZ36: =DZ30/(DZ31+DZ32) -> 0 | EA36: =EA30/(EA31+EA32) -> 0 | EB36: =EB30/(EB31+EB32) -> 0 | EC36: =EC30/(EC31+EC32) -> 0 | ED36: =ED30/(ED31+ED32) -> 0 | EE36: =EE30/(EE31+EE32) -> 0 | EF36: =EF30/(EF31+EF32) -> 0 | EG36: =EG30/(EG31+EG32) -> 0 | EH36: =EH30/(EH31+EH32) -> 0 | EI36: =EI30/(EI31+EI32) -> 0 | EJ36: =EJ30/(EJ31+EJ32) -> 0 | EK36: =EK30/(EK31+EK32) -> 0 | EL36: =EL30/(EL31+EL32) -> 0 | EM36: =EM30/(EM31+EM32) -> 0 | EN36: =EN30/(EN31+EN32) -> 0 | EO36: =EO30/(EO31+EO32) -> 0 | EP36: =EP30/(EP31+EP32) -> 0 | EQ36: =EQ30/(EQ31+EQ32) -> 0 | ER36: =ER30/(ER31+ER32) -> 0 | ES36: =ES30/(ES31+ES32) -> 0 | ET36: =ET30/(ET31+ET32) -> 0 | EU36: =EU30/(EU31+EU32) -> 0 | EV36: =EV30/(EV31+EV32) -> 0 | EW36: =EW30/(EW31+EW32) -> 0 | EX36: =EX30/(EX31+EX32) -> 0 | EY36: =EY30/(EY31+EY32) -> 0 | EZ36: =EZ30/(EZ31+EZ32) -> 0 | FA36: =FA30/(FA31+FA32) -> 0 | FB36: =FB30/(FB31+FB32) -> 0
C37: Per Member Per Month
B38: 2.13 | C38: Allowed Claims | D38: =D26/D33 -> 648.1863 | E38: =E26/E33 -> 0 | F38: =F26/F33 -> 0 | G38: =G26/G33 -> 0 | H38: =H26/H33 -> 0 | I38: =I26/I33 -> 0 | J38: =J26/J33 -> 0 | K38: =K26/K33 -> 0 | L38: =L26/L33 -> 0 | M38: =M26/M33 -> 0 | N38: =N26/N33 -> 0 | O38: =O26/O33 -> 0 | P38: =P26/P33 -> 0 | Q38: =Q26/Q33 -> 0 | R38: =R26/R33 -> 0 | S38: =S26/S33 -> 0 | T38: =T26/T33 -> 0 | U38: =U26/U33 -> 0 | V38: =V26/V33 -> 0 | W38: =W26/W33 -> 0 | X38: =X26/X33 -> 0 | Y38: =Y26/Y33 -> 0 | Z38: =Z26/Z33 -> 0 | AA38: =AA26/AA33 -> 0 | AB38: =AB26/AB33 -> 0 | AC38: =AC26/AC33 -> 0 | AD38: =AD26/AD33 -> 0 | AE38: =AE26/AE33 -> 0 | AF38: =AF26/AF33 -> 0 | AG38: =AG26/AG33 -> 0 | AH38: =AH26/AH33 -> 0 | AI38: =AI26/AI33 -> 0 | AJ38: =AJ26/AJ33 -> 0 | AK38: =AK26/AK33 -> 0 | AL38: =AL26/AL33 -> 0 | AM38: =AM26/AM33 -> 0 | AN38: =AN26/AN33 -> 0 | AO38: =AO26/AO33 -> 0 | AP38: =AP26/AP33 -> 0 | AQ38: =AQ26/AQ33 -> 0 | AR38: =AR26/AR33 -> 0 | AS38: =AS26/AS33 -> 0 | AT38: =AT26/AT33 -> 0 | AU38: =AU26/AU33 -> 0 | AV38: =AV26/AV33 -> 0 | AW38: =AW26/AW33 -> 0 | AX38: =AX26/AX33 -> 0 | AY38: =AY26/AY33 -> 0 | AZ38: =AZ26/AZ33 -> 0 | BA38: =BA26/BA33 -> 0 | BB38: =BB26/BB33 -> 0 | BC38: =BC26/BC33 -> 0 | BD38: =BD26/BD33 -> 0 | BE38: =BE26/BE33 -> 0 | BF38: =BF26/BF33 -> 0 | BG38: =BG26/BG33 -> 0 | BH38: =BH26/BH33 -> 0 | BI38: =BI26/BI33 -> 0 | BJ38: =BJ26/BJ33 -> 0 | BK38: =BK26/BK33 -> 0 | BL38: =BL26/BL33 -> 0 | BM38: =BM26/BM33 -> 0 | BN38: =BN26/BN33 -> 0 | BO38: =BO26/BO33 -> 0 | BP38: =BP26/BP33 -> 0 | BQ38: =BQ26/BQ33 -> 0 | BR38: =BR26/BR33 -> 0 | BS38: =BS26/BS33 -> 0 | BT38: =BT26/BT33 -> 0 | BU38: =BU26/BU33 -> 0 | BV38: =BV26/BV33 -> 0 | BW38: =BW26/BW33 -> 0 | BX38: =BX26/BX33 -> 0 | BY38: =BY26/BY33 -> 0 | BZ38: =BZ26/BZ33 -> 0 | CA38: =CA26/CA33 -> 0 | CB38: =CB26/CB33 -> 0 | CC38: =CC26/CC33 -> 0 | CD38: =CD26/CD33 -> 0 | CE38: =CE26/CE33 -> 0 | CF38: =CF26/CF33 -> 0 | CG38: =CG26/CG33 -> 0 | CH38: =CH26/CH33 -> 0 | CI38: =CI26/CI33 -> 0 | CJ38: =CJ26/CJ33 -> 0 | CK38: =CK26/CK33 -> 0 | CL38: =CL26/CL33 -> 0 | CM38: =CM26/CM33 -> 0 | CN38: =CN26/CN33 -> 0 | CO38: =CO26/CO33 -> 0 | CP38: =CP26/CP33 -> 0 | CQ38: =CQ26/CQ33 -> 0 | CR38: =CR26/CR33 -> 0 | CS38: =CS26/CS33 -> 0 | CT38: =CT26/CT33 -> 0 | CU38: =CU26/CU33 -> 0 | CV38: =CV26/CV33 -> 0 | CW38: =CW26/CW33 -> 0 | CX38: =CX26/CX33 -> 0 | CY38: =CY26/CY33 -> 0 | CZ38: =CZ26/CZ33 -> 0 | DA38: =DA26/DA33 -> 0 | DB38: =DB26/DB33 -> 0 | DC38: =DC26/DC33 -> 0 | DD38: =DD26/DD33 -> 0 | DE38: =DE26/DE33 -> 0 | DF38: =DF26/DF33 -> 0 | DG38: =DG26/DG33 -> 0 | DH38: =DH26/DH33 -> 0 | DI38: =DI26/DI33 -> 0 | DJ38: =DJ26/DJ33 -> 0 | DK38: =DK26/DK33 -> 0 | DL38: =DL26/DL33 -> 0 | DM38: =DM26/DM33 -> 0 | DN38: =DN26/DN33 -> 0 | DO38: =DO26/DO33 -> 0 | DP38: =DP26/DP33 -> 0 | DQ38: =DQ26/DQ33 -> 0 | DR38: =DR26/DR33 -> 0 | DS38: =DS26/DS33 -> 0 | DT38: =DT26/DT33 -> 0 | DU38: =DU26/DU33 -> 0 | DV38: =DV26/DV33 -> 0 | DW38: =DW26/DW33 -> 0 | DX38: =DX26/DX33 -> 0 | DY38: =DY26/DY33 -> 0 | DZ38: =DZ26/DZ33 -> 0 | EA38: =EA26/EA33 -> 0 | EB38: =EB26/EB33 -> 0 | EC38: =EC26/EC33 -> 0 | ED38: =ED26/ED33 -> 0 | EE38: =EE26/EE33 -> 0 | EF38: =EF26/EF33 -> 0 | EG38: =EG26/EG33 -> 0 | EH38: =EH26/EH33 -> 0 | EI38: =EI26/EI33 -> 0 | EJ38: =EJ26/EJ33 -> 0 | EK38: =EK26/EK33 -> 0 | EL38: =EL26/EL33 -> 0 | EM38: =EM26/EM33 -> 0 | EN38: =EN26/EN33 -> 0 | EO38: =EO26/EO33 -> 0 | EP38: =EP26/EP33 -> 0 | EQ38: =EQ26/EQ33 -> 0 | ER38: =ER26/ER33 -> 0 | ES38: =ES26/ES33 -> 0 | ET38: =ET26/ET33 -> 0 | EU38: =EU26/EU33 -> 0 | EV38: =EV26/EV33 -> 0 | EW38: =EW26/EW33 -> 0 | EX38: =EX26/EX33 -> 0 | EY38: =EY26/EY33 -> 0 | EZ38: =EZ26/EZ33 -> 0 | FA38: =FA26/FA33 -> 0 | FB38: =FB26/FB33 -> 0
B39: 2.14 | C39: Reinsurance | D39: =D27/D33 -> 0 | E39: =E27/E33 -> 0 | F39: =F27/F33 -> 0 | G39: =G27/G33 -> 0 | H39: =H27/H33 -> 0 | I39: =I27/I33 -> 0 | J39: =J27/J33 -> 0 | K39: =K27/K33 -> 0 | L39: =L27/L33 -> 0 | M39: =M27/M33 -> 0 | N39: =N27/N33 -> 0 | O39: =O27/O33 -> 0 | P39: =P27/P33 -> 0 | Q39: =Q27/Q33 -> 0 | R39: =R27/R33 -> 0 | S39: =S27/S33 -> 0 | T39: =T27/T33 -> 0 | U39: =U27/U33 -> 0 | V39: =V27/V33 -> 0 | W39: =W27/W33 -> 0 | X39: =X27/X33 -> 0 | Y39: =Y27/Y33 -> 0 | Z39: =Z27/Z33 -> 0 | AA39: =AA27/AA33 -> 0 | AB39: =AB27/AB33 -> 0 | AC39: =AC27/AC33 -> 0 | AD39: =AD27/AD33 -> 0 | AE39: =AE27/AE33 -> 0 | AF39: =AF27/AF33 -> 0 | AG39: =AG27/AG33 -> 0 | AH39: =AH27/AH33 -> 0 | AI39: =AI27/AI33 -> 0 | AJ39: =AJ27/AJ33 -> 0 | AK39: =AK27/AK33 -> 0 | AL39: =AL27/AL33 -> 0 | AM39: =AM27/AM33 -> 0 | AN39: =AN27/AN33 -> 0 | AO39: =AO27/AO33 -> 0 | AP39: =AP27/AP33 -> 0 | AQ39: =AQ27/AQ33 -> 0 | AR39: =AR27/AR33 -> 0 | AS39: =AS27/AS33 -> 0 | AT39: =AT27/AT33 -> 0 | AU39: =AU27/AU33 -> 0 | AV39: =AV27/AV33 -> 0 | AW39: =AW27/AW33 -> 0 | AX39: =AX27/AX33 -> 0 | AY39: =AY27/AY33 -> 0 | AZ39: =AZ27/AZ33 -> 0 | BA39: =BA27/BA33 -> 0 | BB39: =BB27/BB33 -> 0 | BC39: =BC27/BC33 -> 0 | BD39: =BD27/BD33 -> 0 | BE39: =BE27/BE33 -> 0 | BF39: =BF27/BF33 -> 0 | BG39: =BG27/BG33 -> 0 | BH39: =BH27/BH33 -> 0 | BI39: =BI27/BI33 -> 0 | BJ39: =BJ27/BJ33 -> 0 | BK39: =BK27/BK33 -> 0 | BL39: =BL27/BL33 -> 0 | BM39: =BM27/BM33 -> 0 | BN39: =BN27/BN33 -> 0 | BO39: =BO27/BO33 -> 0 | BP39: =BP27/BP33 -> 0 | BQ39: =BQ27/BQ33 -> 0 | BR39: =BR27/BR33 -> 0 | BS39: =BS27/BS33 -> 0 | BT39: =BT27/BT33 -> 0 | BU39: =BU27/BU33 -> 0 | BV39: =BV27/BV33 -> 0 | BW39: =BW27/BW33 -> 0 | BX39: =BX27/BX33 -> 0 | BY39: =BY27/BY33 -> 0 | BZ39: =BZ27/BZ33 -> 0 | CA39: =CA27/CA33 -> 0 | CB39: =CB27/CB33 -> 0 | CC39: =CC27/CC33 -> 0 | CD39: =CD27/CD33 -> 0 | CE39: =CE27/CE33 -> 0 | CF39: =CF27/CF33 -> 0 | CG39: =CG27/CG33 -> 0 | CH39: =CH27/CH33 -> 0 | CI39: =CI27/CI33 -> 0 | CJ39: =CJ27/CJ33 -> 0 | CK39: =CK27/CK33 -> 0 | CL39: =CL27/CL33 -> 0 | CM39: =CM27/CM33 -> 0 | CN39: =CN27/CN33 -> 0 | CO39: =CO27/CO33 -> 0 | CP39: =CP27/CP33 -> 0 | CQ39: =CQ27/CQ33 -> 0 | CR39: =CR27/CR33 -> 0 | CS39: =CS27/CS33 -> 0 | CT39: =CT27/CT33 -> 0 | CU39: =CU27/CU33 -> 0 | CV39: =CV27/CV33 -> 0 | CW39: =CW27/CW33 -> 0 | CX39: =CX27/CX33 -> 0 | CY39: =CY27/CY33 -> 0 | CZ39: =CZ27/CZ33 -> 0 | DA39: =DA27/DA33 -> 0 | DB39: =DB27/DB33 -> 0 | DC39: =DC27/DC33 -> 0 | DD39: =DD27/DD33 -> 0 | DE39: =DE27/DE33 -> 0 | DF39: =DF27/DF33 -> 0 | DG39: =DG27/DG33 -> 0 | DH39: =DH27/DH33 -> 0 | DI39: =DI27/DI33 -> 0 | DJ39: =DJ27/DJ33 -> 0 | DK39: =DK27/DK33 -> 0 | DL39: =DL27/DL33 -> 0 | DM39: =DM27/DM33 -> 0 | DN39: =DN27/DN33 -> 0 | DO39: =DO27/DO33 -> 0 | DP39: =DP27/DP33 -> 0 | DQ39: =DQ27/DQ33 -> 0 | DR39: =DR27/DR33 -> 0 | DS39: =DS27/DS33 -> 0 | DT39: =DT27/DT33 -> 0 | DU39: =DU27/DU33 -> 0 | DV39: =DV27/DV33 -> 0 | DW39: =DW27/DW33 -> 0 | DX39: =DX27/DX33 -> 0 | DY39: =DY27/DY33 -> 0 | DZ39: =DZ27/DZ33 -> 0 | EA39: =EA27/EA33 -> 0 | EB39: =EB27/EB33 -> 0 | EC39: =EC27/EC33 -> 0 | ED39: =ED27/ED33 -> 0 | EE39: =EE27/EE33 -> 0 | EF39: =EF27/EF33 -> 0 | EG39: =EG27/EG33 -> 0 | EH39: =EH27/EH33 -> 0 | EI39: =EI27/EI33 -> 0 | EJ39: =EJ27/EJ33 -> 0 | EK39: =EK27/EK33 -> 0 | EL39: =EL27/EL33 -> 0 | EM39: =EM27/EM33 -> 0 | EN39: =EN27/EN33 -> 0 | EO39: =EO27/EO33 -> 0 | EP39: =EP27/EP33 -> 0 | EQ39: =EQ27/EQ33 -> 0 | ER39: =ER27/ER33 -> 0 | ES39: =ES27/ES33 -> 0 | ET39: =ET27/ET33 -> 0 | EU39: =EU27/EU33 -> 0 | EV39: =EV27/EV33 -> 0 | EW39: =EW27/EW33 -> 0 | EX39: =EX27/EX33 -> 0 | EY39: =EY27/EY33 -> 0 | EZ39: =EZ27/EZ33 -> 0 | FA39: =FA27/FA33 -> 0 | FB39: =FB27/FB33 -> 0
B40: 2.15 | C40: Member Cost Sharing | D40: =D28/D33 -> 146.3869 | E40: =E28/E33 -> 0 | F40: =F28/F33 -> 0 | G40: =G28/G33 -> 0 | H40: =H28/H33 -> 0 | I40: =I28/I33 -> 0 | J40: =J28/J33 -> 0 | K40: =K28/K33 -> 0 | L40: =L28/L33 -> 0 | M40: =M28/M33 -> 0 | N40: =N28/N33 -> 0 | O40: =O28/O33 -> 0 | P40: =P28/P33 -> 0 | Q40: =Q28/Q33 -> 0 | R40: =R28/R33 -> 0 | S40: =S28/S33 -> 0 | T40: =T28/T33 -> 0 | U40: =U28/U33 -> 0 | V40: =V28/V33 -> 0 | W40: =W28/W33 -> 0 | X40: =X28/X33 -> 0 | Y40: =Y28/Y33 -> 0 | Z40: =Z28/Z33 -> 0 | AA40: =AA28/AA33 -> 0 | AB40: =AB28/AB33 -> 0 | AC40: =AC28/AC33 -> 0 | AD40: =AD28/AD33 -> 0 | AE40: =AE28/AE33 -> 0 | AF40: =AF28/AF33 -> 0 | AG40: =AG28/AG33 -> 0 | AH40: =AH28/AH33 -> 0 | AI40: =AI28/AI33 -> 0 | AJ40: =AJ28/AJ33 -> 0 | AK40: =AK28/AK33 -> 0 | AL40: =AL28/AL33 -> 0 | AM40: =AM28/AM33 -> 0 | AN40: =AN28/AN33 -> 0 | AO40: =AO28/AO33 -> 0 | AP40: =AP28/AP33 -> 0 | AQ40: =AQ28/AQ33 -> 0 | AR40: =AR28/AR33 -> 0 | AS40: =AS28/AS33 -> 0 | AT40: =AT28/AT33 -> 0 | AU40: =AU28/AU33 -> 0 | AV40: =AV28/AV33 -> 0 | AW40: =AW28/AW33 -> 0 | AX40: =AX28/AX33 -> 0 | AY40: =AY28/AY33 -> 0 | AZ40: =AZ28/AZ33 -> 0 | BA40: =BA28/BA33 -> 0 | BB40: =BB28/BB33 -> 0 | BC40: =BC28/BC33 -> 0 | BD40: =BD28/BD33 -> 0 | BE40: =BE28/BE33 -> 0 | BF40: =BF28/BF33 -> 0 | BG40: =BG28/BG33 -> 0 | BH40: =BH28/BH33 -> 0 | BI40: =BI28/BI33 -> 0 | BJ40: =BJ28/BJ33 -> 0 | BK40: =BK28/BK33 -> 0 | BL40: =BL28/BL33 -> 0 | BM40: =BM28/BM33 -> 0 | BN40: =BN28/BN33 -> 0 | BO40: =BO28/BO33 -> 0 | BP40: =BP28/BP33 -> 0 | BQ40: =BQ28/BQ33 -> 0 | BR40: =BR28/BR33 -> 0 | BS40: =BS28/BS33 -> 0 | BT40: =BT28/BT33 -> 0 | BU40: =BU28/BU33 -> 0 | BV40: =BV28/BV33 -> 0 | BW40: =BW28/BW33 -> 0 | BX40: =BX28/BX33 -> 0 | BY40: =BY28/BY33 -> 0 | BZ40: =BZ28/BZ33 -> 0 | CA40: =CA28/CA33 -> 0 | CB40: =CB28/CB33 -> 0 | CC40: =CC28/CC33 -> 0 | CD40: =CD28/CD33 -> 0 | CE40: =CE28/CE33 -> 0 | CF40: =CF28/CF33 -> 0 | CG40: =CG28/CG33 -> 0 | CH40: =CH28/CH33 -> 0 | CI40: =CI28/CI33 -> 0 | CJ40: =CJ28/CJ33 -> 0 | CK40: =CK28/CK33 -> 0 | CL40: =CL28/CL33 -> 0 | CM40: =CM28/CM33 -> 0 | CN40: =CN28/CN33 -> 0 | CO40: =CO28/CO33 -> 0 | CP40: =CP28/CP33 -> 0 | CQ40: =CQ28/CQ33 -> 0 | CR40: =CR28/CR33 -> 0 | CS40: =CS28/CS33 -> 0 | CT40: =CT28/CT33 -> 0 | CU40: =CU28/CU33 -> 0 | CV40: =CV28/CV33 -> 0 | CW40: =CW28/CW33 -> 0 | CX40: =CX28/CX33 -> 0 | CY40: =CY28/CY33 -> 0 | CZ40: =CZ28/CZ33 -> 0 | DA40: =DA28/DA33 -> 0 | DB40: =DB28/DB33 -> 0 | DC40: =DC28/DC33 -> 0 | DD40: =DD28/DD33 -> 0 | DE40: =DE28/DE33 -> 0 | DF40: =DF28/DF33 -> 0 | DG40: =DG28/DG33 -> 0 | DH40: =DH28/DH33 -> 0 | DI40: =DI28/DI33 -> 0 | DJ40: =DJ28/DJ33 -> 0 | DK40: =DK28/DK33 -> 0 | DL40: =DL28/DL33 -> 0 | DM40: =DM28/DM33 -> 0 | DN40: =DN28/DN33 -> 0 | DO40: =DO28/DO33 -> 0 | DP40: =DP28/DP33 -> 0 | DQ40: =DQ28/DQ33 -> 0 | DR40: =DR28/DR33 -> 0 | DS40: =DS28/DS33 -> 0 | DT40: =DT28/DT33 -> 0 | DU40: =DU28/DU33 -> 0 | DV40: =DV28/DV33 -> 0 | DW40: =DW28/DW33 -> 0 | DX40: =DX28/DX33 -> 0 | DY40: =DY28/DY33 -> 0 | DZ40: =DZ28/DZ33 -> 0 | EA40: =EA28/EA33 -> 0 | EB40: =EB28/EB33 -> 0 | EC40: =EC28/EC33 -> 0 | ED40: =ED28/ED33 -> 0 | EE40: =EE28/EE33 -> 0 | EF40: =EF28/EF33 -> 0 | EG40: =EG28/EG33 -> 0 | EH40: =EH28/EH33 -> 0 | EI40: =EI28/EI33 -> 0 | EJ40: =EJ28/EJ33 -> 0 | EK40: =EK28/EK33 -> 0 | EL40: =EL28/EL33 -> 0 | EM40: =EM28/EM33 -> 0 | EN40: =EN28/EN33 -> 0 | EO40: =EO28/EO33 -> 0 | EP40: =EP28/EP33 -> 0 | EQ40: =EQ28/EQ33 -> 0 | ER40: =ER28/ER33 -> 0 | ES40: =ES28/ES33 -> 0 | ET40: =ET28/ET33 -> 0 | EU40: =EU28/EU33 -> 0 | EV40: =EV28/EV33 -> 0 | EW40: =EW28/EW33 -> 0 | EX40: =EX28/EX33 -> 0 | EY40: =EY28/EY33 -> 0 | EZ40: =EZ28/EZ33 -> 0 | FA40: =FA28/FA33 -> 0 | FB40: =FB28/FB33 -> 0
B41: 2.16 | C41: Cost Sharing Reduction | D41: =D29/D33 -> 0 | E41: =E29/E33 -> 0 | F41: =F29/F33 -> 0 | G41: =G29/G33 -> 0 | H41: =H29/H33 -> 0 | I41: =I29/I33 -> 0 | J41: =J29/J33 -> 0 | K41: =K29/K33 -> 0 | L41: =L29/L33 -> 0 | M41: =M29/M33 -> 0 | N41: =N29/N33 -> 0 | O41: =O29/O33 -> 0 | P41: =P29/P33 -> 0 | Q41: =Q29/Q33 -> 0 | R41: =R29/R33 -> 0 | S41: =S29/S33 -> 0 | T41: =T29/T33 -> 0 | U41: =U29/U33 -> 0 | V41: =V29/V33 -> 0 | W41: =W29/W33 -> 0 | X41: =X29/X33 -> 0 | Y41: =Y29/Y33 -> 0 | Z41: =Z29/Z33 -> 0 | AA41: =AA29/AA33 -> 0 | AB41: =AB29/AB33 -> 0 | AC41: =AC29/AC33 -> 0 | AD41: =AD29/AD33 -> 0 | AE41: =AE29/AE33 -> 0 | AF41: =AF29/AF33 -> 0 | AG41: =AG29/AG33 -> 0 | AH41: =AH29/AH33 -> 0 | AI41: =AI29/AI33 -> 0 | AJ41: =AJ29/AJ33 -> 0 | AK41: =AK29/AK33 -> 0 | AL41: =AL29/AL33 -> 0 | AM41: =AM29/AM33 -> 0 | AN41: =AN29/AN33 -> 0 | AO41: =AO29/AO33 -> 0 | AP41: =AP29/AP33 -> 0 | AQ41: =AQ29/AQ33 -> 0 | AR41: =AR29/AR33 -> 0 | AS41: =AS29/AS33 -> 0 | AT41: =AT29/AT33 -> 0 | AU41: =AU29/AU33 -> 0 | AV41: =AV29/AV33 -> 0 | AW41: =AW29/AW33 -> 0 | AX41: =AX29/AX33 -> 0 | AY41: =AY29/AY33 -> 0 | AZ41: =AZ29/AZ33 -> 0 | BA41: =BA29/BA33 -> 0 | BB41: =BB29/BB33 -> 0 | BC41: =BC29/BC33 -> 0 | BD41: =BD29/BD33 -> 0 | BE41: =BE29/BE33 -> 0 | BF41: =BF29/BF33 -> 0 | BG41: =BG29/BG33 -> 0 | BH41: =BH29/BH33 -> 0 | BI41: =BI29/BI33 -> 0 | BJ41: =BJ29/BJ33 -> 0 | BK41: =BK29/BK33 -> 0 | BL41: =BL29/BL33 -> 0 | BM41: =BM29/BM33 -> 0 | BN41: =BN29/BN33 -> 0 | BO41: =BO29/BO33 -> 0 | BP41: =BP29/BP33 -> 0 | BQ41: =BQ29/BQ33 -> 0 | BR41: =BR29/BR33 -> 0 | BS41: =BS29/BS33 -> 0 | BT41: =BT29/BT33 -> 0 | BU41: =BU29/BU33 -> 0 | BV41: =BV29/BV33 -> 0 | BW41: =BW29/BW33 -> 0 | BX41: =BX29/BX33 -> 0 | BY41: =BY29/BY33 -> 0 | BZ41: =BZ29/BZ33 -> 0 | CA41: =CA29/CA33 -> 0 | CB41: =CB29/CB33 -> 0 | CC41: =CC29/CC33 -> 0 | CD41: =CD29/CD33 -> 0 | CE41: =CE29/CE33 -> 0 | CF41: =CF29/CF33 -> 0 | CG41: =CG29/CG33 -> 0 | CH41: =CH29/CH33 -> 0 | CI41: =CI29/CI33 -> 0 | CJ41: =CJ29/CJ33 -> 0 | CK41: =CK29/CK33 -> 0 | CL41: =CL29/CL33 -> 0 | CM41: =CM29/CM33 -> 0 | CN41: =CN29/CN33 -> 0 | CO41: =CO29/CO33 -> 0 | CP41: =CP29/CP33 -> 0 | CQ41: =CQ29/CQ33 -> 0 | CR41: =CR29/CR33 -> 0 | CS41: =CS29/CS33 -> 0 | CT41: =CT29/CT33 -> 0 | CU41: =CU29/CU33 -> 0 | CV41: =CV29/CV33 -> 0 | CW41: =CW29/CW33 -> 0 | CX41: =CX29/CX33 -> 0 | CY41: =CY29/CY33 -> 0 | CZ41: =CZ29/CZ33 -> 0 | DA41: =DA29/DA33 -> 0 | DB41: =DB29/DB33 -> 0 | DC41: =DC29/DC33 -> 0 | DD41: =DD29/DD33 -> 0 | DE41: =DE29/DE33 -> 0 | DF41: =DF29/DF33 -> 0 | DG41: =DG29/DG33 -> 0 | DH41: =DH29/DH33 -> 0 | DI41: =DI29/DI33 -> 0 | DJ41: =DJ29/DJ33 -> 0 | DK41: =DK29/DK33 -> 0 | DL41: =DL29/DL33 -> 0 | DM41: =DM29/DM33 -> 0 | DN41: =DN29/DN33 -> 0 | DO41: =DO29/DO33 -> 0 | DP41: =DP29/DP33 -> 0 | DQ41: =DQ29/DQ33 -> 0 | DR41: =DR29/DR33 -> 0 | DS41: =DS29/DS33 -> 0 | DT41: =DT29/DT33 -> 0 | DU41: =DU29/DU33 -> 0 | DV41: =DV29/DV33 -> 0 | DW41: =DW29/DW33 -> 0 | DX41: =DX29/DX33 -> 0 | DY41: =DY29/DY33 -> 0 | DZ41: =DZ29/DZ33 -> 0 | EA41: =EA29/EA33 -> 0 | EB41: =EB29/EB33 -> 0 | EC41: =EC29/EC33 -> 0 | ED41: =ED29/ED33 -> 0 | EE41: =EE29/EE33 -> 0 | EF41: =EF29/EF33 -> 0 | EG41: =EG29/EG33 -> 0 | EH41: =EH29/EH33 -> 0 | EI41: =EI29/EI33 -> 0 | EJ41: =EJ29/EJ33 -> 0 | EK41: =EK29/EK33 -> 0 | EL41: =EL29/EL33 -> 0 | EM41: =EM29/EM33 -> 0 | EN41: =EN29/EN33 -> 0 | EO41: =EO29/EO33 -> 0 | EP41: =EP29/EP33 -> 0 | EQ41: =EQ29/EQ33 -> 0 | ER41: =ER29/ER33 -> 0 | ES41: =ES29/ES33 -> 0 | ET41: =ET29/ET33 -> 0 | EU41: =EU29/EU33 -> 0 | EV41: =EV29/EV33 -> 0 | EW41: =EW29/EW33 -> 0 | EX41: =EX29/EX33 -> 0 | EY41: =EY29/EY33 -> 0 | EZ41: =EZ29/EZ33 -> 0 | FA41: =FA29/FA33 -> 0 | FB41: =FB29/FB33 -> 0
B42: 2.17 | C42: Incurred Claims | D42: =D30/D33 -> 501.7994 | E42: =E30/E33 -> 0 | F42: =F30/F33 -> 0 | G42: =G30/G33 -> 0 | H42: =H30/H33 -> 0 | I42: =I30/I33 -> 0 | J42: =J30/J33 -> 0 | K42: =K30/K33 -> 0 | L42: =L30/L33 -> 0 | M42: =M30/M33 -> 0 | N42: =N30/N33 -> 0 | O42: =O30/O33 -> 0 | P42: =P30/P33 -> 0 | Q42: =Q30/Q33 -> 0 | R42: =R30/R33 -> 0 | S42: =S30/S33 -> 0 | T42: =T30/T33 -> 0 | U42: =U30/U33 -> 0 | V42: =V30/V33 -> 0 | W42: =W30/W33 -> 0 | X42: =X30/X33 -> 0 | Y42: =Y30/Y33 -> 0 | Z42: =Z30/Z33 -> 0 | AA42: =AA30/AA33 -> 0 | AB42: =AB30/AB33 -> 0 | AC42: =AC30/AC33 -> 0 | AD42: =AD30/AD33 -> 0 | AE42: =AE30/AE33 -> 0 | AF42: =AF30/AF33 -> 0 | AG42: =AG30/AG33 -> 0 | AH42: =AH30/AH33 -> 0 | AI42: =AI30/AI33 -> 0 | AJ42: =AJ30/AJ33 -> 0 | AK42: =AK30/AK33 -> 0 | AL42: =AL30/AL33 -> 0 | AM42: =AM30/AM33 -> 0 | AN42: =AN30/AN33 -> 0 | AO42: =AO30/AO33 -> 0 | AP42: =AP30/AP33 -> 0 | AQ42: =AQ30/AQ33 -> 0 | AR42: =AR30/AR33 -> 0 | AS42: =AS30/AS33 -> 0 | AT42: =AT30/AT33 -> 0 | AU42: =AU30/AU33 -> 0 | AV42: =AV30/AV33 -> 0 | AW42: =AW30/AW33 -> 0 | AX42: =AX30/AX33 -> 0 | AY42: =AY30/AY33 -> 0 | AZ42: =AZ30/AZ33 -> 0 | BA42: =BA30/BA33 -> 0 | BB42: =BB30/BB33 -> 0 | BC42: =BC30/BC33 -> 0 | BD42: =BD30/BD33 -> 0 | BE42: =BE30/BE33 -> 0 | BF42: =BF30/BF33 -> 0 | BG42: =BG30/BG33 -> 0 | BH42: =BH30/BH33 -> 0 | BI42: =BI30/BI33 -> 0 | BJ42: =BJ30/BJ33 -> 0 | BK42: =BK30/BK33 -> 0 | BL42: =BL30/BL33 -> 0 | BM42: =BM30/BM33 -> 0 | BN42: =BN30/BN33 -> 0 | BO42: =BO30/BO33 -> 0 | BP42: =BP30/BP33 -> 0 | BQ42: =BQ30/BQ33 -> 0 | BR42: =BR30/BR33 -> 0 | BS42: =BS30/BS33 -> 0 | BT42: =BT30/BT33 -> 0 | BU42: =BU30/BU33 -> 0 | BV42: =BV30/BV33 -> 0 | BW42: =BW30/BW33 -> 0 | BX42: =BX30/BX33 -> 0 | BY42: =BY30/BY33 -> 0 | BZ42: =BZ30/BZ33 -> 0 | CA42: =CA30/CA33 -> 0 | CB42: =CB30/CB33 -> 0 | CC42: =CC30/CC33 -> 0 | CD42: =CD30/CD33 -> 0 | CE42: =CE30/CE33 -> 0 | CF42: =CF30/CF33 -> 0 | CG42: =CG30/CG33 -> 0 | CH42: =CH30/CH33 -> 0 | CI42: =CI30/CI33 -> 0 | CJ42: =CJ30/CJ33 -> 0 | CK42: =CK30/CK33 -> 0 | CL42: =CL30/CL33 -> 0 | CM42: =CM30/CM33 -> 0 | CN42: =CN30/CN33 -> 0 | CO42: =CO30/CO33 -> 0 | CP42: =CP30/CP33 -> 0 | CQ42: =CQ30/CQ33 -> 0 | CR42: =CR30/CR33 -> 0 | CS42: =CS30/CS33 -> 0 | CT42: =CT30/CT33 -> 0 | CU42: =CU30/CU33 -> 0 | CV42: =CV30/CV33 -> 0 | CW42: =CW30/CW33 -> 0 | CX42: =CX30/CX33 -> 0 | CY42: =CY30/CY33 -> 0 | CZ42: =CZ30/CZ33 -> 0 | DA42: =DA30/DA33 -> 0 | DB42: =DB30/DB33 -> 0 | DC42: =DC30/DC33 -> 0 | DD42: =DD30/DD33 -> 0 | DE42: =DE30/DE33 -> 0 | DF42: =DF30/DF33 -> 0 | DG42: =DG30/DG33 -> 0 | DH42: =DH30/DH33 -> 0 | DI42: =DI30/DI33 -> 0 | DJ42: =DJ30/DJ33 -> 0 | DK42: =DK30/DK33 -> 0 | DL42: =DL30/DL33 -> 0 | DM42: =DM30/DM33 -> 0 | DN42: =DN30/DN33 -> 0 | DO42: =DO30/DO33 -> 0 | DP42: =DP30/DP33 -> 0 | DQ42: =DQ30/DQ33 -> 0 | DR42: =DR30/DR33 -> 0 | DS42: =DS30/DS33 -> 0 | DT42: =DT30/DT33 -> 0 | DU42: =DU30/DU33 -> 0 | DV42: =DV30/DV33 -> 0 | DW42: =DW30/DW33 -> 0 | DX42: =DX30/DX33 -> 0 | DY42: =DY30/DY33 -> 0 | DZ42: =DZ30/DZ33 -> 0 | EA42: =EA30/EA33 -> 0 | EB42: =EB30/EB33 -> 0 | EC42: =EC30/EC33 -> 0 | ED42: =ED30/ED33 -> 0 | EE42: =EE30/EE33 -> 0 | EF42: =EF30/EF33 -> 0 | EG42: =EG30/EG33 -> 0 | EH42: =EH30/EH33 -> 0 | EI42: =EI30/EI33 -> 0 | EJ42: =EJ30/EJ33 -> 0 | EK42: =EK30/EK33 -> 0 | EL42: =EL30/EL33 -> 0 | EM42: =EM30/EM33 -> 0 | EN42: =EN30/EN33 -> 0 | EO42: =EO30/EO33 -> 0 | EP42: =EP30/EP33 -> 0 | EQ42: =EQ30/EQ33 -> 0 | ER42: =ER30/ER33 -> 0 | ES42: =ES30/ES33 -> 0 | ET42: =ET30/ET33 -> 0 | EU42: =EU30/EU33 -> 0 | EV42: =EV30/EV33 -> 0 | EW42: =EW30/EW33 -> 0 | EX42: =EX30/EX33 -> 0 | EY42: =EY30/EY33 -> 0 | EZ42: =EZ30/EZ33 -> 0 | FA42: =FA30/FA33 -> 0 | FB42: =FB30/FB33 -> 0
B43: 2.18 | C43: Risk Adjustment Transfer Amount | D43: =D31/D33 -> -65.0195 | E43: =E31/E33 -> 0 | F43: =F31/F33 -> 0 | G43: =G31/G33 -> 0 | H43: =H31/H33 -> 0 | I43: =I31/I33 -> 0 | J43: =J31/J33 -> 0 | K43: =K31/K33 -> 0 | L43: =L31/L33 -> 0 | M43: =M31/M33 -> 0 | N43: =N31/N33 -> 0 | O43: =O31/O33 -> 0 | P43: =P31/P33 -> 0 | Q43: =Q31/Q33 -> 0 | R43: =R31/R33 -> 0 | S43: =S31/S33 -> 0 | T43: =T31/T33 -> 0 | U43: =U31/U33 -> 0 | V43: =V31/V33 -> 0 | W43: =W31/W33 -> 0 | X43: =X31/X33 -> 0 | Y43: =Y31/Y33 -> 0 | Z43: =Z31/Z33 -> 0 | AA43: =AA31/AA33 -> 0 | AB43: =AB31/AB33 -> 0 | AC43: =AC31/AC33 -> 0 | AD43: =AD31/AD33 -> 0 | AE43: =AE31/AE33 -> 0 | AF43: =AF31/AF33 -> 0 | AG43: =AG31/AG33 -> 0 | AH43: =AH31/AH33 -> 0 | AI43: =AI31/AI33 -> 0 | AJ43: =AJ31/AJ33 -> 0 | AK43: =AK31/AK33 -> 0 | AL43: =AL31/AL33 -> 0 | AM43: =AM31/AM33 -> 0 | AN43: =AN31/AN33 -> 0 | AO43: =AO31/AO33 -> 0 | AP43: =AP31/AP33 -> 0 | AQ43: =AQ31/AQ33 -> 0 | AR43: =AR31/AR33 -> 0 | AS43: =AS31/AS33 -> 0 | AT43: =AT31/AT33 -> 0 | AU43: =AU31/AU33 -> 0 | AV43: =AV31/AV33 -> 0 | AW43: =AW31/AW33 -> 0 | AX43: =AX31/AX33 -> 0 | AY43: =AY31/AY33 -> 0 | AZ43: =AZ31/AZ33 -> 0 | BA43: =BA31/BA33 -> 0 | BB43: =BB31/BB33 -> 0 | BC43: =BC31/BC33 -> 0 | BD43: =BD31/BD33 -> 0 | BE43: =BE31/BE33 -> 0 | BF43: =BF31/BF33 -> 0 | BG43: =BG31/BG33 -> 0 | BH43: =BH31/BH33 -> 0 | BI43: =BI31/BI33 -> 0 | BJ43: =BJ31/BJ33 -> 0 | BK43: =BK31/BK33 -> 0 | BL43: =BL31/BL33 -> 0 | BM43: =BM31/BM33 -> 0 | BN43: =BN31/BN33 -> 0 | BO43: =BO31/BO33 -> 0 | BP43: =BP31/BP33 -> 0 | BQ43: =BQ31/BQ33 -> 0 | BR43: =BR31/BR33 -> 0 | BS43: =BS31/BS33 -> 0 | BT43: =BT31/BT33 -> 0 | BU43: =BU31/BU33 -> 0 | BV43: =BV31/BV33 -> 0 | BW43: =BW31/BW33 -> 0 | BX43: =BX31/BX33 -> 0 | BY43: =BY31/BY33 -> 0 | BZ43: =BZ31/BZ33 -> 0 | CA43: =CA31/CA33 -> 0 | CB43: =CB31/CB33 -> 0 | CC43: =CC31/CC33 -> 0 | CD43: =CD31/CD33 -> 0 | CE43: =CE31/CE33 -> 0 | CF43: =CF31/CF33 -> 0 | CG43: =CG31/CG33 -> 0 | CH43: =CH31/CH33 -> 0 | CI43: =CI31/CI33 -> 0 | CJ43: =CJ31/CJ33 -> 0 | CK43: =CK31/CK33 -> 0 | CL43: =CL31/CL33 -> 0 | CM43: =CM31/CM33 -> 0 | CN43: =CN31/CN33 -> 0 | CO43: =CO31/CO33 -> 0 | CP43: =CP31/CP33 -> 0 | CQ43: =CQ31/CQ33 -> 0 | CR43: =CR31/CR33 -> 0 | CS43: =CS31/CS33 -> 0 | CT43: =CT31/CT33 -> 0 | CU43: =CU31/CU33 -> 0 | CV43: =CV31/CV33 -> 0 | CW43: =CW31/CW33 -> 0 | CX43: =CX31/CX33 -> 0 | CY43: =CY31/CY33 -> 0 | CZ43: =CZ31/CZ33 -> 0 | DA43: =DA31/DA33 -> 0 | DB43: =DB31/DB33 -> 0 | DC43: =DC31/DC33 -> 0 | DD43: =DD31/DD33 -> 0 | DE43: =DE31/DE33 -> 0 | DF43: =DF31/DF33 -> 0 | DG43: =DG31/DG33 -> 0 | DH43: =DH31/DH33 -> 0 | DI43: =DI31/DI33 -> 0 | DJ43: =DJ31/DJ33 -> 0 | DK43: =DK31/DK33 -> 0 | DL43: =DL31/DL33 -> 0 | DM43: =DM31/DM33 -> 0 | DN43: =DN31/DN33 -> 0 | DO43: =DO31/DO33 -> 0 | DP43: =DP31/DP33 -> 0 | DQ43: =DQ31/DQ33 -> 0 | DR43: =DR31/DR33 -> 0 | DS43: =DS31/DS33 -> 0 | DT43: =DT31/DT33 -> 0 | DU43: =DU31/DU33 -> 0 | DV43: =DV31/DV33 -> 0 | DW43: =DW31/DW33 -> 0 | DX43: =DX31/DX33 -> 0 | DY43: =DY31/DY33 -> 0 | DZ43: =DZ31/DZ33 -> 0 | EA43: =EA31/EA33 -> 0 | EB43: =EB31/EB33 -> 0 | EC43: =EC31/EC33 -> 0 | ED43: =ED31/ED33 -> 0 | EE43: =EE31/EE33 -> 0 | EF43: =EF31/EF33 -> 0 | EG43: =EG31/EG33 -> 0 | EH43: =EH31/EH33 -> 0 | EI43: =EI31/EI33 -> 0 | EJ43: =EJ31/EJ33 -> 0 | EK43: =EK31/EK33 -> 0 | EL43: =EL31/EL33 -> 0 | EM43: =EM31/EM33 -> 0 | EN43: =EN31/EN33 -> 0 | EO43: =EO31/EO33 -> 0 | EP43: =EP31/EP33 -> 0 | EQ43: =EQ31/EQ33 -> 0 | ER43: =ER31/ER33 -> 0 | ES43: =ES31/ES33 -> 0 | ET43: =ET31/ET33 -> 0 | EU43: =EU31/EU33 -> 0 | EV43: =EV31/EV33 -> 0 | EW43: =EW31/EW33 -> 0 | EX43: =EX31/EX33 -> 0 | EY43: =EY31/EY33 -> 0 | EZ43: =EZ31/EZ33 -> 0 | FA43: =FA31/FA33 -> 0 | FB43: =FB31/FB33 -> 0
B44: 2.19 | C44: Premium | D44: =D32/D33 -> 677.2865 | E44: =E32/E33 -> 0 | F44: =F32/F33 -> 0 | G44: =G32/G33 -> 0 | H44: =H32/H33 -> 0 | I44: =I32/I33 -> 0 | J44: =J32/J33 -> 0 | K44: =K32/K33 -> 0 | L44: =L32/L33 -> 0 | M44: =M32/M33 -> 0 | N44: =N32/N33 -> 0 | O44: =O32/O33 -> 0 | P44: =P32/P33 -> 0 | Q44: =Q32/Q33 -> 0 | R44: =R32/R33 -> 0 | S44: =S32/S33 -> 0 | T44: =T32/T33 -> 0 | U44: =U32/U33 -> 0 | V44: =V32/V33 -> 0 | W44: =W32/W33 -> 0 | X44: =X32/X33 -> 0 | Y44: =Y32/Y33 -> 0 | Z44: =Z32/Z33 -> 0 | AA44: =AA32/AA33 -> 0 | AB44: =AB32/AB33 -> 0 | AC44: =AC32/AC33 -> 0 | AD44: =AD32/AD33 -> 0 | AE44: =AE32/AE33 -> 0 | AF44: =AF32/AF33 -> 0 | AG44: =AG32/AG33 -> 0 | AH44: =AH32/AH33 -> 0 | AI44: =AI32/AI33 -> 0 | AJ44: =AJ32/AJ33 -> 0 | AK44: =AK32/AK33 -> 0 | AL44: =AL32/AL33 -> 0 | AM44: =AM32/AM33 -> 0 | AN44: =AN32/AN33 -> 0 | AO44: =AO32/AO33 -> 0 | AP44: =AP32/AP33 -> 0 | AQ44: =AQ32/AQ33 -> 0 | AR44: =AR32/AR33 -> 0 | AS44: =AS32/AS33 -> 0 | AT44: =AT32/AT33 -> 0 | AU44: =AU32/AU33 -> 0 | AV44: =AV32/AV33 -> 0 | AW44: =AW32/AW33 -> 0 | AX44: =AX32/AX33 -> 0 | AY44: =AY32/AY33 -> 0 | AZ44: =AZ32/AZ33 -> 0 | BA44: =BA32/BA33 -> 0 | BB44: =BB32/BB33 -> 0 | BC44: =BC32/BC33 -> 0 | BD44: =BD32/BD33 -> 0 | BE44: =BE32/BE33 -> 0 | BF44: =BF32/BF33 -> 0 | BG44: =BG32/BG33 -> 0 | BH44: =BH32/BH33 -> 0 | BI44: =BI32/BI33 -> 0 | BJ44: =BJ32/BJ33 -> 0 | BK44: =BK32/BK33 -> 0 | BL44: =BL32/BL33 -> 0 | BM44: =BM32/BM33 -> 0 | BN44: =BN32/BN33 -> 0 | BO44: =BO32/BO33 -> 0 | BP44: =BP32/BP33 -> 0 | BQ44: =BQ32/BQ33 -> 0 | BR44: =BR32/BR33 -> 0 | BS44: =BS32/BS33 -> 0 | BT44: =BT32/BT33 -> 0 | BU44: =BU32/BU33 -> 0 | BV44: =BV32/BV33 -> 0 | BW44: =BW32/BW33 -> 0 | BX44: =BX32/BX33 -> 0 | BY44: =BY32/BY33 -> 0 | BZ44: =BZ32/BZ33 -> 0 | CA44: =CA32/CA33 -> 0 | CB44: =CB32/CB33 -> 0 | CC44: =CC32/CC33 -> 0 | CD44: =CD32/CD33 -> 0 | CE44: =CE32/CE33 -> 0 | CF44: =CF32/CF33 -> 0 | CG44: =CG32/CG33 -> 0 | CH44: =CH32/CH33 -> 0 | CI44: =CI32/CI33 -> 0 | CJ44: =CJ32/CJ33 -> 0 | CK44: =CK32/CK33 -> 0 | CL44: =CL32/CL33 -> 0 | CM44: =CM32/CM33 -> 0 | CN44: =CN32/CN33 -> 0 | CO44: =CO32/CO33 -> 0 | CP44: =CP32/CP33 -> 0 | CQ44: =CQ32/CQ33 -> 0 | CR44: =CR32/CR33 -> 0 | CS44: =CS32/CS33 -> 0 | CT44: =CT32/CT33 -> 0 | CU44: =CU32/CU33 -> 0 | CV44: =CV32/CV33 -> 0 | CW44: =CW32/CW33 -> 0 | CX44: =CX32/CX33 -> 0 | CY44: =CY32/CY33 -> 0 | CZ44: =CZ32/CZ33 -> 0 | DA44: =DA32/DA33 -> 0 | DB44: =DB32/DB33 -> 0 | DC44: =DC32/DC33 -> 0 | DD44: =DD32/DD33 -> 0 | DE44: =DE32/DE33 -> 0 | DF44: =DF32/DF33 -> 0 | DG44: =DG32/DG33 -> 0 | DH44: =DH32/DH33 -> 0 | DI44: =DI32/DI33 -> 0 | DJ44: =DJ32/DJ33 -> 0 | DK44: =DK32/DK33 -> 0 | DL44: =DL32/DL33 -> 0 | DM44: =DM32/DM33 -> 0 | DN44: =DN32/DN33 -> 0 | DO44: =DO32/DO33 -> 0 | DP44: =DP32/DP33 -> 0 | DQ44: =DQ32/DQ33 -> 0 | DR44: =DR32/DR33 -> 0 | DS44: =DS32/DS33 -> 0 | DT44: =DT32/DT33 -> 0 | DU44: =DU32/DU33 -> 0 | DV44: =DV32/DV33 -> 0 | DW44: =DW32/DW33 -> 0 | DX44: =DX32/DX33 -> 0 | DY44: =DY32/DY33 -> 0 | DZ44: =DZ32/DZ33 -> 0 | EA44: =EA32/EA33 -> 0 | EB44: =EB32/EB33 -> 0 | EC44: =EC32/EC33 -> 0 | ED44: =ED32/ED33 -> 0 | EE44: =EE32/EE33 -> 0 | EF44: =EF32/EF33 -> 0 | EG44: =EG32/EG33 -> 0 | EH44: =EH32/EH33 -> 0 | EI44: =EI32/EI33 -> 0 | EJ44: =EJ32/EJ33 -> 0 | EK44: =EK32/EK33 -> 0 | EL44: =EL32/EL33 -> 0 | EM44: =EM32/EM33 -> 0 | EN44: =EN32/EN33 -> 0 | EO44: =EO32/EO33 -> 0 | EP44: =EP32/EP33 -> 0 | EQ44: =EQ32/EQ33 -> 0 | ER44: =ER32/ER33 -> 0 | ES44: =ES32/ES33 -> 0 | ET44: =ET32/ET33 -> 0 | EU44: =EU32/EU33 -> 0 | EV44: =EV32/EV33 -> 0 | EW44: =EW32/EW33 -> 0 | EX44: =EX32/EX33 -> 0 | EY44: =EY32/EY33 -> 0 | EZ44: =EZ32/EZ33 -> 0 | FA44: =FA32/FA33 -> 0 | FB44: =FB32/FB33 -> 0
C46: Section III: Plan Adjustment Factors
B47: 3.1 | C47: Plan ID (Standard Component ID) | E47: =E13 -> 0 | F47: =F13 -> 0 | G47: =G13 -> 0 | H47: =H13 -> 0 | I47: =I13 -> 0 | J47: =J13 -> 0 | K47: =K13 -> 0 | L47: =L13 -> 0 | M47: =M13 -> 0 | N47: =N13 -> 0 | O47: =O13 -> 0 | P47: =P13 -> 0 | Q47: =Q13 -> 0 | R47: =R13 -> 0 | S47: =S13 -> 0 | T47: =T13 -> 0 | U47: =U13 -> 0 | V47: =V13 -> 0 | W47: =W13 -> 0 | X47: =X13 -> 0 | Y47: =Y13 -> 0 | Z47: =Z13 -> 0 | AA47: =AA13 -> 0 | AB47: =AB13 -> 0 | AC47: =AC13 -> 0 | AD47: =AD13 -> 0 | AE47: =AE13 -> 0 | AF47: =AF13 -> 0 | AG47: =AG13 -> 0 | AH47: =AH13 -> 0 | AI47: =AI13 -> 0 | AJ47: =AJ13 -> 0 | AK47: =AK13 -> 0 | AL47: =AL13 -> 0 | AM47: =AM13 -> 0 | AN47: =AN13 -> 0 | AO47: =AO13 -> 0 | AP47: =AP13 -> 0 | AQ47: =AQ13 -> 0 | AR47: =AR13 -> 0 | AS47: =AS13 -> 0 | AT47: =AT13 -> 0 | AU47: =AU13 -> 0 | AV47: =AV13 -> 0 | AW47: =AW13 -> 0 | AX47: =AX13 -> 0 | AY47: =AY13 -> 0 | AZ47: =AZ13 -> 0 | BA47: =BA13 -> 0 | BB47: =BB13 -> 0 | BC47: =BC13 -> 0 | BD47: =BD13 -> 0 | BE47: =BE13 -> 0 | BF47: =BF13 -> 0 | BG47: =BG13 -> 0 | BH47: =BH13 -> 0 | BI47: =BI13 -> 0 | BJ47: =BJ13 -> 0 | BK47: =BK13 -> 0 | BL47: =BL13 -> 0 | BM47: =BM13 -> 0 | BN47: =BN13 -> 0 | BO47: =BO13 -> 0 | BP47: =BP13 -> 0 | BQ47: =BQ13 -> 0 | BR47: =BR13 -> 0 | BS47: =BS13 -> 0 | BT47: =BT13 -> 0 | BU47: =BU13 -> 0 | BV47: =BV13 -> 0 | BW47: =BW13 -> 0 | BX47: =BX13 -> 0 | BY47: =BY13 -> 0 | BZ47: =BZ13 -> 0 | CA47: =CA13 -> 0 | CB47: =CB13 -> 0 | CC47: =CC13 -> 0 | CD47: =CD13 -> 0 | CE47: =CE13 -> 0 | CF47: =CF13 -> 0 | CG47: =CG13 -> 0 | CH47: =CH13 -> 0 | CI47: =CI13 -> 0 | CJ47: =CJ13 -> 0 | CK47: =CK13 -> 0 | CL47: =CL13 -> 0 | CM47: =CM13 -> 0 | CN47: =CN13 -> 0 | CO47: =CO13 -> 0 | CP47: =CP13 -> 0 | CQ47: =CQ13 -> 0 | CR47: =CR13 -> 0 | CS47: =CS13 -> 0 | CT47: =CT13 -> 0 | CU47: =CU13 -> 0 | CV47: =CV13 -> 0 | CW47: =CW13 -> 0 | CX47: =CX13 -> 0 | CY47: =CY13 -> 0 | CZ47: =CZ13 -> 0 | DA47: =DA13 -> 0 | DB47: =DB13 -> 0 | DC47: =DC13 -> 0 | DD47: =DD13 -> 0 | DE47: =DE13 -> 0 | DF47: =DF13 -> 0 | DG47: =DG13 -> 0 | DH47: =DH13 -> 0 | DI47: =DI13 -> 0 | DJ47: =DJ13 -> 0 | DK47: =DK13 -> 0 | DL47: =DL13 -> 0 | DM47: =DM13 -> 0 | DN47: =DN13 -> 0 | DO47: =DO13 -> 0 | DP47: =DP13 -> 0 | DQ47: =DQ13 -> 0 | DR47: =DR13 -> 0 | DS47: =DS13 -> 0 | DT47: =DT13 -> 0 | DU47: =DU13 -> 0 | DV47: =DV13 -> 0 | DW47: =DW13 -> 0 | DX47: =DX13 -> 0 | DY47: =DY13 -> 0 | DZ47: =DZ13 -> 0 | EA47: =EA13 -> 0 | EB47: =EB13 -> 0 | EC47: =EC13 -> 0 | ED47: =ED13 -> 0 | EE47: =EE13 -> 0 | EF47: =EF13 -> 0 | EG47: =EG13 -> 0 | EH47: =EH13 -> 0 | EI47: =EI13 -> 0 | EJ47: =EJ13 -> 0 | EK47: =EK13 -> 0 | EL47: =EL13 -> 0 | EM47: =EM13 -> 0 | EN47: =EN13 -> 0 | EO47: =EO13 -> 0 | EP47: =EP13 -> 0 | EQ47: =EQ13 -> 0 | ER47: =ER13 -> 0 | ES47: =ES13 -> 0 | ET47: =ET13 -> 0 | EU47: =EU13 -> 0 | EV47: =EV13 -> 0 | EW47: =EW13 -> 0 | EX47: =EX13 -> 0 | EY47: =EY13 -> 0 | EZ47: =EZ13 -> 0 | FA47: =FA13 -> 0 | FB47: =FB13 -> 0
B48: 3.2 | C48: Market Adjusted Index Rate | E48: ='Wksh 1 - Market Experience'!F46 -> 0
B49: 3.3 | C49: AV and Cost Sharing Design of Plan | E49: 0 | F49: 0 | G49: 0 | H49: 0 | I49: 0 | J49: 0 | K49: 0 | L49: 0 | M49: 0 | N49: 0 | O49: 0 | P49: 0 | Q49: 0 | R49: 0 | S49: 0 | T49: 0 | U49: 0 | V49: 0 | W49: 0 | X49: 0 | Y49: 0 | Z49: 0 | AA49: 0 | AB49: 0 | AC49: 0 | AD49: 0 | AE49: 0 | AF49: 0 | AG49: 0 | AH49: 0 | AI49: 0 | AJ49: 0.8501 | AK49: 0.8381 | AL49: 0.7988 | AM49: 0.8186 | AN49: 0.8178 | AO49: 0.8076 | AP49: 0.8071 | AQ49: 0.7862 | AR49: 0.68 | AS49: 0.8714 | AT49: 0.808 | AU49: 1.0191 | AV49: 0.9675 | AW49: 0.8306 | AX49: 0.7991 | AY49: 0.8353 | AZ49: 0.7949 | BA49: 0.7815 | BB49: 0.724 | BC49: 0 | BD49: 0 | BE49: 0 | BF49: 0 | BG49: 0 | BH49: 0 | BI49: 0 | BJ49: 0 | BK49: 0 | BL49: 0 | BM49: 0 | BN49: 0 | BO49: 0 | BP49: 0 | BQ49: 0 | BR49: 0 | BS49: 0 | BT49: 0 | BU49: 0 | BV49: 0 | BW49: 0 | BX49: 0 | BY49: 0 | BZ49: 0 | CA49: 0 | CB49: 0 | CC49: 0 | CD49: 0 | CE49: 0 | CF49: 0 | CG49: 0 | CH49: 0 | CI49: 0 | CJ49: 0 | CK49: 0 | CL49: 0 | CM49: 0 | CN49: 0 | CO49: 0 | CP49: 0 | CQ49: 0 | CR49: 0 | CS49: 0.8407 | CT49: 0.8038 | CU49: 0.7474 | CV49: 0.6834 | CW49: 0.7152 | CX49: 0.8285 | CY49: 0.8083 | CZ49: 0.798 | DA49: 0.7975 | DB49: 0.7882 | DC49: 0.7758 | DD49: 0.6703 | DE49: 0.8625 | DF49: 0.7988 | DG49: 1.0096 | DH49: 0.958 | DI49: 0.8211 | DJ49: 0.7898 | DK49: 0.8265 | DL49: 0.8097 | DM49: 0.7861 | DN49: 0.7726 | DO49: 0.787 | DP49: 0.7681 | DQ49: 0.7584 | DR49: 0.7579 | DS49: 0.7354 | DT49: 0.6357 | DU49: 0.8196 | DV49: 0.7592 | DW49: 0.9639 | DX49: 0.9151 | DY49: 0.7853 | DZ49: 0.7555 | EA49: 0.7903 | EB49: 0.7744 | EC49: 0.7521 | ED49: 0.7392 | EE49: 0 | EF49: 0 | EG49: 0 | EH49: 0 | EI49: 0 | EJ49: 0 | EK49: 0 | EL49: 0 | EM49: 0 | EN49: 0 | EO49: 0 | EP49: 0 | EQ49: 0 | ER49: 0 | ES49: 0 | ET49: 0 | EU49: 0 | EV49: 0 | EW49: 0 | EX49: 0 | EY49: 0 | EZ49: 0 | FA49: 0 | FB49: 0
B50: 3.4 | C50: Provider Network Adjustment | E50: 1 | F50: 1 | G50: 1 | H50: 1 | I50: 1 | J50: 1 | K50: 1 | L50: 1 | M50: 1 | N50: 1 | O50: 1 | P50: 1 | Q50: 1 | R50: 1 | S50: 1 | T50: 1 | U50: 1 | V50: 1 | W50: 1 | X50: 1 | Y50: 1 | Z50: 1 | AA50: 1 | AB50: 1 | AC50: 1 | AD50: 1 | AE50: 1 | AF50: 1 | AG50: 1 | AH50: 1 | AI50: 1 | AJ50: 1 | AK50: 1 | AL50: 1 | AM50: 1 | AN50: 1 | AO50: 1 | AP50: 1 | AQ50: 1 | AR50: 1 | AS50: 1 | AT50: 1 | AU50: 1 | AV50: 1 | AW50: 1 | AX50: 1 | AY50: 1 | AZ50: 1 | BA50: 1 | BB50: 1 | BC50: 1 | BD50: 1 | BE50: 1 | BF50: 1 | BG50: 1 | BH50: 1 | BI50: 1 | BJ50: 1 | BK50: 1 | BL50: 1 | BM50: 1 | BN50: 1 | BO50: 1 | BP50: 1 | BQ50: 1 | BR50: 1 | BS50: 1 | BT50: 1 | BU50: 1 | BV50: 1 | BW50: 1 | BX50: 1 | BY50: 1 | BZ50: 1 | CA50: 1 | CB50: 1 | CC50: 1 | CD50: 1 | CE50: 1 | CF50: 1 | CG50: 1 | CH50: 1 | CI50: 1 | CJ50: 1 | CK50: 1 | CL50: 1 | CM50: 1 | CN50: 1 | CO50: 1 | CP50: 1 | CQ50: 1 | CR50: 1 | CS50: 1 | CT50: 1 | CU50: 1 | CV50: 1 | CW50: 1 | CX50: 1 | CY50: 1 | CZ50: 1 | DA50: 1 | DB50: 1 | DC50: 1 | DD50: 1 | DE50: 1 | DF50: 1 | DG50: 1 | DH50: 1 | DI50: 1 | DJ50: 1 | DK50: 1 | DL50: 1 | DM50: 1 | DN50: 1 | DO50: 1 | DP50: 1 | DQ50: 1 | DR50: 1 | DS50: 1 | DT50: 1 | DU50: 1 | DV50: 1 | DW50: 1 | DX50: 1 | DY50: 1 | DZ50: 1 | EA50: 1 | EB50: 1 | EC50: 1 | ED50: 1 | EE50: 1 | EF50: 1 | EG50: 1 | EH50: 1 | EI50: 1 | EJ50: 1 | EK50: 1 | EL50: 1 | EM50: 1 | EN50: 1 | EO50: 1 | EP50: 1 | EQ50: 1 | ER50: 1 | ES50: 1 | ET50: 1 | EU50: 1 | EV50: 1 | EW50: 1 | EX50: 1 | EY50: 1 | EZ50: 1 | FA50: 1 | FB50: 1
B51: 3.5 | C51: Benefits in Addition to EHB | E51: 1 | F51: 1 | G51: 1 | H51: 1 | I51: 1 | J51: 1 | K51: 1 | L51: 1 | M51: 1 | N51: 1 | O51: 1 | P51: 1 | Q51: 1 | R51: 1 | S51: 1 | T51: 1 | U51: 1 | V51: 1 | W51: 1 | X51: 1 | Y51: 1 | Z51: 1 | AA51: 1 | AB51: 1 | AC51: 1 | AD51: 1 | AE51: 1 | AF51: 1 | AG51: 1 | AH51: 1 | AI51: 1 | AJ51: 1 | AK51: 1 | AL51: 1 | AM51: 1 | AN51: 1 | AO51: 1 | AP51: 1 | AQ51: 1 | AR51: 1 | AS51: 1 | AT51: 1 | AU51: 1 | AV51: 1 | AW51: 1 | AX51: 1 | AY51: 1 | AZ51: 1 | BA51: 1 | BB51: 1 | BC51: 1 | BD51: 1 | BE51: 1 | BF51: 1 | BG51: 1 | BH51: 1 | BI51: 1 | BJ51: 1 | BK51: 1 | BL51: 1 | BM51: 1 | BN51: 1 | BO51: 1 | BP51: 1 | BQ51: 1 | BR51: 1 | BS51: 1 | BT51: 1 | BU51: 1 | BV51: 1 | BW51: 1 | BX51: 1 | BY51: 1 | BZ51: 1 | CA51: 1 | CB51: 1 | CC51: 1 | CD51: 1 | CE51: 1 | CF51: 1 | CG51: 1 | CH51: 1 | CI51: 1 | CJ51: 1 | CK51: 1 | CL51: 1 | CM51: 1 | CN51: 1 | CO51: 1 | CP51: 1 | CQ51: 1 | CR51: 1 | CS51: 1 | CT51: 1 | CU51: 1 | CV51: 1 | CW51: 1 | CX51: 1 | CY51: 1 | CZ51: 1 | DA51: 1 | DB51: 1 | DC51: 1 | DD51: 1 | DE51: 1 | DF51: 1 | DG51: 1 | DH51: 1 | DI51: 1 | DJ51: 1 | DK51: 1 | DL51: 1 | DM51: 1 | DN51: 1 | DO51: 1 | DP51: 1 | DQ51: 1 | DR51: 1 | DS51: 1 | DT51: 1 | DU51: 1 | DV51: 1 | DW51: 1 | DX51: 1 | DY51: 1 | DZ51: 1 | EA51: 1 | EB51: 1 | EC51: 1 | ED51: 1 | EE51: 1 | EF51: 1 | EG51: 1 | EH51: 1 | EI51: 1 | EJ51: 1 | EK51: 1 | EL51: 1 | EM51: 1 | EN51: 1 | EO51: 1 | EP51: 1 | EQ51: 1 | ER51: 1 | ES51: 1 | ET51: 1 | EU51: 1 | EV51: 1 | EW51: 1 | EX51: 1 | EY51: 1 | EZ51: 1 | FA51: 1 | FB51: 1
C52: Administrative Costs
B53: 3.6 | C53: Administrative Expense | E53: 0 | F53: 0 | G53: 0 | H53: 0 | I53: 0 | J53: 0 | K53: 0 | L53: 0 | M53: 0 | N53: 0 | O53: 0 | P53: 0 | Q53: 0 | R53: 0 | S53: 0 | T53: 0 | U53: 0 | V53: 0 | W53: 0 | X53: 0 | Y53: 0 | Z53: 0 | AA53: 0 | AB53: 0 | AC53: 0 | AD53: 0 | AE53: 0 | AF53: 0 | AG53: 0 | AH53: 0 | AI53: 0 | AJ53: 0.0858 | AK53: 0.0869 | AL53: 0.0903 | AM53: 0.0885 | AN53: 0.0885 | AO53: 0.0895 | AP53: 0.0895 | AQ53: 0.0914 | AR53: 0.1025 | AS53: 0.0841 | AT53: 0.0895 | AU53: 0.0738 | AV53: 0.0772 | AW53: 0.0874 | AX53: 0.0903 | AY53: 0.0871 | AZ53: 0.0906 | BA53: 0.0918 | BB53: 0.0976 | BC53: 0 | BD53: 0 | BE53: 0 | BF53: 0 | BG53: 0 | BH53: 0 | BI53: 0 | BJ53: 0 | BK53: 0 | BL53: 0 | BM53: 0 | BN53: 0 | BO53: 0 | BP53: 0 | BQ53: 0 | BR53: 0 | BS53: 0 | BT53: 0 | BU53: 0 | BV53: 0 | BW53: 0 | BX53: 0 | BY53: 0 | BZ53: 0 | CA53: 0 | CB53: 0 | CC53: 0 | CD53: 0 | CE53: 0 | CF53: 0 | CG53: 0 | CH53: 0 | CI53: 0 | CJ53: 0 | CK53: 0 | CL53: 0 | CM53: 0 | CN53: 0 | CO53: 0 | CP53: 0 | CQ53: 0 | CR53: 0 | CS53: 0.0866 | CT53: 0.0898 | CU53: 0.0952 | CV53: 0.1021 | CW53: 0.0985 | CX53: 0.0877 | CY53: 0.0895 | CZ53: 0.0903 | DA53: 0.0904 | DB53: 0.0912 | DC53: 0.0924 | DD53: 0.1037 | DE53: 0.0848 | DF53: 0.0903 | DG53: 0.0745 | DH53: 0.0778 | DI53: 0.0882 | DJ53: 0.0911 | DK53: 0.0878 | DL53: 0.0893 | DM53: 0.0914 | DN53: 0.0927 | DO53: 0.0913 | DP53: 0.0932 | DQ53: 0.0941 | DR53: 0.0942 | DS53: 0.0964 | DT53: 0.108 | DU53: 0.0884 | DV53: 0.0941 | DW53: 0.0773 | DX53: 0.0808 | DY53: 0.0915 | DZ53: 0.0944 | EA53: 0.0911 | EB53: 0.0925 | EC53: 0.0948 | ED53: 0.096 | EE53: 0 | EF53: 0 | EG53: 0 | EH53: 0 | EI53: 0 | EJ53: 0 | EK53: 0 | EL53: 0 | EM53: 0 | EN53: 0 | EO53: 0 | EP53: 0 | EQ53: 0 | ER53: 0 | ES53: 0 | ET53: 0 | EU53: 0 | EV53: 0 | EW53: 0 | EX53: 0 | EY53: 0 | EZ53: 0 | FA53: 0 | FB53: 0
B54: 3.7 | C54: Taxes and Fees | E54: 0 | F54: 0 | G54: 0 | H54: 0 | I54: 0 | J54: 0 | K54: 0 | L54: 0 | M54: 0 | N54: 0 | O54: 0 | P54: 0 | Q54: 0 | R54: 0 | S54: 0 | T54: 0 | U54: 0 | V54: 0 | W54: 0 | X54: 0 | Y54: 0 | Z54: 0 | AA54: 0 | AB54: 0 | AC54: 0 | AD54: 0 | AE54: 0 | AF54: 0 | AG54: 0 | AH54: 0 | AI54: 0 | AJ54: 0.0323 | AK54: 0.0326 | AL54: 0.0339 | AM54: 0.0333 | AN54: 0.0333 | AO54: 0.0336 | AP54: 0.0337 | AQ54: 0.0344 | AR54: 0.0386 | AS54: 0.0316 | AT54: 0.0336 | AU54: 0.0278 | AV54: 0.029 | AW54: 0.0329 | AX54: 0.0339 | AY54: 0.0327 | AZ54: 0.0341 | BA54: 0.0346 | BB54: 0.0367 | BC54: 0 | BD54: 0 | BE54: 0 | BF54: 0 | BG54: 0 | BH54: 0 | BI54: 0 | BJ54: 0 | BK54: 0 | BL54: 0 | BM54: 0 | BN54: 0 | BO54: 0 | BP54: 0 | BQ54: 0 | BR54: 0 | BS54: 0 | BT54: 0 | BU54: 0 | BV54: 0 | BW54: 0 | BX54: 0 | BY54: 0 | BZ54: 0 | CA54: 0 | CB54: 0 | CC54: 0 | CD54: 0 | CE54: 0 | CF54: 0 | CG54: 0 | CH54: 0 | CI54: 0 | CJ54: 0 | CK54: 0 | CL54: 0 | CM54: 0 | CN54: 0 | CO54: 0 | CP54: 0 | CQ54: 0 | CR54: 0 | CS54: 0.0326 | CT54: 0.0338 | CU54: 0.0358 | CV54: 0.0384 | CW54: 0.0371 | CX54: 0.033 | CY54: 0.0336 | CZ54: 0.034 | DA54: 0.034 | DB54: 0.0343 | DC54: 0.0347 | DD54: 0.039 | DE54: 0.0319 | DF54: 0.0339 | DG54: 0.028 | DH54: 0.0292 | DI54: 0.0332 | DJ54: 0.0343 | DK54: 0.033 | DL54: 0.0336 | DM54: 0.0344 | DN54: 0.0349 | DO54: 0.0344 | DP54: 0.035 | DQ54: 0.0354 | DR54: 0.0354 | DS54: 0.0363 | DT54: 0.0406 | DU54: 0.0333 | DV54: 0.0354 | DW54: 0.0291 | DX54: 0.0304 | DY54: 0.0344 | DZ54: 0.0355 | EA54: 0.0342 | EB54: 0.0348 | EC54: 0.0356 | ED54: 0.0361 | EE54: 0 | EF54: 0 | EG54: 0 | EH54: 0 | EI54: 0 | EJ54: 0 | EK54: 0 | EL54: 0 | EM54: 0 | EN54: 0 | EO54: 0 | EP54: 0 | EQ54: 0 | ER54: 0 | ES54: 0 | ET54: 0 | EU54: 0 | EV54: 0 | EW54: 0 | EX54: 0 | EY54: 0 | EZ54: 0 | FA54: 0 | FB54: 0
B55: 3.8 | C55: Profit & Risk Load | E55: 0 | F55: 0 | G55: 0 | H55: 0 | I55: 0 | J55: 0 | K55: 0 | L55: 0 | M55: 0 | N55: 0 | O55: 0 | P55: 0 | Q55: 0 | R55: 0 | S55: 0 | T55: 0 | U55: 0 | V55: 0 | W55: 0 | X55: 0 | Y55: 0 | Z55: 0 | AA55: 0 | AB55: 0 | AC55: 0 | AD55: 0 | AE55: 0 | AF55: 0 | AG55: 0 | AH55: 0 | AI55: 0 | AJ55: 0.0661 | AK55: 0.0668 | AL55: 0.0695 | AM55: 0.0681 | AN55: 0.0682 | AO55: 0.0689 | AP55: 0.0689 | AQ55: 0.0704 | AR55: 0.079 | AS55: 0.0648 | AT55: 0.0689 | AU55: 0.0569 | AV55: 0.0594 | AW55: 0.0673 | AX55: 0.0695 | AY55: 0.067 | AZ55: 0.0698 | BA55: 0.0708 | BB55: 0.0752 | BC55: 0 | BD55: 0 | BE55: 0 | BF55: 0 | BG55: 0 | BH55: 0 | BI55: 0 | BJ55: 0 | BK55: 0 | BL55: 0 | BM55: 0 | BN55: 0 | BO55: 0 | BP55: 0 | BQ55: 0 | BR55: 0 | BS55: 0 | BT55: 0 | BU55: 0 | BV55: 0 | BW55: 0 | BX55: 0 | BY55: 0 | BZ55: 0 | CA55: 0 | CB55: 0 | CC55: 0 | CD55: 0 | CE55: 0 | CF55: 0 | CG55: 0 | CH55: 0 | CI55: 0 | CJ55: 0 | CK55: 0 | CL55: 0 | CM55: 0 | CN55: 0 | CO55: 0 | CP55: 0 | CQ55: 0 | CR55: 0 | CS55: 0.0667 | CT55: 0.0692 | CU55: 0.0733 | CV55: 0.0787 | CW55: 0.0759 | CX55: 0.0675 | CY55: 0.0688 | CZ55: 0.0695 | DA55: 0.0696 | DB55: 0.0703 | DC55: 0.0712 | DD55: 0.0798 | DE55: 0.0653 | DF55: 0.0695 | DG55: 0.0573 | DH55: 0.0599 | DI55: 0.068 | DJ55: 0.0702 | DK55: 0.0676 | DL55: 0.0687 | DM55: 0.0704 | DN55: 0.0714 | DO55: 0.0704 | DP55: 0.0717 | DQ55: 0.0725 | DR55: 0.0725 | DS55: 0.0743 | DT55: 0.0832 | DU55: 0.0681 | DV55: 0.0724 | DW55: 0.0596 | DX55: 0.0622 | DY55: 0.0705 | DZ55: 0.0727 | EA55: 0.0701 | EB55: 0.0713 | EC55: 0.0729 | ED55: 0.074 | EE55: 0 | EF55: 0 | EG55: 0 | EH55: 0 | EI55: 0 | EJ55: 0 | EK55: 0 | EL55: 0 | EM55: 0 | EN55: 0 | EO55: 0 | EP55: 0 | EQ55: 0 | ER55: 0 | ES55: 0 | ET55: 0 | EU55: 0 | EV55: 0 | EW55: 0 | EX55: 0 | EY55: 0 | EZ55: 0 | FA55: 0 | FB55: 0
B56: 3.9 | C56: Catastrophic Adjustment | E56: 1 | F56: 1 | G56: 1 | H56: 1 | I56: 1 | J56: 1 | K56: 1 | L56: 1 | M56: 1 | N56: 1 | O56: 1 | P56: 1 | Q56: 1 | R56: 1 | S56: 1 | T56: 1 | U56: 1 | V56: 1 | W56: 1 | X56: 1 | Y56: 1 | Z56: 1 | AA56: 1 | AB56: 1 | AC56: 1 | AD56: 1 | AE56: 1 | AF56: 1 | AG56: 1 | AH56: 1 | AI56: 1 | AJ56: 1 | AK56: 1 | AL56: 1 | AM56: 1 | AN56: 1 | AO56: 1 | AP56: 1 | AQ56: 1 | AR56: 1 | AS56: 1 | AT56: 1 | AU56: 1 | AV56: 1 | AW56: 1 | AX56: 1 | AY56: 1 | AZ56: 1 | BA56: 1 | BB56: 1 | BC56: 1 | BD56: 1 | BE56: 1 | BF56: 1 | BG56: 1 | BH56: 1 | BI56: 1 | BJ56: 1 | BK56: 1 | BL56: 1 | BM56: 1 | BN56: 1 | BO56: 1 | BP56: 1 | BQ56: 1 | BR56: 1 | BS56: 1 | BT56: 1 | BU56: 1 | BV56: 1 | BW56: 1 | BX56: 1 | BY56: 1 | BZ56: 1 | CA56: 1 | CB56: 1 | CC56: 1 | CD56: 1 | CE56: 1 | CF56: 1 | CG56: 1 | CH56: 1 | CI56: 1 | CJ56: 1 | CK56: 1 | CL56: 1 | CM56: 1 | CN56: 1 | CO56: 1 | CP56: 1 | CQ56: 1 | CR56: 1 | CS56: 1 | CT56: 1 | CU56: 1 | CV56: 1 | CW56: 1 | CX56: 1 | CY56: 1 | CZ56: 1 | DA56: 1 | DB56: 1 | DC56: 1 | DD56: 1 | DE56: 1 | DF56: 1 | DG56: 1 | DH56: 1 | DI56: 1 | DJ56: 1 | DK56: 1 | DL56: 1 | DM56: 1 | DN56: 1 | DO56: 1 | DP56: 1 | DQ56: 1 | DR56: 1 | DS56: 1 | DT56: 1 | DU56: 1 | DV56: 1 | DW56: 1 | DX56: 1 | DY56: 1 | DZ56: 1 | EA56: 1 | EB56: 1 | EC56: 1 | ED56: 1 | EE56: 1 | EF56: 1 | EG56: 1 | EH56: 1 | EI56: 1 | EJ56: 1 | EK56: 1 | EL56: 1 | EM56: 1 | EN56: 1 | EO56: 1 | EP56: 1 | EQ56: 1 | ER56: 1 | ES56: 1 | ET56: 1 | EU56: 1 | EV56: 1 | EW56: 1 | EX56: 1 | EY56: 1 | EZ56: 1 | FA56: 1 | FB56: 1
B57: 3.10 | C57: Plan Adjusted Index Rate | E57: =($E$48*PRODUCT(E49:E51)*E56)/(1-SUM(E53:E55)) -> 0 | F57: =($E$48*PRODUCT(F49:F51)*F56)/(1-SUM(F53:F55)) -> 0 | G57: =($E$48*PRODUCT(G49:G51)*G56)/(1-SUM(G53:G55)) -> 0 | H57: =($E$48*PRODUCT(H49:H51)*H56)/(1-SUM(H53:H55)) -> 0 | I57: =($E$48*PRODUCT(I49:I51)*I56)/(1-SUM(I53:I55)) -> 0 | J57: =($E$48*PRODUCT(J49:J51)*J56)/(1-SUM(J53:J55)) -> 0 | K57: =($E$48*PRODUCT(K49:K51)*K56)/(1-SUM(K53:K55)) -> 0 | L57: =($E$48*PRODUCT(L49:L51)*L56)/(1-SUM(L53:L55)) -> 0 | M57: =($E$48*PRODUCT(M49:M51)*M56)/(1-SUM(M53:M55)) -> 0 | N57: =($E$48*PRODUCT(N49:N51)*N56)/(1-SUM(N53:N55)) -> 0 | O57: =($E$48*PRODUCT(O49:O51)*O56)/(1-SUM(O53:O55)) -> 0 | P57: =($E$48*PRODUCT(P49:P51)*P56)/(1-SUM(P53:P55)) -> 0 | Q57: =($E$48*PRODUCT(Q49:Q51)*Q56)/(1-SUM(Q53:Q55)) -> 0 | R57: =($E$48*PRODUCT(R49:R51)*R56)/(1-SUM(R53:R55)) -> 0 | S57: =($E$48*PRODUCT(S49:S51)*S56)/(1-SUM(S53:S55)) -> 0 | T57: =($E$48*PRODUCT(T49:T51)*T56)/(1-SUM(T53:T55)) -> 0 | U57: =($E$48*PRODUCT(U49:U51)*U56)/(1-SUM(U53:U55)) -> 0 | V57: =($E$48*PRODUCT(V49:V51)*V56)/(1-SUM(V53:V55)) -> 0 | W57: =($E$48*PRODUCT(W49:W51)*W56)/(1-SUM(W53:W55)) -> 0 | X57: =($E$48*PRODUCT(X49:X51)*X56)/(1-SUM(X53:X55)) -> 0 | Y57: =($E$48*PRODUCT(Y49:Y51)*Y56)/(1-SUM(Y53:Y55)) -> 0 | Z57: =($E$48*PRODUCT(Z49:Z51)*Z56)/(1-SUM(Z53:Z55)) -> 0 | AA57: =($E$48*PRODUCT(AA49:AA51)*AA56)/(1-SUM(AA53:AA55)) -> 0 | AB57: =($E$48*PRODUCT(AB49:AB51)*AB56)/(1-SUM(AB53:AB55)) -> 0 | AC57: =($E$48*PRODUCT(AC49:AC51)*AC56)/(1-SUM(AC53:AC55)) -> 0 | AD57: =($E$48*PRODUCT(AD49:AD51)*AD56)/(1-SUM(AD53:AD55)) -> 0 | AE57: =($E$48*PRODUCT(AE49:AE51)*AE56)/(1-SUM(AE53:AE55)) -> 0 | AF57: =($E$48*PRODUCT(AF49:AF51)*AF56)/(1-SUM(AF53:AF55)) -> 0 | AG57: =($E$48*PRODUCT(AG49:AG51)*AG56)/(1-SUM(AG53:AG55)) -> 0 | AH57: =($E$48*PRODUCT(AH49:AH51)*AH56)/(1-SUM(AH53:AH55)) -> 0 | AI57: =($E$48*PRODUCT(AI49:AI51)*AI56)/(1-SUM(AI53:AI55)) -> 0 | AJ57: =($E$48*PRODUCT(AJ49:AJ51)*AJ56)/(1-SUM(AJ53:AJ55)) -> 0 | AK57: =($E$48*PRODUCT(AK49:AK51)*AK56)/(1-SUM(AK53:AK55)) -> 0 | AL57: =($E$48*PRODUCT(AL49:AL51)*AL56)/(1-SUM(AL53:AL55)) -> 0 | AM57: =($E$48*PRODUCT(AM49:AM51)*AM56)/(1-SUM(AM53:AM55)) -> 0 | AN57: =($E$48*PRODUCT(AN49:AN51)*AN56)/(1-SUM(AN53:AN55)) -> 0 | AO57: =($E$48*PRODUCT(AO49:AO51)*AO56)/(1-SUM(AO53:AO55)) -> 0 | AP57: =($E$48*PRODUCT(AP49:AP51)*AP56)/(1-SUM(AP53:AP55)) -> 0 | AQ57: =($E$48*PRODUCT(AQ49:AQ51)*AQ56)/(1-SUM(AQ53:AQ55)) -> 0 | AR57: =($E$48*PRODUCT(AR49:AR51)*AR56)/(1-SUM(AR53:AR55)) -> 0 | AS57: =($E$48*PRODUCT(AS49:AS51)*AS56)/(1-SUM(AS53:AS55)) -> 0 | AT57: =($E$48*PRODUCT(AT49:AT51)*AT56)/(1-SUM(AT53:AT55)) -> 0 | AU57: =($E$48*PRODUCT(AU49:AU51)*AU56)/(1-SUM(AU53:AU55)) -> 0 | AV57: =($E$48*PRODUCT(AV49:AV51)*AV56)/(1-SUM(AV53:AV55)) -> 0 | AW57: =($E$48*PRODUCT(AW49:AW51)*AW56)/(1-SUM(AW53:AW55)) -> 0 | AX57: =($E$48*PRODUCT(AX49:AX51)*AX56)/(1-SUM(AX53:AX55)) -> 0 | AY57: =($E$48*PRODUCT(AY49:AY51)*AY56)/(1-SUM(AY53:AY55)) -> 0 | AZ57: =($E$48*PRODUCT(AZ49:AZ51)*AZ56)/(1-SUM(AZ53:AZ55)) -> 0 | BA57: =($E$48*PRODUCT(BA49:BA51)*BA56)/(1-SUM(BA53:BA55)) -> 0 | BB57: =($E$48*PRODUCT(BB49:BB51)*BB56)/(1-SUM(BB53:BB55)) -> 0 | BC57: =($E$48*PRODUCT(BC49:BC51)*BC56)/(1-SUM(BC53:BC55)) -> 0 | BD57: =($E$48*PRODUCT(BD49:BD51)*BD56)/(1-SUM(BD53:BD55)) -> 0 | BE57: =($E$48*PRODUCT(BE49:BE51)*BE56)/(1-SUM(BE53:BE55)) -> 0 | BF57: =($E$48*PRODUCT(BF49:BF51)*BF56)/(1-SUM(BF53:BF55)) -> 0 | BG57: =($E$48*PRODUCT(BG49:BG51)*BG56)/(1-SUM(BG53:BG55)) -> 0 | BH57: =($E$48*PRODUCT(BH49:BH51)*BH56)/(1-SUM(BH53:BH55)) -> 0 | BI57: =($E$48*PRODUCT(BI49:BI51)*BI56)/(1-SUM(BI53:BI55)) -> 0 | BJ57: =($E$48*PRODUCT(BJ49:BJ51)*BJ56)/(1-SUM(BJ53:BJ55)) -> 0 | BK57: =($E$48*PRODUCT(BK49:BK51)*BK56)/(1-SUM(BK53:BK55)) -> 0 | BL57: =($E$48*PRODUCT(BL49:BL51)*BL56)/(1-SUM(BL53:BL55)) -> 0 | BM57: =($E$48*PRODUCT(BM49:BM51)*BM56)/(1-SUM(BM53:BM55)) -> 0 | BN57: =($E$48*PRODUCT(BN49:BN51)*BN56)/(1-SUM(BN53:BN55)) -> 0 | BO57: =($E$48*PRODUCT(BO49:BO51)*BO56)/(1-SUM(BO53:BO55)) -> 0 | BP57: =($E$48*PRODUCT(BP49:BP51)*BP56)/(1-SUM(BP53:BP55)) -> 0 | BQ57: =($E$48*PRODUCT(BQ49:BQ51)*BQ56)/(1-SUM(BQ53:BQ55)) -> 0 | BR57: =($E$48*PRODUCT(BR49:BR51)*BR56)/(1-SUM(BR53:BR55)) -> 0 | BS57: =($E$48*PRODUCT(BS49:BS51)*BS56)/(1-SUM(BS53:BS55)) -> 0 | BT57: =($E$48*PRODUCT(BT49:BT51)*BT56)/(1-SUM(BT53:BT55)) -> 0 | BU57: =($E$48*PRODUCT(BU49:BU51)*BU56)/(1-SUM(BU53:BU55)) -> 0 | BV57: =($E$48*PRODUCT(BV49:BV51)*BV56)/(1-SUM(BV53:BV55)) -> 0 | BW57: =($E$48*PRODUCT(BW49:BW51)*BW56)/(1-SUM(BW53:BW55)) -> 0 | BX57: =($E$48*PRODUCT(BX49:BX51)*BX56)/(1-SUM(BX53:BX55)) -> 0 | BY57: =($E$48*PRODUCT(BY49:BY51)*BY56)/(1-SUM(BY53:BY55)) -> 0 | BZ57: =($E$48*PRODUCT(BZ49:BZ51)*BZ56)/(1-SUM(BZ53:BZ55)) -> 0 | CA57: =($E$48*PRODUCT(CA49:CA51)*CA56)/(1-SUM(CA53:CA55)) -> 0 | CB57: =($E$48*PRODUCT(CB49:CB51)*CB56)/(1-SUM(CB53:CB55)) -> 0 | CC57: =($E$48*PRODUCT(CC49:CC51)*CC56)/(1-SUM(CC53:CC55)) -> 0 | CD57: =($E$48*PRODUCT(CD49:CD51)*CD56)/(1-SUM(CD53:CD55)) -> 0 | CE57: =($E$48*PRODUCT(CE49:CE51)*CE56)/(1-SUM(CE53:CE55)) -> 0 | CF57: =($E$48*PRODUCT(CF49:CF51)*CF56)/(1-SUM(CF53:CF55)) -> 0 | CG57: =($E$48*PRODUCT(CG49:CG51)*CG56)/(1-SUM(CG53:CG55)) -> 0 | CH57: =($E$48*PRODUCT(CH49:CH51)*CH56)/(1-SUM(CH53:CH55)) -> 0 | CI57: =($E$48*PRODUCT(CI49:CI51)*CI56)/(1-SUM(CI53:CI55)) -> 0 | CJ57: =($E$48*PRODUCT(CJ49:CJ51)*CJ56)/(1-SUM(CJ53:CJ55)) -> 0 | CK57: =($E$48*PRODUCT(CK49:CK51)*CK56)/(1-SUM(CK53:CK55)) -> 0 | CL57: =($E$48*PRODUCT(CL49:CL51)*CL56)/(1-SUM(CL53:CL55)) -> 0 | CM57: =($E$48*PRODUCT(CM49:CM51)*CM56)/(1-SUM(CM53:CM55)) -> 0 | CN57: =($E$48*PRODUCT(CN49:CN51)*CN56)/(1-SUM(CN53:CN55)) -> 0 | CO57: =($E$48*PRODUCT(CO49:CO51)*CO56)/(1-SUM(CO53:CO55)) -> 0 | CP57: =($E$48*PRODUCT(CP49:CP51)*CP56)/(1-SUM(CP53:CP55)) -> 0 | CQ57: =($E$48*PRODUCT(CQ49:CQ51)*CQ56)/(1-SUM(CQ53:CQ55)) -> 0 | CR57: =($E$48*PRODUCT(CR49:CR51)*CR56)/(1-SUM(CR53:CR55)) -> 0 | CS57: =($E$48*PRODUCT(CS49:CS51)*CS56)/(1-SUM(CS53:CS55)) -> 0 | CT57: =($E$48*PRODUCT(CT49:CT51)*CT56)/(1-SUM(CT53:CT55)) -> 0 | CU57: =($E$48*PRODUCT(CU49:CU51)*CU56)/(1-SUM(CU53:CU55)) -> 0 | CV57: =($E$48*PRODUCT(CV49:CV51)*CV56)/(1-SUM(CV53:CV55)) -> 0 | CW57: =($E$48*PRODUCT(CW49:CW51)*CW56)/(1-SUM(CW53:CW55)) -> 0 | CX57: =($E$48*PRODUCT(CX49:CX51)*CX56)/(1-SUM(CX53:CX55)) -> 0 | CY57: =($E$48*PRODUCT(CY49:CY51)*CY56)/(1-SUM(CY53:CY55)) -> 0 | CZ57: =($E$48*PRODUCT(CZ49:CZ51)*CZ56)/(1-SUM(CZ53:CZ55)) -> 0 | DA57: =($E$48*PRODUCT(DA49:DA51)*DA56)/(1-SUM(DA53:DA55)) -> 0 | DB57: =($E$48*PRODUCT(DB49:DB51)*DB56)/(1-SUM(DB53:DB55)) -> 0 | DC57: =($E$48*PRODUCT(DC49:DC51)*DC56)/(1-SUM(DC53:DC55)) -> 0 | DD57: =($E$48*PRODUCT(DD49:DD51)*DD56)/(1-SUM(DD53:DD55)) -> 0 | DE57: =($E$48*PRODUCT(DE49:DE51)*DE56)/(1-SUM(DE53:DE55)) -> 0 | DF57: =($E$48*PRODUCT(DF49:DF51)*DF56)/(1-SUM(DF53:DF55)) -> 0 | DG57: =($E$48*PRODUCT(DG49:DG51)*DG56)/(1-SUM(DG53:DG55)) -> 0 | DH57: =($E$48*PRODUCT(DH49:DH51)*DH56)/(1-SUM(DH53:DH55)) -> 0 | DI57: =($E$48*PRODUCT(DI49:DI51)*DI56)/(1-SUM(DI53:DI55)) -> 0 | DJ57: =($E$48*PRODUCT(DJ49:DJ51)*DJ56)/(1-SUM(DJ53:DJ55)) -> 0 | DK57: =($E$48*PRODUCT(DK49:DK51)*DK56)/(1-SUM(DK53:DK55)) -> 0 | DL57: =($E$48*PRODUCT(DL49:DL51)*DL56)/(1-SUM(DL53:DL55)) -> 0 | DM57: =($E$48*PRODUCT(DM49:DM51)*DM56)/(1-SUM(DM53:DM55)) -> 0 | DN57: =($E$48*PRODUCT(DN49:DN51)*DN56)/(1-SUM(DN53:DN55)) -> 0 | DO57: =($E$48*PRODUCT(DO49:DO51)*DO56)/(1-SUM(DO53:DO55)) -> 0 | DP57: =($E$48*PRODUCT(DP49:DP51)*DP56)/(1-SUM(DP53:DP55)) -> 0 | DQ57: =($E$48*PRODUCT(DQ49:DQ51)*DQ56)/(1-SUM(DQ53:DQ55)) -> 0 | DR57: =($E$48*PRODUCT(DR49:DR51)*DR56)/(1-SUM(DR53:DR55)) -> 0 | DS57: =($E$48*PRODUCT(DS49:DS51)*DS56)/(1-SUM(DS53:DS55)) -> 0 | DT57: =($E$48*PRODUCT(DT49:DT51)*DT56)/(1-SUM(DT53:DT55)) -> 0 | DU57: =($E$48*PRODUCT(DU49:DU51)*DU56)/(1-SUM(DU53:DU55)) -> 0 | DV57: =($E$48*PRODUCT(DV49:DV51)*DV56)/(1-SUM(DV53:DV55)) -> 0 | DW57: =($E$48*PRODUCT(DW49:DW51)*DW56)/(1-SUM(DW53:DW55)) -> 0 | DX57: =($E$48*PRODUCT(DX49:DX51)*DX56)/(1-SUM(DX53:DX55)) -> 0 | DY57: =($E$48*PRODUCT(DY49:DY51)*DY56)/(1-SUM(DY53:DY55)) -> 0 | DZ57: =($E$48*PRODUCT(DZ49:DZ51)*DZ56)/(1-SUM(DZ53:DZ55)) -> 0 | EA57: =($E$48*PRODUCT(EA49:EA51)*EA56)/(1-SUM(EA53:EA55)) -> 0 | EB57: =($E$48*PRODUCT(EB49:EB51)*EB56)/(1-SUM(EB53:EB55)) -> 0 | EC57: =($E$48*PRODUCT(EC49:EC51)*EC56)/(1-SUM(EC53:EC55)) -> 0 | ED57: =($E$48*PRODUCT(ED49:ED51)*ED56)/(1-SUM(ED53:ED55)) -> 0 | EE57: =($E$48*PRODUCT(EE49:EE51)*EE56)/(1-SUM(EE53:EE55)) -> 0 | EF57: =($E$48*PRODUCT(EF49:EF51)*EF56)/(1-SUM(EF53:EF55)) -> 0 | EG57: =($E$48*PRODUCT(EG49:EG51)*EG56)/(1-SUM(EG53:EG55)) -> 0 | EH57: =($E$48*PRODUCT(EH49:EH51)*EH56)/(1-SUM(EH53:EH55)) -> 0 | EI57: =($E$48*PRODUCT(EI49:EI51)*EI56)/(1-SUM(EI53:EI55)) -> 0 | EJ57: =($E$48*PRODUCT(EJ49:EJ51)*EJ56)/(1-SUM(EJ53:EJ55)) -> 0 | EK57: =($E$48*PRODUCT(EK49:EK51)*EK56)/(1-SUM(EK53:EK55)) -> 0 | EL57: =($E$48*PRODUCT(EL49:EL51)*EL56)/(1-SUM(EL53:EL55)) -> 0 | EM57: =($E$48*PRODUCT(EM49:EM51)*EM56)/(1-SUM(EM53:EM55)) -> 0 | EN57: =($E$48*PRODUCT(EN49:EN51)*EN56)/(1-SUM(EN53:EN55)) -> 0 | EO57: =($E$48*PRODUCT(EO49:EO51)*EO56)/(1-SUM(EO53:EO55)) -> 0 | EP57: =($E$48*PRODUCT(EP49:EP51)*EP56)/(1-SUM(EP53:EP55)) -> 0 | EQ57: =($E$48*PRODUCT(EQ49:EQ51)*EQ56)/(1-SUM(EQ53:EQ55)) -> 0 | ER57: =($E$48*PRODUCT(ER49:ER51)*ER56)/(1-SUM(ER53:ER55)) -> 0 | ES57: =($E$48*PRODUCT(ES49:ES51)*ES56)/(1-SUM(ES53:ES55)) -> 0 | ET57: =($E$48*PRODUCT(ET49:ET51)*ET56)/(1-SUM(ET53:ET55)) -> 0 | EU57: =($E$48*PRODUCT(EU49:EU51)*EU56)/(1-SUM(EU53:EU55)) -> 0 | EV57: =($E$48*PRODUCT(EV49:EV51)*EV56)/(1-SUM(EV53:EV55)) -> 0 | EW57: =($E$48*PRODUCT(EW49:EW51)*EW56)/(1-SUM(EW53:EW55)) -> 0 | EX57: =($E$48*PRODUCT(EX49:EX51)*EX56)/(1-SUM(EX53:EX55)) -> 0 | EY57: =($E$48*PRODUCT(EY49:EY51)*EY56)/(1-SUM(EY53:EY55)) -> 0 | EZ57: =($E$48*PRODUCT(EZ49:EZ51)*EZ56)/(1-SUM(EZ53:EZ55)) -> 0 | FA57: =($E$48*PRODUCT(FA49:FA51)*FA56)/(1-SUM(FA53:FA55)) -> 0 | FB57: =($E$48*PRODUCT(FB49:FB51)*FB56)/(1-SUM(FB53:FB55)) -> 0
B59: 3.11 | C59: Age Calibration Factor | D59: 0.6583 | E59: =IF(D59<>"", D59, "") -> 0
B60: 3.12 | C60: Geographic Calibration Factor | D60: 1.4123 | E60: =IF(D60<>"", D60, "") -> 0
B61: 3.13 | C61: Tobacco Calibration Factor | D61: 1 | E61: =IF(D61<>"", D61, "") -> 0
B62: 3.14 | C62: Calibrated Plan Adjusted Index Rate | E62: =E57*(PRODUCT($E$59:$E$61)) -> 0 | F62: =F57*(PRODUCT($E$59:$E$61)) -> 0 | G62: =G57*(PRODUCT($E$59:$E$61)) -> 0 | H62: =H57*(PRODUCT($E$59:$E$61)) -> 0 | I62: =I57*(PRODUCT($E$59:$E$61)) -> 0 | J62: =J57*(PRODUCT($E$59:$E$61)) -> 0 | K62: =K57*(PRODUCT($E$59:$E$61)) -> 0 | L62: =L57*(PRODUCT($E$59:$E$61)) -> 0 | M62: =M57*(PRODUCT($E$59:$E$61)) -> 0 | N62: =N57*(PRODUCT($E$59:$E$61)) -> 0 | O62: =O57*(PRODUCT($E$59:$E$61)) -> 0 | P62: =P57*(PRODUCT($E$59:$E$61)) -> 0 | Q62: =Q57*(PRODUCT($E$59:$E$61)) -> 0 | R62: =R57*(PRODUCT($E$59:$E$61)) -> 0 | S62: =S57*(PRODUCT($E$59:$E$61)) -> 0 | T62: =T57*(PRODUCT($E$59:$E$61)) -> 0 | U62: =U57*(PRODUCT($E$59:$E$61)) -> 0 | V62: =V57*(PRODUCT($E$59:$E$61)) -> 0 | W62: =W57*(PRODUCT($E$59:$E$61)) -> 0 | X62: =X57*(PRODUCT($E$59:$E$61)) -> 0 | Y62: =Y57*(PRODUCT($E$59:$E$61)) -> 0 | Z62: =Z57*(PRODUCT($E$59:$E$61)) -> 0 | AA62: =AA57*(PRODUCT($E$59:$E$61)) -> 0 | AB62: =AB57*(PRODUCT($E$59:$E$61)) -> 0 | AC62: =AC57*(PRODUCT($E$59:$E$61)) -> 0 | AD62: =AD57*(PRODUCT($E$59:$E$61)) -> 0 | AE62: =AE57*(PRODUCT($E$59:$E$61)) -> 0 | AF62: =AF57*(PRODUCT($E$59:$E$61)) -> 0 | AG62: =AG57*(PRODUCT($E$59:$E$61)) -> 0 | AH62: =AH57*(PRODUCT($E$59:$E$61)) -> 0 | AI62: =AI57*(PRODUCT($E$59:$E$61)) -> 0 | AJ62: =AJ57*(PRODUCT($E$59:$E$61)) -> 0 | AK62: =AK57*(PRODUCT($E$59:$E$61)) -> 0 | AL62: =AL57*(PRODUCT($E$59:$E$61)) -> 0 | AM62: =AM57*(PRODUCT($E$59:$E$61)) -> 0 | AN62: =AN57*(PRODUCT($E$59:$E$61)) -> 0 | AO62: =AO57*(PRODUCT($E$59:$E$61)) -> 0 | AP62: =AP57*(PRODUCT($E$59:$E$61)) -> 0 | AQ62: =AQ57*(PRODUCT($E$59:$E$61)) -> 0 | AR62: =AR57*(PRODUCT($E$59:$E$61)) -> 0 | AS62: =AS57*(PRODUCT($E$59:$E$61)) -> 0 | AT62: =AT57*(PRODUCT($E$59:$E$61)) -> 0 | AU62: =AU57*(PRODUCT($E$59:$E$61)) -> 0 | AV62: =AV57*(PRODUCT($E$59:$E$61)) -> 0 | AW62: =AW57*(PRODUCT($E$59:$E$61)) -> 0 | AX62: =AX57*(PRODUCT($E$59:$E$61)) -> 0 | AY62: =AY57*(PRODUCT($E$59:$E$61)) -> 0 | AZ62: =AZ57*(PRODUCT($E$59:$E$61)) -> 0 | BA62: =BA57*(PRODUCT($E$59:$E$61)) -> 0 | BB62: =BB57*(PRODUCT($E$59:$E$61)) -> 0 | BC62: =BC57*(PRODUCT($E$59:$E$61)) -> 0 | BD62: =BD57*(PRODUCT($E$59:$E$61)) -> 0 | BE62: =BE57*(PRODUCT($E$59:$E$61)) -> 0 | BF62: =BF57*(PRODUCT($E$59:$E$61)) -> 0 | BG62: =BG57*(PRODUCT($E$59:$E$61)) -> 0 | BH62: =BH57*(PRODUCT($E$59:$E$61)) -> 0 | BI62: =BI57*(PRODUCT($E$59:$E$61)) -> 0 | BJ62: =BJ57*(PRODUCT($E$59:$E$61)) -> 0 | BK62: =BK57*(PRODUCT($E$59:$E$61)) -> 0 | BL62: =BL57*(PRODUCT($E$59:$E$61)) -> 0 | BM62: =BM57*(PRODUCT($E$59:$E$61)) -> 0 | BN62: =BN57*(PRODUCT($E$59:$E$61)) -> 0 | BO62: =BO57*(PRODUCT($E$59:$E$61)) -> 0 | BP62: =BP57*(PRODUCT($E$59:$E$61)) -> 0 | BQ62: =BQ57*(PRODUCT($E$59:$E$61)) -> 0 | BR62: =BR57*(PRODUCT($E$59:$E$61)) -> 0 | BS62: =BS57*(PRODUCT($E$59:$E$61)) -> 0 | BT62: =BT57*(PRODUCT($E$59:$E$61)) -> 0 | BU62: =BU57*(PRODUCT($E$59:$E$61)) -> 0 | BV62: =BV57*(PRODUCT($E$59:$E$61)) -> 0 | BW62: =BW57*(PRODUCT($E$59:$E$61)) -> 0 | BX62: =BX57*(PRODUCT($E$59:$E$61)) -> 0 | BY62: =BY57*(PRODUCT($E$59:$E$61)) -> 0 | BZ62: =BZ57*(PRODUCT($E$59:$E$61)) -> 0 | CA62: =CA57*(PRODUCT($E$59:$E$61)) -> 0 | CB62: =CB57*(PRODUCT($E$59:$E$61)) -> 0 | CC62: =CC57*(PRODUCT($E$59:$E$61)) -> 0 | CD62: =CD57*(PRODUCT($E$59:$E$61)) -> 0 | CE62: =CE57*(PRODUCT($E$59:$E$61)) -> 0 | CF62: =CF57*(PRODUCT($E$59:$E$61)) -> 0 | CG62: =CG57*(PRODUCT($E$59:$E$61)) -> 0 | CH62: =CH57*(PRODUCT($E$59:$E$61)) -> 0 | CI62: =CI57*(PRODUCT($E$59:$E$61)) -> 0 | CJ62: =CJ57*(PRODUCT($E$59:$E$61)) -> 0 | CK62: =CK57*(PRODUCT($E$59:$E$61)) -> 0 | CL62: =CL57*(PRODUCT($E$59:$E$61)) -> 0 | CM62: =CM57*(PRODUCT($E$59:$E$61)) -> 0 | CN62: =CN57*(PRODUCT($E$59:$E$61)) -> 0 | CO62: =CO57*(PRODUCT($E$59:$E$61)) -> 0 | CP62: =CP57*(PRODUCT($E$59:$E$61)) -> 0 | CQ62: =CQ57*(PRODUCT($E$59:$E$61)) -> 0 | CR62: =CR57*(PRODUCT($E$59:$E$61)) -> 0 | CS62: =CS57*(PRODUCT($E$59:$E$61)) -> 0 | CT62: =CT57*(PRODUCT($E$59:$E$61)) -> 0 | CU62: =CU57*(PRODUCT($E$59:$E$61)) -> 0 | CV62: =CV57*(PRODUCT($E$59:$E$61)) -> 0 | CW62: =CW57*(PRODUCT($E$59:$E$61)) -> 0 | CX62: =CX57*(PRODUCT($E$59:$E$61)) -> 0 | CY62: =CY57*(PRODUCT($E$59:$E$61)) -> 0 | CZ62: =CZ57*(PRODUCT($E$59:$E$61)) -> 0 | DA62: =DA57*(PRODUCT($E$59:$E$61)) -> 0 | DB62: =DB57*(PRODUCT($E$59:$E$61)) -> 0 | DC62: =DC57*(PRODUCT($E$59:$E$61)) -> 0 | DD62: =DD57*(PRODUCT($E$59:$E$61)) -> 0 | DE62: =DE57*(PRODUCT($E$59:$E$61)) -> 0 | DF62: =DF57*(PRODUCT($E$59:$E$61)) -> 0 | DG62: =DG57*(PRODUCT($E$59:$E$61)) -> 0 | DH62: =DH57*(PRODUCT($E$59:$E$61)) -> 0 | DI62: =DI57*(PRODUCT($E$59:$E$61)) -> 0 | DJ62: =DJ57*(PRODUCT($E$59:$E$61)) -> 0 | DK62: =DK57*(PRODUCT($E$59:$E$61)) -> 0 | DL62: =DL57*(PRODUCT($E$59:$E$61)) -> 0 | DM62: =DM57*(PRODUCT($E$59:$E$61)) -> 0 | DN62: =DN57*(PRODUCT($E$59:$E$61)) -> 0 | DO62: =DO57*(PRODUCT($E$59:$E$61)) -> 0 | DP62: =DP57*(PRODUCT($E$59:$E$61)) -> 0 | DQ62: =DQ57*(PRODUCT($E$59:$E$61)) -> 0 | DR62: =DR57*(PRODUCT($E$59:$E$61)) -> 0 | DS62: =DS57*(PRODUCT($E$59:$E$61)) -> 0 | DT62: =DT57*(PRODUCT($E$59:$E$61)) -> 0 | DU62: =DU57*(PRODUCT($E$59:$E$61)) -> 0 | DV62: =DV57*(PRODUCT($E$59:$E$61)) -> 0 | DW62: =DW57*(PRODUCT($E$59:$E$61)) -> 0 | DX62: =DX57*(PRODUCT($E$59:$E$61)) -> 0 | DY62: =DY57*(PRODUCT($E$59:$E$61)) -> 0 | DZ62: =DZ57*(PRODUCT($E$59:$E$61)) -> 0 | EA62: =EA57*(PRODUCT($E$59:$E$61)) -> 0 | EB62: =EB57*(PRODUCT($E$59:$E$61)) -> 0 | EC62: =EC57*(PRODUCT($E$59:$E$61)) -> 0 | ED62: =ED57*(PRODUCT($E$59:$E$61)) -> 0 | EE62: =EE57*(PRODUCT($E$59:$E$61)) -> 0 | EF62: =EF57*(PRODUCT($E$59:$E$61)) -> 0 | EG62: =EG57*(PRODUCT($E$59:$E$61)) -> 0 | EH62: =EH57*(PRODUCT($E$59:$E$61)) -> 0 | EI62: =EI57*(PRODUCT($E$59:$E$61)) -> 0 | EJ62: =EJ57*(PRODUCT($E$59:$E$61)) -> 0 | EK62: =EK57*(PRODUCT($E$59:$E$61)) -> 0 | EL62: =EL57*(PRODUCT($E$59:$E$61)) -> 0 | EM62: =EM57*(PRODUCT($E$59:$E$61)) -> 0 | EN62: =EN57*(PRODUCT($E$59:$E$61)) -> 0 | EO62: =EO57*(PRODUCT($E$59:$E$61)) -> 0 | EP62: =EP57*(PRODUCT($E$59:$E$61)) -> 0 | EQ62: =EQ57*(PRODUCT($E$59:$E$61)) -> 0 | ER62: =ER57*(PRODUCT($E$59:$E$61)) -> 0 | ES62: =ES57*(PRODUCT($E$59:$E$61)) -> 0 | ET62: =ET57*(PRODUCT($E$59:$E$61)) -> 0 | EU62: =EU57*(PRODUCT($E$59:$E$61)) -> 0 | EV62: =EV57*(PRODUCT($E$59:$E$61)) -> 0 | EW62: =EW57*(PRODUCT($E$59:$E$61)) -> 0 | EX62: =EX57*(PRODUCT($E$59:$E$61)) -> 0 | EY62: =EY57*(PRODUCT($E$59:$E$61)) -> 0 | EZ62: =EZ57*(PRODUCT($E$59:$E$61)) -> 0 | FA62: =FA57*(PRODUCT($E$59:$E$61)) -> 0 | FB62: =FB57*(PRODUCT($E$59:$E$61)) -> 0
C64: Section IV: Projected Plan Level Information
B65: 4.1 | C65: Plan ID (Standard Component ID) | D65: Total | E65: =E13 -> 0 | F65: =F13 -> 0 | G65: =G13 -> 0 | H65: =H13 -> 0 | I65: =I13 -> 0 | J65: =J13 -> 0 | K65: =K13 -> 0 | L65: =L13 -> 0 | M65: =M13 -> 0 | N65: =N13 -> 0 | O65: =O13 -> 0 | P65: =P13 -> 0 | Q65: =Q13 -> 0 | R65: =R13 -> 0 | S65: =S13 -> 0 | T65: =T13 -> 0 | U65: =U13 -> 0 | V65: =V13 -> 0 | W65: =W13 -> 0 | X65: =X13 -> 0 | Y65: =Y13 -> 0 | Z65: =Z13 -> 0 | AA65: =AA13 -> 0 | AB65: =AB13 -> 0 | AC65: =AC13 -> 0 | AD65: =AD13 -> 0 | AE65: =AE13 -> 0 | AF65: =AF13 -> 0 | AG65: =AG13 -> 0 | AH65: =AH13 -> 0 | AI65: =AI13 -> 0 | AJ65: =AJ13 -> 0 | AK65: =AK13 -> 0 | AL65: =AL13 -> 0 | AM65: =AM13 -> 0 | AN65: =AN13 -> 0 | AO65: =AO13 -> 0 | AP65: =AP13 -> 0 | AQ65: =AQ13 -> 0 | AR65: =AR13 -> 0 | AS65: =AS13 -> 0 | AT65: =AT13 -> 0 | AU65: =AU13 -> 0 | AV65: =AV13 -> 0 | AW65: =AW13 -> 0 | AX65: =AX13 -> 0 | AY65: =AY13 -> 0 | AZ65: =AZ13 -> 0 | BA65: =BA13 -> 0 | BB65: =BB13 -> 0 | BC65: =BC13 -> 0 | BD65: =BD13 -> 0 | BE65: =BE13 -> 0 | BF65: =BF13 -> 0 | BG65: =BG13 -> 0 | BH65: =BH13 -> 0 | BI65: =BI13 -> 0 | BJ65: =BJ13 -> 0 | BK65: =BK13 -> 0 | BL65: =BL13 -> 0 | BM65: =BM13 -> 0 | BN65: =BN13 -> 0 | BO65: =BO13 -> 0 | BP65: =BP13 -> 0 | BQ65: =BQ13 -> 0 | BR65: =BR13 -> 0 | BS65: =BS13 -> 0 | BT65: =BT13 -> 0 | BU65: =BU13 -> 0 | BV65: =BV13 -> 0 | BW65: =BW13 -> 0 | BX65: =BX13 -> 0 | BY65: =BY13 -> 0 | BZ65: =BZ13 -> 0 | CA65: =CA13 -> 0 | CB65: =CB13 -> 0 | CC65: =CC13 -> 0 | CD65: =CD13 -> 0 | CE65: =CE13 -> 0 | CF65: =CF13 -> 0 | CG65: =CG13 -> 0 | CH65: =CH13 -> 0 | CI65: =CI13 -> 0 | CJ65: =CJ13 -> 0 | CK65: =CK13 -> 0 | CL65: =CL13 -> 0 | CM65: =CM13 -> 0 | CN65: =CN13 -> 0 | CO65: =CO13 -> 0 | CP65: =CP13 -> 0 | CQ65: =CQ13 -> 0 | CR65: =CR13 -> 0 | CS65: =CS13 -> 0 | CT65: =CT13 -> 0 | CU65: =CU13 -> 0 | CV65: =CV13 -> 0 | CW65: =CW13 -> 0 | CX65: =CX13 -> 0 | CY65: =CY13 -> 0 | CZ65: =CZ13 -> 0 | DA65: =DA13 -> 0 | DB65: =DB13 -> 0 | DC65: =DC13 -> 0 | DD65: =DD13 -> 0 | DE65: =DE13 -> 0 | DF65: =DF13 -> 0 | DG65: =DG13 -> 0 | DH65: =DH13 -> 0 | DI65: =DI13 -> 0 | DJ65: =DJ13 -> 0 | DK65: =DK13 -> 0 | DL65: =DL13 -> 0 | DM65: =DM13 -> 0 | DN65: =DN13 -> 0 | DO65: =DO13 -> 0 | DP65: =DP13 -> 0 | DQ65: =DQ13 -> 0 | DR65: =DR13 -> 0 | DS65: =DS13 -> 0 | DT65: =DT13 -> 0 | DU65: =DU13 -> 0 | DV65: =DV13 -> 0 | DW65: =DW13 -> 0 | DX65: =DX13 -> 0 | DY65: =DY13 -> 0 | DZ65: =DZ13 -> 0 | EA65: =EA13 -> 0 | EB65: =EB13 -> 0 | EC65: =EC13 -> 0 | ED65: =ED13 -> 0 | EE65: =EE13 -> 0 | EF65: =EF13 -> 0 | EG65: =EG13 -> 0 | EH65: =EH13 -> 0 | EI65: =EI13 -> 0 | EJ65: =EJ13 -> 0 | EK65: =EK13 -> 0 | EL65: =EL13 -> 0 | EM65: =EM13 -> 0 | EN65: =EN13 -> 0 | EO65: =EO13 -> 0 | EP65: =EP13 -> 0 | EQ65: =EQ13 -> 0 | ER65: =ER13 -> 0 | ES65: =ES13 -> 0 | ET65: =ET13 -> 0 | EU65: =EU13 -> 0 | EV65: =EV13 -> 0 | EW65: =EW13 -> 0 | EX65: =EX13 -> 0 | EY65: =EY13 -> 0 | EZ65: =EZ13 -> 0 | FA65: =FA13 -> 0 | FB65: =FB13 -> 0
B66: 4.2 | C66: Allowed Claims | D66: =SUM(E66:XFD66) -> 16503655.04 | E66: =0 -> 0 | F66: =0 -> 0 | G66: =0 -> 0 | H66: =0 -> 0 | I66: =0 -> 0 | J66: =0 -> 0 | K66: =0 -> 0 | L66: =0 -> 0 | M66: =0 -> 0 | N66: =0 -> 0 | O66: =0 -> 0 | P66: =0 -> 0 | Q66: =0 -> 0 | R66: =0 -> 0 | S66: =0 -> 0 | T66: =0 -> 0 | U66: =0 -> 0 | V66: =0 -> 0 | W66: =0 -> 0 | X66: =0 -> 0 | Y66: =0 -> 0 | Z66: =0 -> 0 | AA66: =0 -> 0 | AB66: =0 -> 0 | AC66: =0 -> 0 | AD66: =0 -> 0 | AE66: =0 -> 0 | AF66: =0 -> 0 | AG66: =0 -> 0 | AH66: =0 -> 0 | AI66: =0 -> 0 | AJ66: =168248.91 -> 0 | AK66: =1998352.58 -> 0 | AL66: =607338.26 -> 0 | AM66: =168248.91 -> 0 | AN66: =168248.91 -> 0 | AO66: =168248.91 -> 0 | AP66: =168248.91 -> 0 | AQ66: =463981.77 -> 0 | AR66: =96150.95 -> 0 | AS66: =168248.91 -> 0 | AT66: =168248.91 -> 0 | AU66: =482029.15 -> 0 | AV66: =171598.93 -> 0 | AW66: =168248.91 -> 0 | AX66: =168248.91 -> 0 | AY66: =1369006.43 -> 0 | AZ66: =168248.91 -> 0 | BA66: =168248.91 -> 0 | BB66: =1427399.06 -> 0 | BC66: =0 -> 0 | BD66: =0 -> 0 | BE66: =0 -> 0 | BF66: =0 -> 0 | BG66: =0 -> 0 | BH66: =0 -> 0 | BI66: =0 -> 0 | BJ66: =0 -> 0 | BK66: =0 -> 0 | BL66: =0 -> 0 | BM66: =0 -> 0 | BN66: =0 -> 0 | BO66: =0 -> 0 | BP66: =0 -> 0 | BQ66: =0 -> 0 | BR66: =0 -> 0 | BS66: =0 -> 0 | BT66: =0 -> 0 | BU66: =0 -> 0 | BV66: =0 -> 0 | BW66: =0 -> 0 | BX66: =0 -> 0 | BY66: =0 -> 0 | BZ66: =0 -> 0 | CA66: =0 -> 0 | CB66: =0 -> 0 | CC66: =0 -> 0 | CD66: =0 -> 0 | CE66: =0 -> 0 | CF66: =0 -> 0 | CG66: =0 -> 0 | CH66: =0 -> 0 | CI66: =0 -> 0 | CJ66: =0 -> 0 | CK66: =0 -> 0 | CL66: =0 -> 0 | CM66: =0 -> 0 | CN66: =0 -> 0 | CO66: =0 -> 0 | CP66: =0 -> 0 | CQ66: =0 -> 0 | CR66: =0 -> 0 | CS66: =168248.91 -> 0 | CT66: =168248.91 -> 0 | CU66: =463981.77 -> 0 | CV66: =463981.77 -> 0 | CW66: =463981.77 -> 0 | CX66: =168248.91 -> 0 | CY66: =168248.91 -> 0 | CZ66: =168248.91 -> 0 | DA66: =168248.91 -> 0 | DB66: =463981.77 -> 0 | DC66: =463981.77 -> 0 | DD66: =96150.95 -> 0 | DE66: =168248.91 -> 0 | DF66: =168248.91 -> 0 | DG66: =171598.93 -> 0 | DH66: =171598.93 -> 0 | DI66: =168248.91 -> 0 | DJ66: =168248.91 -> 0 | DK66: =168248.91 -> 0 | DL66: =168248.91 -> 0 | DM66: =168248.91 -> 0 | DN66: =168248.91 -> 0 | DO66: =168248.91 -> 0 | DP66: =168248.91 -> 0 | DQ66: =168248.91 -> 0 | DR66: =168248.91 -> 0 | DS66: =463981.77 -> 0 | DT66: =96150.95 -> 0 | DU66: =168248.91 -> 0 | DV66: =168248.91 -> 0 | DW66: =171598.93 -> 0 | DX66: =171598.93 -> 0 | DY66: =168248.91 -> 0 | DZ66: =168248.91 -> 0 | EA66: =168248.91 -> 0 | EB66: =168248.91 -> 0 | EC66: =168248.91 -> 0 | ED66: =168248.91 -> 0 | EE66: =0 -> 0 | EF66: =0 -> 0 | EG66: =0 -> 0 | EH66: =0 -> 0 | EI66: =0 -> 0 | EJ66: =0 -> 0 | EK66: =0 -> 0 | EL66: =0 -> 0 | EM66: =0 -> 0 | EN66: =0 -> 0 | EO66: =0 -> 0 | EP66: =0 -> 0 | EQ66: =0 -> 0 | ER66: =0 -> 0 | ES66: =0 -> 0 | ET66: =0 -> 0 | EU66: =0 -> 0 | EV66: =0 -> 0 | EW66: =0 -> 0 | EX66: =0 -> 0 | EY66: =0 -> 0 | EZ66: =0 -> 0 | FA66: =0 -> 0 | FB66: =0 -> 0
B67: 4.3 | C67: Reinsurance | D67: =SUM(E67:XFD67) -> 0 | E67: =0 -> 0 | F67: =0 -> 0 | G67: =0 -> 0 | H67: =0 -> 0 | I67: =0 -> 0 | J67: =0 -> 0 | K67: =0 -> 0 | L67: =0 -> 0 | M67: =0 -> 0 | N67: =0 -> 0 | O67: =0 -> 0 | P67: =0 -> 0 | Q67: =0 -> 0 | R67: =0 -> 0 | S67: =0 -> 0 | T67: =0 -> 0 | U67: =0 -> 0 | V67: =0 -> 0 | W67: =0 -> 0 | X67: =0 -> 0 | Y67: =0 -> 0 | Z67: =0 -> 0 | AA67: =0 -> 0 | AB67: =0 -> 0 | AC67: =0 -> 0 | AD67: =0 -> 0 | AE67: =0 -> 0 | AF67: =0 -> 0 | AG67: =0 -> 0 | AH67: =0 -> 0 | AI67: =0 -> 0 | AJ67: =0 -> 0 | AK67: =0 -> 0 | AL67: =0 -> 0 | AM67: =0 -> 0 | AN67: =0 -> 0 | AO67: =0 -> 0 | AP67: =0 -> 0 | AQ67: =0 -> 0 | AR67: =0 -> 0 | AS67: =0 -> 0 | AT67: =0 -> 0 | AU67: =0 -> 0 | AV67: =0 -> 0 | AW67: =0 -> 0 | AX67: =0 -> 0 | AY67: =0 -> 0 | AZ67: =0 -> 0 | BA67: =0 -> 0 | BB67: =0 -> 0 | BC67: =0 -> 0 | BD67: =0 -> 0 | BE67: =0 -> 0 | BF67: =0 -> 0 | BG67: =0 -> 0 | BH67: =0 -> 0 | BI67: =0 -> 0 | BJ67: =0 -> 0 | BK67: =0 -> 0 | BL67: =0 -> 0 | BM67: =0 -> 0 | BN67: =0 -> 0 | BO67: =0 -> 0 | BP67: =0 -> 0 | BQ67: =0 -> 0 | BR67: =0 -> 0 | BS67: =0 -> 0 | BT67: =0 -> 0 | BU67: =0 -> 0 | BV67: =0 -> 0 | BW67: =0 -> 0 | BX67: =0 -> 0 | BY67: =0 -> 0 | BZ67: =0 -> 0 | CA67: =0 -> 0 | CB67: =0 -> 0 | CC67: =0 -> 0 | CD67: =0 -> 0 | CE67: =0 -> 0 | CF67: =0 -> 0 | CG67: =0 -> 0 | CH67: =0 -> 0 | CI67: =0 -> 0 | CJ67: =0 -> 0 | CK67: =0 -> 0 | CL67: =0 -> 0 | CM67: =0 -> 0 | CN67: =0 -> 0 | CO67: =0 -> 0 | CP67: =0 -> 0 | CQ67: =0 -> 0 | CR67: =0 -> 0 | CS67: =0 -> 0 | CT67: =0 -> 0 | CU67: =0 -> 0 | CV67: =0 -> 0 | CW67: =0 -> 0 | CX67: =0 -> 0 | CY67: =0 -> 0 | CZ67: =0 -> 0 | DA67: =0 -> 0 | DB67: =0 -> 0 | DC67: =0 -> 0 | DD67: =0 -> 0 | DE67: =0 -> 0 | DF67: =0 -> 0 | DG67: =0 -> 0 | DH67: =0 -> 0 | DI67: =0 -> 0 | DJ67: =0 -> 0 | DK67: =0 -> 0 | DL67: =0 -> 0 | DM67: =0 -> 0 | DN67: =0 -> 0 | DO67: =0 -> 0 | DP67: =0 -> 0 | DQ67: =0 -> 0 | DR67: =0 -> 0 | DS67: =0 -> 0 | DT67: =0 -> 0 | DU67: =0 -> 0 | DV67: =0 -> 0 | DW67: =0 -> 0 | DX67: =0 -> 0 | DY67: =0 -> 0 | DZ67: =0 -> 0 | EA67: =0 -> 0 | EB67: =0 -> 0 | EC67: =0 -> 0 | ED67: =0 -> 0 | EE67: =0 -> 0 | EF67: =0 -> 0 | EG67: =0 -> 0 | EH67: =0 -> 0 | EI67: =0 -> 0 | EJ67: =0 -> 0 | EK67: =0 -> 0 | EL67: =0 -> 0 | EM67: =0 -> 0 | EN67: =0 -> 0 | EO67: =0 -> 0 | EP67: =0 -> 0 | EQ67: =0 -> 0 | ER67: =0 -> 0 | ES67: =0 -> 0 | ET67: =0 -> 0 | EU67: =0 -> 0 | EV67: =0 -> 0 | EW67: =0 -> 0 | EX67: =0 -> 0 | EY67: =0 -> 0 | EZ67: =0 -> 0 | FA67: =0 -> 0 | FB67: =0 -> 0
B68: 4.4 | C68: Member Cost Sharing | D68: =SUM(E68:XFD68) -> 3284227.43 | E68: =0 -> 0 | F68: =0 -> 0 | G68: =0 -> 0 | H68: =0 -> 0 | I68: =0 -> 0 | J68: =0 -> 0 | K68: =0 -> 0 | L68: =0 -> 0 | M68: =0 -> 0 | N68: =0 -> 0 | O68: =0 -> 0 | P68: =0 -> 0 | Q68: =0 -> 0 | R68: =0 -> 0 | S68: =0 -> 0 | T68: =0 -> 0 | U68: =0 -> 0 | V68: =0 -> 0 | W68: =0 -> 0 | X68: =0 -> 0 | Y68: =0 -> 0 | Z68: =0 -> 0 | AA68: =0 -> 0 | AB68: =0 -> 0 | AC68: =0 -> 0 | AD68: =0 -> 0 | AE68: =0 -> 0 | AF68: =0 -> 0 | AG68: =0 -> 0 | AH68: =0 -> 0 | AI68: =0 -> 0 | AJ68: =25747.16 -> 0 | AK68: =329849.25 -> 0 | AL68: =109637.14 -> 0 | AM68: =31027.44 -> 0 | AN68: =31159.45 -> 0 | AO68: =32875.54 -> 0 | AP68: =32963.55 -> 0 | AQ68: =89755.94 -> 0 | AR68: =28403.24 -> 0 | AS68: =22182.96 -> 0 | AT68: =32809.54 -> 0 | AU68: =31619.4 -> 0 | AV68: =19372.54 -> 0 | AW68: =29025.33 -> 0 | AX68: =34305.62 -> 0 | AY68: =229728.4 -> 0 | AZ68: =35009.66 -> 0 | BA68: =37253.78 -> 0 | BB68: =367228.62 -> 0 | BC68: =0 -> 0 | BD68: =0 -> 0 | BE68: =0 -> 0 | BF68: =0 -> 0 | BG68: =0 -> 0 | BH68: =0 -> 0 | BI68: =0 -> 0 | BJ68: =0 -> 0 | BK68: =0 -> 0 | BL68: =0 -> 0 | BM68: =0 -> 0 | BN68: =0 -> 0 | BO68: =0 -> 0 | BP68: =0 -> 0 | BQ68: =0 -> 0 | BR68: =0 -> 0 | BS68: =0 -> 0 | BT68: =0 -> 0 | BU68: =0 -> 0 | BV68: =0 -> 0 | BW68: =0 -> 0 | BX68: =0 -> 0 | BY68: =0 -> 0 | BZ68: =0 -> 0 | CA68: =0 -> 0 | CB68: =0 -> 0 | CC68: =0 -> 0 | CD68: =0 -> 0 | CE68: =0 -> 0 | CF68: =0 -> 0 | CG68: =0 -> 0 | CH68: =0 -> 0 | CI68: =0 -> 0 | CJ68: =0 -> 0 | CK68: =0 -> 0 | CL68: =0 -> 0 | CM68: =0 -> 0 | CN68: =0 -> 0 | CO68: =0 -> 0 | CP68: =0 -> 0 | CQ68: =0 -> 0 | CR68: =0 -> 0 | CS68: =27331.24 -> 0 | CT68: =33513.58 -> 0 | CU68: =108248.57 -> 0 | CV68: =138673.94 -> 0 | CW68: =123554.96 -> 0 | CX68: =29377.35 -> 0 | CY68: =32765.54 -> 0 | CZ68: =34481.63 -> 0 | DA68: =34569.64 -> 0 | DB68: =88818.81 -> 0 | DC68: =94691.47 -> 0 | DD68: =29370.88 -> 0 | DE68: =23679.04 -> 0 | DF68: =34349.62 -> 0 | DG68: =12743.23 -> 0 | DH68: =20859.49 -> 0 | DI68: =30609.42 -> 0 | DJ68: =35867.71 -> 0 | DK68: =29707.37 -> 0 | DL68: =32523.53 -> 0 | DM68: =36483.74 -> 0 | DN68: =38749.86 -> 0 | DO68: =36329.73 -> 0 | DP68: =39497.9 -> 0 | DQ68: =41125.99 -> 0 | DR68: =41214 -> 0 | DS68: =113933.8 -> 0 | DT68: =32822.99 -> 0 | DU68: =30873.44 -> 0 | DV68: =40993.99 -> 0 | DW68: =19930.15 -> 0 | DX68: =27612.72 -> 0 | DY68: =36615.75 -> 0 | DZ68: =41610.02 -> 0 | EA68: =35779.7 -> 0 | EB68: =38441.85 -> 0 | EC68: =42182.05 -> 0 | ED68: =44338.17 -> 0 | EE68: =0 -> 0 | EF68: =0 -> 0 | EG68: =0 -> 0 | EH68: =0 -> 0 | EI68: =0 -> 0 | EJ68: =0 -> 0 | EK68: =0 -> 0 | EL68: =0 -> 0 | EM68: =0 -> 0 | EN68: =0 -> 0 | EO68: =0 -> 0 | EP68: =0 -> 0 | EQ68: =0 -> 0 | ER68: =0 -> 0 | ES68: =0 -> 0 | ET68: =0 -> 0 | EU68: =0 -> 0 | EV68: =0 -> 0 | EW68: =0 -> 0 | EX68: =0 -> 0 | EY68: =0 -> 0 | EZ68: =0 -> 0 | FA68: =0 -> 0 | FB68: =0 -> 0
B69: 4.5 | C69: Cost Sharing Reduction | D69: =SUM(E69:XFD69) -> 0 | E69: =0 -> 0 | F69: =0 -> 0 | G69: =0 -> 0 | H69: =0 -> 0 | I69: =0 -> 0 | J69: =0 -> 0 | K69: =0 -> 0 | L69: =0 -> 0 | M69: =0 -> 0 | N69: =0 -> 0 | O69: =0 -> 0 | P69: =0 -> 0 | Q69: =0 -> 0 | R69: =0 -> 0 | S69: =0 -> 0 | T69: =0 -> 0 | U69: =0 -> 0 | V69: =0 -> 0 | W69: =0 -> 0 | X69: =0 -> 0 | Y69: =0 -> 0 | Z69: =0 -> 0 | AA69: =0 -> 0 | AB69: =0 -> 0 | AC69: =0 -> 0 | AD69: =0 -> 0 | AE69: =0 -> 0 | AF69: =0 -> 0 | AG69: =0 -> 0 | AH69: =0 -> 0 | AI69: =0 -> 0 | AJ69: =0 -> 0 | AK69: =0 -> 0 | AL69: =0 -> 0 | AM69: =0 -> 0 | AN69: =0 -> 0 | AO69: =0 -> 0 | AP69: =0 -> 0 | AQ69: =0 -> 0 | AR69: =0 -> 0 | AS69: =0 -> 0 | AT69: =0 -> 0 | AU69: =0 -> 0 | AV69: =0 -> 0 | AW69: =0 -> 0 | AX69: =0 -> 0 | AY69: =0 -> 0 | AZ69: =0 -> 0 | BA69: =0 -> 0 | BB69: =0 -> 0 | BC69: =0 -> 0 | BD69: =0 -> 0 | BE69: =0 -> 0 | BF69: =0 -> 0 | BG69: =0 -> 0 | BH69: =0 -> 0 | BI69: =0 -> 0 | BJ69: =0 -> 0 | BK69: =0 -> 0 | BL69: =0 -> 0 | BM69: =0 -> 0 | BN69: =0 -> 0 | BO69: =0 -> 0 | BP69: =0 -> 0 | BQ69: =0 -> 0 | BR69: =0 -> 0 | BS69: =0 -> 0 | BT69: =0 -> 0 | BU69: =0 -> 0 | BV69: =0 -> 0 | BW69: =0 -> 0 | BX69: =0 -> 0 | BY69: =0 -> 0 | BZ69: =0 -> 0 | CA69: =0 -> 0 | CB69: =0 -> 0 | CC69: =0 -> 0 | CD69: =0 -> 0 | CE69: =0 -> 0 | CF69: =0 -> 0 | CG69: =0 -> 0 | CH69: =0 -> 0 | CI69: =0 -> 0 | CJ69: =0 -> 0 | CK69: =0 -> 0 | CL69: =0 -> 0 | CM69: =0 -> 0 | CN69: =0 -> 0 | CO69: =0 -> 0 | CP69: =0 -> 0 | CQ69: =0 -> 0 | CR69: =0 -> 0 | CS69: =0 -> 0 | CT69: =0 -> 0 | CU69: =0 -> 0 | CV69: =0 -> 0 | CW69: =0 -> 0 | CX69: =0 -> 0 | CY69: =0 -> 0 | CZ69: =0 -> 0 | DA69: =0 -> 0 | DB69: =0 -> 0 | DC69: =0 -> 0 | DD69: =0 -> 0 | DE69: =0 -> 0 | DF69: =0 -> 0 | DG69: =0 -> 0 | DH69: =0 -> 0 | DI69: =0 -> 0 | DJ69: =0 -> 0 | DK69: =0 -> 0 | DL69: =0 -> 0 | DM69: =0 -> 0 | DN69: =0 -> 0 | DO69: =0 -> 0 | DP69: =0 -> 0 | DQ69: =0 -> 0 | DR69: =0 -> 0 | DS69: =0 -> 0 | DT69: =0 -> 0 | DU69: =0 -> 0 | DV69: =0 -> 0 | DW69: =0 -> 0 | DX69: =0 -> 0 | DY69: =0 -> 0 | DZ69: =0 -> 0 | EA69: =0 -> 0 | EB69: =0 -> 0 | EC69: =0 -> 0 | ED69: =0 -> 0 | EE69: =0 -> 0 | EF69: =0 -> 0 | EG69: =0 -> 0 | EH69: =0 -> 0 | EI69: =0 -> 0 | EJ69: =0 -> 0 | EK69: =0 -> 0 | EL69: =0 -> 0 | EM69: =0 -> 0 | EN69: =0 -> 0 | EO69: =0 -> 0 | EP69: =0 -> 0 | EQ69: =0 -> 0 | ER69: =0 -> 0 | ES69: =0 -> 0 | ET69: =0 -> 0 | EU69: =0 -> 0 | EV69: =0 -> 0 | EW69: =0 -> 0 | EX69: =0 -> 0 | EY69: =0 -> 0 | EZ69: =0 -> 0 | FA69: =0 -> 0 | FB69: =0 -> 0
B70: 4.6 | C70: Incurred Claims | D70: =D66-D67-D68-D69 -> 13219427.61 | E70: =E66-E67-E68-E69 -> 0 | F70: =F66-F67-F68-F69 -> 0 | G70: =G66-G67-G68-G69 -> 0 | H70: =H66-H67-H68-H69 -> 0 | I70: =I66-I67-I68-I69 -> 0 | J70: =J66-J67-J68-J69 -> 0 | K70: =K66-K67-K68-K69 -> 0 | L70: =L66-L67-L68-L69 -> 0 | M70: =M66-M67-M68-M69 -> 0 | N70: =N66-N67-N68-N69 -> 0 | O70: =O66-O67-O68-O69 -> 0 | P70: =P66-P67-P68-P69 -> 0 | Q70: =Q66-Q67-Q68-Q69 -> 0 | R70: =R66-R67-R68-R69 -> 0 | S70: =S66-S67-S68-S69 -> 0 | T70: =T66-T67-T68-T69 -> 0 | U70: =U66-U67-U68-U69 -> 0 | V70: =V66-V67-V68-V69 -> 0 | W70: =W66-W67-W68-W69 -> 0 | X70: =X66-X67-X68-X69 -> 0 | Y70: =Y66-Y67-Y68-Y69 -> 0 | Z70: =Z66-Z67-Z68-Z69 -> 0 | AA70: =AA66-AA67-AA68-AA69 -> 0 | AB70: =AB66-AB67-AB68-AB69 -> 0 | AC70: =AC66-AC67-AC68-AC69 -> 0 | AD70: =AD66-AD67-AD68-AD69 -> 0 | AE70: =AE66-AE67-AE68-AE69 -> 0 | AF70: =AF66-AF67-AF68-AF69 -> 0 | AG70: =AG66-AG67-AG68-AG69 -> 0 | AH70: =AH66-AH67-AH68-AH69 -> 0 | AI70: =AI66-AI67-AI68-AI69 -> 0 | AJ70: =AJ66-AJ67-AJ68-AJ69 -> 0 | AK70: =AK66-AK67-AK68-AK69 -> 0 | AL70: =AL66-AL67-AL68-AL69 -> 0 | AM70: =AM66-AM67-AM68-AM69 -> 0 | AN70: =AN66-AN67-AN68-AN69 -> 0 | AO70: =AO66-AO67-AO68-AO69 -> 0 | AP70: =AP66-AP67-AP68-AP69 -> 0 | AQ70: =AQ66-AQ67-AQ68-AQ69 -> 0 | AR70: =AR66-AR67-AR68-AR69 -> 0 | AS70: =AS66-AS67-AS68-AS69 -> 0 | AT70: =AT66-AT67-AT68-AT69 -> 0 | AU70: =AU66-AU67-AU68-AU69 -> 0 | AV70: =AV66-AV67-AV68-AV69 -> 0 | AW70: =AW66-AW67-AW68-AW69 -> 0 | AX70: =AX66-AX67-AX68-AX69 -> 0 | AY70: =AY66-AY67-AY68-AY69 -> 0 | AZ70: =AZ66-AZ67-AZ68-AZ69 -> 0 | BA70: =BA66-BA67-BA68-BA69 -> 0 | BB70: =BB66-BB67-BB68-BB69 -> 0 | BC70: =BC66-BC67-BC68-BC69 -> 0 | BD70: =BD66-BD67-BD68-BD69 -> 0 | BE70: =BE66-BE67-BE68-BE69 -> 0 | BF70: =BF66-BF67-BF68-BF69 -> 0 | BG70: =BG66-BG67-BG68-BG69 -> 0 | BH70: =BH66-BH67-BH68-BH69 -> 0 | BI70: =BI66-BI67-BI68-BI69 -> 0 | BJ70: =BJ66-BJ67-BJ68-BJ69 -> 0 | BK70: =BK66-BK67-BK68-BK69 -> 0 | BL70: =BL66-BL67-BL68-BL69 -> 0 | BM70: =BM66-BM67-BM68-BM69 -> 0 | BN70: =BN66-BN67-BN68-BN69 -> 0 | BO70: =BO66-BO67-BO68-BO69 -> 0 | BP70: =BP66-BP67-BP68-BP69 -> 0 | BQ70: =BQ66-BQ67-BQ68-BQ69 -> 0 | BR70: =BR66-BR67-BR68-BR69 -> 0 | BS70: =BS66-BS67-BS68-BS69 -> 0 | BT70: =BT66-BT67-BT68-BT69 -> 0 | BU70: =BU66-BU67-BU68-BU69 -> 0 | BV70: =BV66-BV67-BV68-BV69 -> 0 | BW70: =BW66-BW67-BW68-BW69 -> 0 | BX70: =BX66-BX67-BX68-BX69 -> 0 | BY70: =BY66-BY67-BY68-BY69 -> 0 | BZ70: =BZ66-BZ67-BZ68-BZ69 -> 0 | CA70: =CA66-CA67-CA68-CA69 -> 0 | CB70: =CB66-CB67-CB68-CB69 -> 0 | CC70: =CC66-CC67-CC68-CC69 -> 0 | CD70: =CD66-CD67-CD68-CD69 -> 0 | CE70: =CE66-CE67-CE68-CE69 -> 0 | CF70: =CF66-CF67-CF68-CF69 -> 0 | CG70: =CG66-CG67-CG68-CG69 -> 0 | CH70: =CH66-CH67-CH68-CH69 -> 0 | CI70: =CI66-CI67-CI68-CI69 -> 0 | CJ70: =CJ66-CJ67-CJ68-CJ69 -> 0 | CK70: =CK66-CK67-CK68-CK69 -> 0 | CL70: =CL66-CL67-CL68-CL69 -> 0 | CM70: =CM66-CM67-CM68-CM69 -> 0 | CN70: =CN66-CN67-CN68-CN69 -> 0 | CO70: =CO66-CO67-CO68-CO69 -> 0 | CP70: =CP66-CP67-CP68-CP69 -> 0 | CQ70: =CQ66-CQ67-CQ68-CQ69 -> 0 | CR70: =CR66-CR67-CR68-CR69 -> 0 | CS70: =CS66-CS67-CS68-CS69 -> 0 | CT70: =CT66-CT67-CT68-CT69 -> 0 | CU70: =CU66-CU67-CU68-CU69 -> 0 | CV70: =CV66-CV67-CV68-CV69 -> 0 | CW70: =CW66-CW67-CW68-CW69 -> 0 | CX70: =CX66-CX67-CX68-CX69 -> 0 | CY70: =CY66-CY67-CY68-CY69 -> 0 | CZ70: =CZ66-CZ67-CZ68-CZ69 -> 0 | DA70: =DA66-DA67-DA68-DA69 -> 0 | DB70: =DB66-DB67-DB68-DB69 -> 0 | DC70: =DC66-DC67-DC68-DC69 -> 0 | DD70: =DD66-DD67-DD68-DD69 -> 0 | DE70: =DE66-DE67-DE68-DE69 -> 0 | DF70: =DF66-DF67-DF68-DF69 -> 0 | DG70: =DG66-DG67-DG68-DG69 -> 0 | DH70: =DH66-DH67-DH68-DH69 -> 0 | DI70: =DI66-DI67-DI68-DI69 -> 0 | DJ70: =DJ66-DJ67-DJ68-DJ69 -> 0 | DK70: =DK66-DK67-DK68-DK69 -> 0 | DL70: =DL66-DL67-DL68-DL69 -> 0 | DM70: =DM66-DM67-DM68-DM69 -> 0 | DN70: =DN66-DN67-DN68-DN69 -> 0 | DO70: =DO66-DO67-DO68-DO69 -> 0 | DP70: =DP66-DP67-DP68-DP69 -> 0 | DQ70: =DQ66-DQ67-DQ68-DQ69 -> 0 | DR70: =DR66-DR67-DR68-DR69 -> 0 | DS70: =DS66-DS67-DS68-DS69 -> 0 | DT70: =DT66-DT67-DT68-DT69 -> 0 | DU70: =DU66-DU67-DU68-DU69 -> 0 | DV70: =DV66-DV67-DV68-DV69 -> 0 | DW70: =DW66-DW67-DW68-DW69 -> 0 | DX70: =DX66-DX67-DX68-DX69 -> 0 | DY70: =DY66-DY67-DY68-DY69 -> 0 | DZ70: =DZ66-DZ67-DZ68-DZ69 -> 0 | EA70: =EA66-EA67-EA68-EA69 -> 0 | EB70: =EB66-EB67-EB68-EB69 -> 0 | EC70: =EC66-EC67-EC68-EC69 -> 0 | ED70: =ED66-ED67-ED68-ED69 -> 0 | EE70: =EE66-EE67-EE68-EE69 -> 0 | EF70: =EF66-EF67-EF68-EF69 -> 0 | EG70: =EG66-EG67-EG68-EG69 -> 0 | EH70: =EH66-EH67-EH68-EH69 -> 0 | EI70: =EI66-EI67-EI68-EI69 -> 0 | EJ70: =EJ66-EJ67-EJ68-EJ69 -> 0 | EK70: =EK66-EK67-EK68-EK69 -> 0 | EL70: =EL66-EL67-EL68-EL69 -> 0 | EM70: =EM66-EM67-EM68-EM69 -> 0 | EN70: =EN66-EN67-EN68-EN69 -> 0 | EO70: =EO66-EO67-EO68-EO69 -> 0 | EP70: =EP66-EP67-EP68-EP69 -> 0 | EQ70: =EQ66-EQ67-EQ68-EQ69 -> 0 | ER70: =ER66-ER67-ER68-ER69 -> 0 | ES70: =ES66-ES67-ES68-ES69 -> 0 | ET70: =ET66-ET67-ET68-ET69 -> 0 | EU70: =EU66-EU67-EU68-EU69 -> 0 | EV70: =EV66-EV67-EV68-EV69 -> 0 | EW70: =EW66-EW67-EW68-EW69 -> 0 | EX70: =EX66-EX67-EX68-EX69 -> 0 | EY70: =EY66-EY67-EY68-EY69 -> 0 | EZ70: =EZ66-EZ67-EZ68-EZ69 -> 0 | FA70: =FA66-FA67-FA68-FA69 -> 0 | FB70: =FB66-FB67-FB68-FB69 -> 0
B71: 4.7 | C71: Risk Adjustment Transfer Amount | D71: =SUM(E71:XFD71) -> -1785685.15 | E71: =0 -> 0 | F71: =0 -> 0 | G71: =0 -> 0 | H71: =0 -> 0 | I71: =0 -> 0 | J71: =0 -> 0 | K71: =0 -> 0 | L71: =0 -> 0 | M71: =0 -> 0 | N71: =0 -> 0 | O71: =0 -> 0 | P71: =0 -> 0 | Q71: =0 -> 0 | R71: =0 -> 0 | S71: =0 -> 0 | T71: =0 -> 0 | U71: =0 -> 0 | V71: =0 -> 0 | W71: =0 -> 0 | X71: =0 -> 0 | Y71: =0 -> 0 | Z71: =0 -> 0 | AA71: =0 -> 0 | AB71: =0 -> 0 | AC71: =0 -> 0 | AD71: =0 -> 0 | AE71: =0 -> 0 | AF71: =0 -> 0 | AG71: =0 -> 0 | AH71: =0 -> 0 | AI71: =0 -> 0 | AJ71: =-18136.6 -> 0 | AK71: =-215414.9 -> 0 | AL71: =-67413.4 -> 0 | AM71: =-18136.6 -> 0 | AN71: =-18136.6 -> 0 | AO71: =-18136.6 -> 0 | AP71: =-18136.6 -> 0 | AQ71: =-51501.1 -> 0 | AR71: =-10779.3 -> 0 | AS71: =-18136.6 -> 0 | AT71: =-18136.6 -> 0 | AU71: =-47822.45 -> 0 | AV71: =-17024.45 -> 0 | AW71: =-18136.6 -> 0 | AX71: =-18136.6 -> 0 | AY71: =-147573.75 -> 0 | AZ71: =-18136.6 -> 0 | BA71: =-18136.6 -> 0 | BB71: =-158438.6 -> 0 | BC71: =0 -> 0 | BD71: =0 -> 0 | BE71: =0 -> 0 | BF71: =0 -> 0 | BG71: =0 -> 0 | BH71: =0 -> 0 | BI71: =0 -> 0 | BJ71: =0 -> 0 | BK71: =0 -> 0 | BL71: =0 -> 0 | BM71: =0 -> 0 | BN71: =0 -> 0 | BO71: =0 -> 0 | BP71: =0 -> 0 | BQ71: =0 -> 0 | BR71: =0 -> 0 | BS71: =0 -> 0 | BT71: =0 -> 0 | BU71: =0 -> 0 | BV71: =0 -> 0 | BW71: =0 -> 0 | BX71: =0 -> 0 | BY71: =0 -> 0 | BZ71: =0 -> 0 | CA71: =0 -> 0 | CB71: =0 -> 0 | CC71: =0 -> 0 | CD71: =0 -> 0 | CE71: =0 -> 0 | CF71: =0 -> 0 | CG71: =0 -> 0 | CH71: =0 -> 0 | CI71: =0 -> 0 | CJ71: =0 -> 0 | CK71: =0 -> 0 | CL71: =0 -> 0 | CM71: =0 -> 0 | CN71: =0 -> 0 | CO71: =0 -> 0 | CP71: =0 -> 0 | CQ71: =0 -> 0 | CR71: =0 -> 0 | CS71: =-18136.6 -> 0 | CT71: =-18136.6 -> 0 | CU71: =-51501.1 -> 0 | CV71: =-51501.1 -> 0 | CW71: =-51501.1 -> 0 | CX71: =-18136.6 -> 0 | CY71: =-18136.6 -> 0 | CZ71: =-18136.6 -> 0 | DA71: =-18136.6 -> 0 | DB71: =-51501.1 -> 0 | DC71: =-51501.1 -> 0 | DD71: =-10779.3 -> 0 | DE71: =-18136.6 -> 0 | DF71: =-18136.6 -> 0 | DG71: =-17024.45 -> 0 | DH71: =-17024.45 -> 0 | DI71: =-18136.6 -> 0 | DJ71: =-18136.6 -> 0 | DK71: =-18136.6 -> 0 | DL71: =-18136.6 -> 0 | DM71: =-18136.6 -> 0 | DN71: =-18136.6 -> 0 | DO71: =-18136.6 -> 0 | DP71: =-18136.6 -> 0 | DQ71: =-18136.6 -> 0 | DR71: =-18136.6 -> 0 | DS71: =-51501.1 -> 0 | DT71: =-10779.3 -> 0 | DU71: =-18136.6 -> 0 | DV71: =-18136.6 -> 0 | DW71: =-17024.45 -> 0 | DX71: =-17024.45 -> 0 | DY71: =-18136.6 -> 0 | DZ71: =-18136.6 -> 0 | EA71: =-18136.6 -> 0 | EB71: =-18136.6 -> 0 | EC71: =-18136.6 -> 0 | ED71: =-18136.6 -> 0 | EE71: =0 -> 0 | EF71: =0 -> 0 | EG71: =0 -> 0 | EH71: =0 -> 0 | EI71: =0 -> 0 | EJ71: =0 -> 0 | EK71: =0 -> 0 | EL71: =0 -> 0 | EM71: =0 -> 0 | EN71: =0 -> 0 | EO71: =0 -> 0 | EP71: =0 -> 0 | EQ71: =0 -> 0 | ER71: =0 -> 0 | ES71: =0 -> 0 | ET71: =0 -> 0 | EU71: =0 -> 0 | EV71: =0 -> 0 | EW71: =0 -> 0 | EX71: =0 -> 0 | EY71: =0 -> 0 | EZ71: =0 -> 0 | FA71: =0 -> 0 | FB71: =0 -> 0
B72: 4.8 | C72: Premium | D72: =SUM(E72:XFD72) -> 18600105.01 | E72: =0 -> 0 | F72: =0 -> 0 | G72: =0 -> 0 | H72: =0 -> 0 | I72: =0 -> 0 | J72: =0 -> 0 | K72: =0 -> 0 | L72: =0 -> 0 | M72: =0 -> 0 | N72: =0 -> 0 | O72: =0 -> 0 | P72: =0 -> 0 | Q72: =0 -> 0 | R72: =0 -> 0 | S72: =0 -> 0 | T72: =0 -> 0 | U72: =0 -> 0 | V72: =0 -> 0 | W72: =0 -> 0 | X72: =0 -> 0 | Y72: =0 -> 0 | Z72: =0 -> 0 | AA72: =0 -> 0 | AB72: =0 -> 0 | AC72: =0 -> 0 | AD72: =0 -> 0 | AE72: =0 -> 0 | AF72: =0 -> 0 | AG72: =0 -> 0 | AH72: =0 -> 0 | AI72: =0 -> 0 | AJ72: =198263.2 -> 0 | AK72: =2327593.79 -> 0 | AL72: =700628.1 -> 0 | AM72: =192259.99 -> 0 | AN72: =192095.81 -> 0 | AO72: =190169.45 -> 0 | AP72: =190075.24 -> 0 | AQ72: =528447.04 -> 0 | AR72: =98596.27 -> 0 | AS72: =202313.28 -> 0 | AT72: =190263.64 -> 0 | AU72: =607567.35 -> 0 | AV72: =207085.5 -> 0 | AW72: =194526.07 -> 0 | AX72: =188564.65 -> 0 | AY72: =1590208.79 -> 0 | AZ72: =187759.86 -> 0 | BA72: =185215.54 -> 0 | BB72: =1522290.77 -> 0 | BC72: =0 -> 0 | BD72: =0 -> 0 | BE72: =0 -> 0 | BF72: =0 -> 0 | BG72: =0 -> 0 | BH72: =0 -> 0 | BI72: =0 -> 0 | BJ72: =0 -> 0 | BK72: =0 -> 0 | BL72: =0 -> 0 | BM72: =0 -> 0 | BN72: =0 -> 0 | BO72: =0 -> 0 | BP72: =0 -> 0 | BQ72: =0 -> 0 | BR72: =0 -> 0 | BS72: =0 -> 0 | BT72: =0 -> 0 | BU72: =0 -> 0 | BV72: =0 -> 0 | BW72: =0 -> 0 | BX72: =0 -> 0 | BY72: =0 -> 0 | BZ72: =0 -> 0 | CA72: =0 -> 0 | CB72: =0 -> 0 | CC72: =0 -> 0 | CD72: =0 -> 0 | CE72: =0 -> 0 | CF72: =0 -> 0 | CG72: =0 -> 0 | CH72: =0 -> 0 | CI72: =0 -> 0 | CJ72: =0 -> 0 | CK72: =0 -> 0 | CL72: =0 -> 0 | CM72: =0 -> 0 | CN72: =0 -> 0 | CO72: =0 -> 0 | CP72: =0 -> 0 | CQ72: =0 -> 0 | CR72: =0 -> 0 | CS72: =196480.34 -> 0 | CT72: =189462.23 -> 0 | CU72: =507481.44 -> 0 | CV72: =472880.71 -> 0 | CW72: =490052.08 -> 0 | CX72: =194177.66 -> 0 | CY72: =190310.73 -> 0 | CZ72: =188328.44 -> 0 | DA72: =188257.14 -> 0 | DB72: =529527.83 -> 0 | DC72: =522822.56 -> 0 | DD72: =97489.83 -> 0 | DE72: =200614.17 -> 0 | DF72: =188493.86 -> 0 | DG72: =214604.92 -> 0 | DH72: =205372.08 -> 0 | DI72: =192728.19 -> 0 | DJ72: =186810.32 -> 0 | DK72: =193756.65 -> 0 | DL72: =190569.61 -> 0 | DM72: =186073.96 -> 0 | DN72: =183517.71 -> 0 | DO72: =186263.82 -> 0 | DP72: =182654.05 -> 0 | DQ72: =180821.99 -> 0 | DR72: =180725.42 -> 0 | DS72: =501033.62 -> 0 | DT72: =93576.84 -> 0 | DU72: =192471.09 -> 0 | DV72: =180990.05 -> 0 | DW72: =206413.9 -> 0 | DX72: =197717.98 -> 0 | DY72: =185930.86 -> 0 | DZ72: =180266.09 -> 0 | EA72: =186882.12 -> 0 | EB72: =183853.46 -> 0 | EC72: =179612.51 -> 0 | ED72: =177154.41 -> 0 | EE72: =0 -> 0 | EF72: =0 -> 0 | EG72: =0 -> 0 | EH72: =0 -> 0 | EI72: =0 -> 0 | EJ72: =0 -> 0 | EK72: =0 -> 0 | EL72: =0 -> 0 | EM72: =0 -> 0 | EN72: =0 -> 0 | EO72: =0 -> 0 | EP72: =0 -> 0 | EQ72: =0 -> 0 | ER72: =0 -> 0 | ES72: =0 -> 0 | ET72: =0 -> 0 | EU72: =0 -> 0 | EV72: =0 -> 0 | EW72: =0 -> 0 | EX72: =0 -> 0 | EY72: =0 -> 0 | EZ72: =0 -> 0 | FA72: =0 -> 0 | FB72: =0 -> 0
B73: 4.9 | C73: Projected Member Months | D73: =SUM(E73:XFD73) -> 20873 | E73: =0 -> 0 | F73: =0 -> 0 | G73: =0 -> 0 | H73: =0 -> 0 | I73: =0 -> 0 | J73: =0 -> 0 | K73: =0 -> 0 | L73: =0 -> 0 | M73: =0 -> 0 | N73: =0 -> 0 | O73: =0 -> 0 | P73: =0 -> 0 | Q73: =0 -> 0 | R73: =0 -> 0 | S73: =0 -> 0 | T73: =0 -> 0 | U73: =0 -> 0 | V73: =0 -> 0 | W73: =0 -> 0 | X73: =0 -> 0 | Y73: =0 -> 0 | Z73: =0 -> 0 | AA73: =0 -> 0 | AB73: =0 -> 0 | AC73: =0 -> 0 | AD73: =0 -> 0 | AE73: =0 -> 0 | AF73: =0 -> 0 | AG73: =0 -> 0 | AH73: =0 -> 0 | AI73: =0 -> 0 | AJ73: =212 -> 0 | AK73: =2518 -> 0 | AL73: =788 -> 0 | AM73: =212 -> 0 | AN73: =212 -> 0 | AO73: =212 -> 0 | AP73: =212 -> 0 | AQ73: =602 -> 0 | AR73: =126 -> 0 | AS73: =212 -> 0 | AT73: =212 -> 0 | AU73: =559 -> 0 | AV73: =199 -> 0 | AW73: =212 -> 0 | AX73: =212 -> 0 | AY73: =1725 -> 0 | AZ73: =212 -> 0 | BA73: =212 -> 0 | BB73: =1852 -> 0 | BC73: =0 -> 0 | BD73: =0 -> 0 | BE73: =0 -> 0 | BF73: =0 -> 0 | BG73: =0 -> 0 | BH73: =0 -> 0 | BI73: =0 -> 0 | BJ73: =0 -> 0 | BK73: =0 -> 0 | BL73: =0 -> 0 | BM73: =0 -> 0 | BN73: =0 -> 0 | BO73: =0 -> 0 | BP73: =0 -> 0 | BQ73: =0 -> 0 | BR73: =0 -> 0 | BS73: =0 -> 0 | BT73: =0 -> 0 | BU73: =0 -> 0 | BV73: =0 -> 0 | BW73: =0 -> 0 | BX73: =0 -> 0 | BY73: =0 -> 0 | BZ73: =0 -> 0 | CA73: =0 -> 0 | CB73: =0 -> 0 | CC73: =0 -> 0 | CD73: =0 -> 0 | CE73: =0 -> 0 | CF73: =0 -> 0 | CG73: =0 -> 0 | CH73: =0 -> 0 | CI73: =0 -> 0 | CJ73: =0 -> 0 | CK73: =0 -> 0 | CL73: =0 -> 0 | CM73: =0 -> 0 | CN73: =0 -> 0 | CO73: =0 -> 0 | CP73: =0 -> 0 | CQ73: =0 -> 0 | CR73: =0 -> 0 | CS73: =212 -> 0 | CT73: =212 -> 0 | CU73: =602 -> 0 | CV73: =602 -> 0 | CW73: =602 -> 0 | CX73: =212 -> 0 | CY73: =212 -> 0 | CZ73: =212 -> 0 | DA73: =212 -> 0 | DB73: =602 -> 0 | DC73: =602 -> 0 | DD73: =126 -> 0 | DE73: =212 -> 0 | DF73: =212 -> 0 | DG73: =199 -> 0 | DH73: =199 -> 0 | DI73: =212 -> 0 | DJ73: =212 -> 0 | DK73: =212 -> 0 | DL73: =212 -> 0 | DM73: =212 -> 0 | DN73: =212 -> 0 | DO73: =212 -> 0 | DP73: =212 -> 0 | DQ73: =212 -> 0 | DR73: =212 -> 0 | DS73: =602 -> 0 | DT73: =126 -> 0 | DU73: =212 -> 0 | DV73: =212 -> 0 | DW73: =199 -> 0 | DX73: =199 -> 0 | DY73: =212 -> 0 | DZ73: =212 -> 0 | EA73: =212 -> 0 | EB73: =212 -> 0 | EC73: =212 -> 0 | ED73: =212 -> 0 | EE73: =0 -> 0 | EF73: =0 -> 0 | EG73: =0 -> 0 | EH73: =0 -> 0 | EI73: =0 -> 0 | EJ73: =0 -> 0 | EK73: =0 -> 0 | EL73: =0 -> 0 | EM73: =0 -> 0 | EN73: =0 -> 0 | EO73: =0 -> 0 | EP73: =0 -> 0 | EQ73: =0 -> 0 | ER73: =0 -> 0 | ES73: =0 -> 0 | ET73: =0 -> 0 | EU73: =0 -> 0 | EV73: =0 -> 0 | EW73: =0 -> 0 | EX73: =0 -> 0 | EY73: =0 -> 0 | EZ73: =0 -> 0 | FA73: =0 -> 0 | FB73: =0 -> 0
B74: 4.10 | C74: Loss Ratio | D74: =D70/(D71+D72) -> 0.7861958795 | E74: =E70/(E71+E72) -> 0 | F74: =F70/(F71+F72) -> 0 | G74: =G70/(G71+G72) -> 0 | H74: =H70/(H71+H72) -> 0 | I74: =I70/(I71+I72) -> 0 | J74: =J70/(J71+J72) -> 0 | K74: =K70/(K71+K72) -> 0 | L74: =L70/(L71+L72) -> 0 | M74: =M70/(M71+M72) -> 0 | N74: =N70/(N71+N72) -> 0 | O74: =O70/(O71+O72) -> 0 | P74: =P70/(P71+P72) -> 0 | Q74: =Q70/(Q71+Q72) -> 0 | R74: =R70/(R71+R72) -> 0 | S74: =S70/(S71+S72) -> 0 | T74: =T70/(T71+T72) -> 0 | U74: =U70/(U71+U72) -> 0 | V74: =V70/(V71+V72) -> 0 | W74: =W70/(W71+W72) -> 0 | X74: =X70/(X71+X72) -> 0 | Y74: =Y70/(Y71+Y72) -> 0 | Z74: =Z70/(Z71+Z72) -> 0 | AA74: =AA70/(AA71+AA72) -> 0 | AB74: =AB70/(AB71+AB72) -> 0 | AC74: =AC70/(AC71+AC72) -> 0 | AD74: =AD70/(AD71+AD72) -> 0 | AE74: =AE70/(AE71+AE72) -> 0 | AF74: =AF70/(AF71+AF72) -> 0 | AG74: =AG70/(AG71+AG72) -> 0 | AH74: =AH70/(AH71+AH72) -> 0 | AI74: =AI70/(AI71+AI72) -> 0 | AJ74: =AJ70/(AJ71+AJ72) -> 0 | AK74: =AK70/(AK71+AK72) -> 0 | AL74: =AL70/(AL71+AL72) -> 0 | AM74: =AM70/(AM71+AM72) -> 0 | AN74: =AN70/(AN71+AN72) -> 0 | AO74: =AO70/(AO71+AO72) -> 0 | AP74: =AP70/(AP71+AP72) -> 0 | AQ74: =AQ70/(AQ71+AQ72) -> 0 | AR74: =AR70/(AR71+AR72) -> 0 | AS74: =AS70/(AS71+AS72) -> 0 | AT74: =AT70/(AT71+AT72) -> 0 | AU74: =AU70/(AU71+AU72) -> 0 | AV74: =AV70/(AV71+AV72) -> 0 | AW74: =AW70/(AW71+AW72) -> 0 | AX74: =AX70/(AX71+AX72) -> 0 | AY74: =AY70/(AY71+AY72) -> 0 | AZ74: =AZ70/(AZ71+AZ72) -> 0 | BA74: =BA70/(BA71+BA72) -> 0 | BB74: =BB70/(BB71+BB72) -> 0 | BC74: =BC70/(BC71+BC72) -> 0 | BD74: =BD70/(BD71+BD72) -> 0 | BE74: =BE70/(BE71+BE72) -> 0 | BF74: =BF70/(BF71+BF72) -> 0 | BG74: =BG70/(BG71+BG72) -> 0 | BH74: =BH70/(BH71+BH72) -> 0 | BI74: =BI70/(BI71+BI72) -> 0 | BJ74: =BJ70/(BJ71+BJ72) -> 0 | BK74: =BK70/(BK71+BK72) -> 0 | BL74: =BL70/(BL71+BL72) -> 0 | BM74: =BM70/(BM71+BM72) -> 0 | BN74: =BN70/(BN71+BN72) -> 0 | BO74: =BO70/(BO71+BO72) -> 0 | BP74: =BP70/(BP71+BP72) -> 0 | BQ74: =BQ70/(BQ71+BQ72) -> 0 | BR74: =BR70/(BR71+BR72) -> 0 | BS74: =BS70/(BS71+BS72) -> 0 | BT74: =BT70/(BT71+BT72) -> 0 | BU74: =BU70/(BU71+BU72) -> 0 | BV74: =BV70/(BV71+BV72) -> 0 | BW74: =BW70/(BW71+BW72) -> 0 | BX74: =BX70/(BX71+BX72) -> 0 | BY74: =BY70/(BY71+BY72) -> 0 | BZ74: =BZ70/(BZ71+BZ72) -> 0 | CA74: =CA70/(CA71+CA72) -> 0 | CB74: =CB70/(CB71+CB72) -> 0 | CC74: =CC70/(CC71+CC72) -> 0 | CD74: =CD70/(CD71+CD72) -> 0 | CE74: =CE70/(CE71+CE72) -> 0 | CF74: =CF70/(CF71+CF72) -> 0 | CG74: =CG70/(CG71+CG72) -> 0 | CH74: =CH70/(CH71+CH72) -> 0 | CI74: =CI70/(CI71+CI72) -> 0 | CJ74: =CJ70/(CJ71+CJ72) -> 0 | CK74: =CK70/(CK71+CK72) -> 0 | CL74: =CL70/(CL71+CL72) -> 0 | CM74: =CM70/(CM71+CM72) -> 0 | CN74: =CN70/(CN71+CN72) -> 0 | CO74: =CO70/(CO71+CO72) -> 0 | CP74: =CP70/(CP71+CP72) -> 0 | CQ74: =CQ70/(CQ71+CQ72) -> 0 | CR74: =CR70/(CR71+CR72) -> 0 | CS74: =CS70/(CS71+CS72) -> 0 | CT74: =CT70/(CT71+CT72) -> 0 | CU74: =CU70/(CU71+CU72) -> 0 | CV74: =CV70/(CV71+CV72) -> 0 | CW74: =CW70/(CW71+CW72) -> 0 | CX74: =CX70/(CX71+CX72) -> 0 | CY74: =CY70/(CY71+CY72) -> 0 | CZ74: =CZ70/(CZ71+CZ72) -> 0 | DA74: =DA70/(DA71+DA72) -> 0 | DB74: =DB70/(DB71+DB72) -> 0 | DC74: =DC70/(DC71+DC72) -> 0 | DD74: =DD70/(DD71+DD72) -> 0 | DE74: =DE70/(DE71+DE72) -> 0 | DF74: =DF70/(DF71+DF72) -> 0 | DG74: =DG70/(DG71+DG72) -> 0 | DH74: =DH70/(DH71+DH72) -> 0 | DI74: =DI70/(DI71+DI72) -> 0 | DJ74: =DJ70/(DJ71+DJ72) -> 0 | DK74: =DK70/(DK71+DK72) -> 0 | DL74: =DL70/(DL71+DL72) -> 0 | DM74: =DM70/(DM71+DM72) -> 0 | DN74: =DN70/(DN71+DN72) -> 0 | DO74: =DO70/(DO71+DO72) -> 0 | DP74: =DP70/(DP71+DP72) -> 0 | DQ74: =DQ70/(DQ71+DQ72) -> 0 | DR74: =DR70/(DR71+DR72) -> 0 | DS74: =DS70/(DS71+DS72) -> 0 | DT74: =DT70/(DT71+DT72) -> 0 | DU74: =DU70/(DU71+DU72) -> 0 | DV74: =DV70/(DV71+DV72) -> 0 | DW74: =DW70/(DW71+DW72) -> 0 | DX74: =DX70/(DX71+DX72) -> 0 | DY74: =DY70/(DY71+DY72) -> 0 | DZ74: =DZ70/(DZ71+DZ72) -> 0 | EA74: =EA70/(EA71+EA72) -> 0 | EB74: =EB70/(EB71+EB72) -> 0 | EC74: =EC70/(EC71+EC72) -> 0 | ED74: =ED70/(ED71+ED72) -> 0 | EE74: =EE70/(EE71+EE72) -> 0 | EF74: =EF70/(EF71+EF72) -> 0 | EG74: =EG70/(EG71+EG72) -> 0 | EH74: =EH70/(EH71+EH72) -> 0 | EI74: =EI70/(EI71+EI72) -> 0 | EJ74: =EJ70/(EJ71+EJ72) -> 0 | EK74: =EK70/(EK71+EK72) -> 0 | EL74: =EL70/(EL71+EL72) -> 0 | EM74: =EM70/(EM71+EM72) -> 0 | EN74: =EN70/(EN71+EN72) -> 0 | EO74: =EO70/(EO71+EO72) -> 0 | EP74: =EP70/(EP71+EP72) -> 0 | EQ74: =EQ70/(EQ71+EQ72) -> 0 | ER74: =ER70/(ER71+ER72) -> 0 | ES74: =ES70/(ES71+ES72) -> 0 | ET74: =ET70/(ET71+ET72) -> 0 | EU74: =EU70/(EU71+EU72) -> 0 | EV74: =EV70/(EV71+EV72) -> 0 | EW74: =EW70/(EW71+EW72) -> 0 | EX74: =EX70/(EX71+EX72) -> 0 | EY74: =EY70/(EY71+EY72) -> 0 | EZ74: =EZ70/(EZ71+EZ72) -> 0 | FA74: =FA70/(FA71+FA72) -> 0 | FB74: =FB70/(FB71+FB72) -> 0
C75: Per Member Per Month
B76: 4.11 | C76: Allowed Claims | D76: =D66/D73 -> 790.67 | E76: =E66/E73 -> 0 | F76: =F66/F73 -> 0 | G76: =G66/G73 -> 0 | H76: =H66/H73 -> 0 | I76: =I66/I73 -> 0 | J76: =J66/J73 -> 0 | K76: =K66/K73 -> 0 | L76: =L66/L73 -> 0 | M76: =M66/M73 -> 0 | N76: =N66/N73 -> 0 | O76: =O66/O73 -> 0 | P76: =P66/P73 -> 0 | Q76: =Q66/Q73 -> 0 | R76: =R66/R73 -> 0 | S76: =S66/S73 -> 0 | T76: =T66/T73 -> 0 | U76: =U66/U73 -> 0 | V76: =V66/V73 -> 0 | W76: =W66/W73 -> 0 | X76: =X66/X73 -> 0 | Y76: =Y66/Y73 -> 0 | Z76: =Z66/Z73 -> 0 | AA76: =AA66/AA73 -> 0 | AB76: =AB66/AB73 -> 0 | AC76: =AC66/AC73 -> 0 | AD76: =AD66/AD73 -> 0 | AE76: =AE66/AE73 -> 0 | AF76: =AF66/AF73 -> 0 | AG76: =AG66/AG73 -> 0 | AH76: =AH66/AH73 -> 0 | AI76: =AI66/AI73 -> 0 | AJ76: =AJ66/AJ73 -> 0 | AK76: =AK66/AK73 -> 0 | AL76: =AL66/AL73 -> 0 | AM76: =AM66/AM73 -> 0 | AN76: =AN66/AN73 -> 0 | AO76: =AO66/AO73 -> 0 | AP76: =AP66/AP73 -> 0 | AQ76: =AQ66/AQ73 -> 0 | AR76: =AR66/AR73 -> 0 | AS76: =AS66/AS73 -> 0 | AT76: =AT66/AT73 -> 0 | AU76: =AU66/AU73 -> 0 | AV76: =AV66/AV73 -> 0 | AW76: =AW66/AW73 -> 0 | AX76: =AX66/AX73 -> 0 | AY76: =AY66/AY73 -> 0 | AZ76: =AZ66/AZ73 -> 0 | BA76: =BA66/BA73 -> 0 | BB76: =BB66/BB73 -> 0 | BC76: =BC66/BC73 -> 0 | BD76: =BD66/BD73 -> 0 | BE76: =BE66/BE73 -> 0 | BF76: =BF66/BF73 -> 0 | BG76: =BG66/BG73 -> 0 | BH76: =BH66/BH73 -> 0 | BI76: =BI66/BI73 -> 0 | BJ76: =BJ66/BJ73 -> 0 | BK76: =BK66/BK73 -> 0 | BL76: =BL66/BL73 -> 0 | BM76: =BM66/BM73 -> 0 | BN76: =BN66/BN73 -> 0 | BO76: =BO66/BO73 -> 0 | BP76: =BP66/BP73 -> 0 | BQ76: =BQ66/BQ73 -> 0 | BR76: =BR66/BR73 -> 0 | BS76: =BS66/BS73 -> 0 | BT76: =BT66/BT73 -> 0 | BU76: =BU66/BU73 -> 0 | BV76: =BV66/BV73 -> 0 | BW76: =BW66/BW73 -> 0 | BX76: =BX66/BX73 -> 0 | BY76: =BY66/BY73 -> 0 | BZ76: =BZ66/BZ73 -> 0 | CA76: =CA66/CA73 -> 0 | CB76: =CB66/CB73 -> 0 | CC76: =CC66/CC73 -> 0 | CD76: =CD66/CD73 -> 0 | CE76: =CE66/CE73 -> 0 | CF76: =CF66/CF73 -> 0 | CG76: =CG66/CG73 -> 0 | CH76: =CH66/CH73 -> 0 | CI76: =CI66/CI73 -> 0 | CJ76: =CJ66/CJ73 -> 0 | CK76: =CK66/CK73 -> 0 | CL76: =CL66/CL73 -> 0 | CM76: =CM66/CM73 -> 0 | CN76: =CN66/CN73 -> 0 | CO76: =CO66/CO73 -> 0 | CP76: =CP66/CP73 -> 0 | CQ76: =CQ66/CQ73 -> 0 | CR76: =CR66/CR73 -> 0 | CS76: =CS66/CS73 -> 0 | CT76: =CT66/CT73 -> 0 | CU76: =CU66/CU73 -> 0 | CV76: =CV66/CV73 -> 0 | CW76: =CW66/CW73 -> 0 | CX76: =CX66/CX73 -> 0 | CY76: =CY66/CY73 -> 0 | CZ76: =CZ66/CZ73 -> 0 | DA76: =DA66/DA73 -> 0 | DB76: =DB66/DB73 -> 0 | DC76: =DC66/DC73 -> 0 | DD76: =DD66/DD73 -> 0 | DE76: =DE66/DE73 -> 0 | DF76: =DF66/DF73 -> 0 | DG76: =DG66/DG73 -> 0 | DH76: =DH66/DH73 -> 0 | DI76: =DI66/DI73 -> 0 | DJ76: =DJ66/DJ73 -> 0 | DK76: =DK66/DK73 -> 0 | DL76: =DL66/DL73 -> 0 | DM76: =DM66/DM73 -> 0 | DN76: =DN66/DN73 -> 0 | DO76: =DO66/DO73 -> 0 | DP76: =DP66/DP73 -> 0 | DQ76: =DQ66/DQ73 -> 0 | DR76: =DR66/DR73 -> 0 | DS76: =DS66/DS73 -> 0 | DT76: =DT66/DT73 -> 0 | DU76: =DU66/DU73 -> 0 | DV76: =DV66/DV73 -> 0 | DW76: =DW66/DW73 -> 0 | DX76: =DX66/DX73 -> 0 | DY76: =DY66/DY73 -> 0 | DZ76: =DZ66/DZ73 -> 0 | EA76: =EA66/EA73 -> 0 | EB76: =EB66/EB73 -> 0 | EC76: =EC66/EC73 -> 0 | ED76: =ED66/ED73 -> 0 | EE76: =EE66/EE73 -> 0 | EF76: =EF66/EF73 -> 0 | EG76: =EG66/EG73 -> 0 | EH76: =EH66/EH73 -> 0 | EI76: =EI66/EI73 -> 0 | EJ76: =EJ66/EJ73 -> 0 | EK76: =EK66/EK73 -> 0 | EL76: =EL66/EL73 -> 0 | EM76: =EM66/EM73 -> 0 | EN76: =EN66/EN73 -> 0 | EO76: =EO66/EO73 -> 0 | EP76: =EP66/EP73 -> 0 | EQ76: =EQ66/EQ73 -> 0 | ER76: =ER66/ER73 -> 0 | ES76: =ES66/ES73 -> 0 | ET76: =ET66/ET73 -> 0 | EU76: =EU66/EU73 -> 0 | EV76: =EV66/EV73 -> 0 | EW76: =EW66/EW73 -> 0 | EX76: =EX66/EX73 -> 0 | EY76: =EY66/EY73 -> 0 | EZ76: =EZ66/EZ73 -> 0 | FA76: =FA66/FA73 -> 0 | FB76: =FB66/FB73 -> 0
B77: 4.12 | C77: Reinsurance | D77: =D67/D73 -> 0 | E77: =E67/E73 -> 0 | F77: =F67/F73 -> 0 | G77: =G67/G73 -> 0 | H77: =H67/H73 -> 0 | I77: =I67/I73 -> 0 | J77: =J67/J73 -> 0 | K77: =K67/K73 -> 0 | L77: =L67/L73 -> 0 | M77: =M67/M73 -> 0 | N77: =N67/N73 -> 0 | O77: =O67/O73 -> 0 | P77: =P67/P73 -> 0 | Q77: =Q67/Q73 -> 0 | R77: =R67/R73 -> 0 | S77: =S67/S73 -> 0 | T77: =T67/T73 -> 0 | U77: =U67/U73 -> 0 | V77: =V67/V73 -> 0 | W77: =W67/W73 -> 0 | X77: =X67/X73 -> 0 | Y77: =Y67/Y73 -> 0 | Z77: =Z67/Z73 -> 0 | AA77: =AA67/AA73 -> 0 | AB77: =AB67/AB73 -> 0 | AC77: =AC67/AC73 -> 0 | AD77: =AD67/AD73 -> 0 | AE77: =AE67/AE73 -> 0 | AF77: =AF67/AF73 -> 0 | AG77: =AG67/AG73 -> 0 | AH77: =AH67/AH73 -> 0 | AI77: =AI67/AI73 -> 0 | AJ77: =AJ67/AJ73 -> 0 | AK77: =AK67/AK73 -> 0 | AL77: =AL67/AL73 -> 0 | AM77: =AM67/AM73 -> 0 | AN77: =AN67/AN73 -> 0 | AO77: =AO67/AO73 -> 0 | AP77: =AP67/AP73 -> 0 | AQ77: =AQ67/AQ73 -> 0 | AR77: =AR67/AR73 -> 0 | AS77: =AS67/AS73 -> 0 | AT77: =AT67/AT73 -> 0 | AU77: =AU67/AU73 -> 0 | AV77: =AV67/AV73 -> 0 | AW77: =AW67/AW73 -> 0 | AX77: =AX67/AX73 -> 0 | AY77: =AY67/AY73 -> 0 | AZ77: =AZ67/AZ73 -> 0 | BA77: =BA67/BA73 -> 0 | BB77: =BB67/BB73 -> 0 | BC77: =BC67/BC73 -> 0 | BD77: =BD67/BD73 -> 0 | BE77: =BE67/BE73 -> 0 | BF77: =BF67/BF73 -> 0 | BG77: =BG67/BG73 -> 0 | BH77: =BH67/BH73 -> 0 | BI77: =BI67/BI73 -> 0 | BJ77: =BJ67/BJ73 -> 0 | BK77: =BK67/BK73 -> 0 | BL77: =BL67/BL73 -> 0 | BM77: =BM67/BM73 -> 0 | BN77: =BN67/BN73 -> 0 | BO77: =BO67/BO73 -> 0 | BP77: =BP67/BP73 -> 0 | BQ77: =BQ67/BQ73 -> 0 | BR77: =BR67/BR73 -> 0 | BS77: =BS67/BS73 -> 0 | BT77: =BT67/BT73 -> 0 | BU77: =BU67/BU73 -> 0 | BV77: =BV67/BV73 -> 0 | BW77: =BW67/BW73 -> 0 | BX77: =BX67/BX73 -> 0 | BY77: =BY67/BY73 -> 0 | BZ77: =BZ67/BZ73 -> 0 | CA77: =CA67/CA73 -> 0 | CB77: =CB67/CB73 -> 0 | CC77: =CC67/CC73 -> 0 | CD77: =CD67/CD73 -> 0 | CE77: =CE67/CE73 -> 0 | CF77: =CF67/CF73 -> 0 | CG77: =CG67/CG73 -> 0 | CH77: =CH67/CH73 -> 0 | CI77: =CI67/CI73 -> 0 | CJ77: =CJ67/CJ73 -> 0 | CK77: =CK67/CK73 -> 0 | CL77: =CL67/CL73 -> 0 | CM77: =CM67/CM73 -> 0 | CN77: =CN67/CN73 -> 0 | CO77: =CO67/CO73 -> 0 | CP77: =CP67/CP73 -> 0 | CQ77: =CQ67/CQ73 -> 0 | CR77: =CR67/CR73 -> 0 | CS77: =CS67/CS73 -> 0 | CT77: =CT67/CT73 -> 0 | CU77: =CU67/CU73 -> 0 | CV77: =CV67/CV73 -> 0 | CW77: =CW67/CW73 -> 0 | CX77: =CX67/CX73 -> 0 | CY77: =CY67/CY73 -> 0 | CZ77: =CZ67/CZ73 -> 0 | DA77: =DA67/DA73 -> 0 | DB77: =DB67/DB73 -> 0 | DC77: =DC67/DC73 -> 0 | DD77: =DD67/DD73 -> 0 | DE77: =DE67/DE73 -> 0 | DF77: =DF67/DF73 -> 0 | DG77: =DG67/DG73 -> 0 | DH77: =DH67/DH73 -> 0 | DI77: =DI67/DI73 -> 0 | DJ77: =DJ67/DJ73 -> 0 | DK77: =DK67/DK73 -> 0 | DL77: =DL67/DL73 -> 0 | DM77: =DM67/DM73 -> 0 | DN77: =DN67/DN73 -> 0 | DO77: =DO67/DO73 -> 0 | DP77: =DP67/DP73 -> 0 | DQ77: =DQ67/DQ73 -> 0 | DR77: =DR67/DR73 -> 0 | DS77: =DS67/DS73 -> 0 | DT77: =DT67/DT73 -> 0 | DU77: =DU67/DU73 -> 0 | DV77: =DV67/DV73 -> 0 | DW77: =DW67/DW73 -> 0 | DX77: =DX67/DX73 -> 0 | DY77: =DY67/DY73 -> 0 | DZ77: =DZ67/DZ73 -> 0 | EA77: =EA67/EA73 -> 0 | EB77: =EB67/EB73 -> 0 | EC77: =EC67/EC73 -> 0 | ED77: =ED67/ED73 -> 0 | EE77: =EE67/EE73 -> 0 | EF77: =EF67/EF73 -> 0 | EG77: =EG67/EG73 -> 0 | EH77: =EH67/EH73 -> 0 | EI77: =EI67/EI73 -> 0 | EJ77: =EJ67/EJ73 -> 0 | EK77: =EK67/EK73 -> 0 | EL77: =EL67/EL73 -> 0 | EM77: =EM67/EM73 -> 0 | EN77: =EN67/EN73 -> 0 | EO77: =EO67/EO73 -> 0 | EP77: =EP67/EP73 -> 0 | EQ77: =EQ67/EQ73 -> 0 | ER77: =ER67/ER73 -> 0 | ES77: =ES67/ES73 -> 0 | ET77: =ET67/ET73 -> 0 | EU77: =EU67/EU73 -> 0 | EV77: =EV67/EV73 -> 0 | EW77: =EW67/EW73 -> 0 | EX77: =EX67/EX73 -> 0 | EY77: =EY67/EY73 -> 0 | EZ77: =EZ67/EZ73 -> 0 | FA77: =FA67/FA73 -> 0 | FB77: =FB67/FB73 -> 0
B78: 4.13 | C78: Member Cost Sharing | D78: =D68/D73 -> 157.3433 | E78: =E68/E73 -> 0 | F78: =F68/F73 -> 0 | G78: =G68/G73 -> 0 | H78: =H68/H73 -> 0 | I78: =I68/I73 -> 0 | J78: =J68/J73 -> 0 | K78: =K68/K73 -> 0 | L78: =L68/L73 -> 0 | M78: =M68/M73 -> 0 | N78: =N68/N73 -> 0 | O78: =O68/O73 -> 0 | P78: =P68/P73 -> 0 | Q78: =Q68/Q73 -> 0 | R78: =R68/R73 -> 0 | S78: =S68/S73 -> 0 | T78: =T68/T73 -> 0 | U78: =U68/U73 -> 0 | V78: =V68/V73 -> 0 | W78: =W68/W73 -> 0 | X78: =X68/X73 -> 0 | Y78: =Y68/Y73 -> 0 | Z78: =Z68/Z73 -> 0 | AA78: =AA68/AA73 -> 0 | AB78: =AB68/AB73 -> 0 | AC78: =AC68/AC73 -> 0 | AD78: =AD68/AD73 -> 0 | AE78: =AE68/AE73 -> 0 | AF78: =AF68/AF73 -> 0 | AG78: =AG68/AG73 -> 0 | AH78: =AH68/AH73 -> 0 | AI78: =AI68/AI73 -> 0 | AJ78: =AJ68/AJ73 -> 0 | AK78: =AK68/AK73 -> 0 | AL78: =AL68/AL73 -> 0 | AM78: =AM68/AM73 -> 0 | AN78: =AN68/AN73 -> 0 | AO78: =AO68/AO73 -> 0 | AP78: =AP68/AP73 -> 0 | AQ78: =AQ68/AQ73 -> 0 | AR78: =AR68/AR73 -> 0 | AS78: =AS68/AS73 -> 0 | AT78: =AT68/AT73 -> 0 | AU78: =AU68/AU73 -> 0 | AV78: =AV68/AV73 -> 0 | AW78: =AW68/AW73 -> 0 | AX78: =AX68/AX73 -> 0 | AY78: =AY68/AY73 -> 0 | AZ78: =AZ68/AZ73 -> 0 | BA78: =BA68/BA73 -> 0 | BB78: =BB68/BB73 -> 0 | BC78: =BC68/BC73 -> 0 | BD78: =BD68/BD73 -> 0 | BE78: =BE68/BE73 -> 0 | BF78: =BF68/BF73 -> 0 | BG78: =BG68/BG73 -> 0 | BH78: =BH68/BH73 -> 0 | BI78: =BI68/BI73 -> 0 | BJ78: =BJ68/BJ73 -> 0 | BK78: =BK68/BK73 -> 0 | BL78: =BL68/BL73 -> 0 | BM78: =BM68/BM73 -> 0 | BN78: =BN68/BN73 -> 0 | BO78: =BO68/BO73 -> 0 | BP78: =BP68/BP73 -> 0 | BQ78: =BQ68/BQ73 -> 0 | BR78: =BR68/BR73 -> 0 | BS78: =BS68/BS73 -> 0 | BT78: =BT68/BT73 -> 0 | BU78: =BU68/BU73 -> 0 | BV78: =BV68/BV73 -> 0 | BW78: =BW68/BW73 -> 0 | BX78: =BX68/BX73 -> 0 | BY78: =BY68/BY73 -> 0 | BZ78: =BZ68/BZ73 -> 0 | CA78: =CA68/CA73 -> 0 | CB78: =CB68/CB73 -> 0 | CC78: =CC68/CC73 -> 0 | CD78: =CD68/CD73 -> 0 | CE78: =CE68/CE73 -> 0 | CF78: =CF68/CF73 -> 0 | CG78: =CG68/CG73 -> 0 | CH78: =CH68/CH73 -> 0 | CI78: =CI68/CI73 -> 0 | CJ78: =CJ68/CJ73 -> 0 | CK78: =CK68/CK73 -> 0 | CL78: =CL68/CL73 -> 0 | CM78: =CM68/CM73 -> 0 | CN78: =CN68/CN73 -> 0 | CO78: =CO68/CO73 -> 0 | CP78: =CP68/CP73 -> 0 | CQ78: =CQ68/CQ73 -> 0 | CR78: =CR68/CR73 -> 0 | CS78: =CS68/CS73 -> 0 | CT78: =CT68/CT73 -> 0 | CU78: =CU68/CU73 -> 0 | CV78: =CV68/CV73 -> 0 | CW78: =CW68/CW73 -> 0 | CX78: =CX68/CX73 -> 0 | CY78: =CY68/CY73 -> 0 | CZ78: =CZ68/CZ73 -> 0 | DA78: =DA68/DA73 -> 0 | DB78: =DB68/DB73 -> 0 | DC78: =DC68/DC73 -> 0 | DD78: =DD68/DD73 -> 0 | DE78: =DE68/DE73 -> 0 | DF78: =DF68/DF73 -> 0 | DG78: =DG68/DG73 -> 0 | DH78: =DH68/DH73 -> 0 | DI78: =DI68/DI73 -> 0 | DJ78: =DJ68/DJ73 -> 0 | DK78: =DK68/DK73 -> 0 | DL78: =DL68/DL73 -> 0 | DM78: =DM68/DM73 -> 0 | DN78: =DN68/DN73 -> 0 | DO78: =DO68/DO73 -> 0 | DP78: =DP68/DP73 -> 0 | DQ78: =DQ68/DQ73 -> 0 | DR78: =DR68/DR73 -> 0 | DS78: =DS68/DS73 -> 0 | DT78: =DT68/DT73 -> 0 | DU78: =DU68/DU73 -> 0 | DV78: =DV68/DV73 -> 0 | DW78: =DW68/DW73 -> 0 | DX78: =DX68/DX73 -> 0 | DY78: =DY68/DY73 -> 0 | DZ78: =DZ68/DZ73 -> 0 | EA78: =EA68/EA73 -> 0 | EB78: =EB68/EB73 -> 0 | EC78: =EC68/EC73 -> 0 | ED78: =ED68/ED73 -> 0 | EE78: =EE68/EE73 -> 0 | EF78: =EF68/EF73 -> 0 | EG78: =EG68/EG73 -> 0 | EH78: =EH68/EH73 -> 0 | EI78: =EI68/EI73 -> 0 | EJ78: =EJ68/EJ73 -> 0 | EK78: =EK68/EK73 -> 0 | EL78: =EL68/EL73 -> 0 | EM78: =EM68/EM73 -> 0 | EN78: =EN68/EN73 -> 0 | EO78: =EO68/EO73 -> 0 | EP78: =EP68/EP73 -> 0 | EQ78: =EQ68/EQ73 -> 0 | ER78: =ER68/ER73 -> 0 | ES78: =ES68/ES73 -> 0 | ET78: =ET68/ET73 -> 0 | EU78: =EU68/EU73 -> 0 | EV78: =EV68/EV73 -> 0 | EW78: =EW68/EW73 -> 0 | EX78: =EX68/EX73 -> 0 | EY78: =EY68/EY73 -> 0 | EZ78: =EZ68/EZ73 -> 0 | FA78: =FA68/FA73 -> 0 | FB78: =FB68/FB73 -> 0
B79: 4.14 | C79: Cost Sharing Reduction | D79: =D69/D73 -> 0 | E79: =E69/E73 -> 0 | F79: =F69/F73 -> 0 | G79: =G69/G73 -> 0 | H79: =H69/H73 -> 0 | I79: =I69/I73 -> 0 | J79: =J69/J73 -> 0 | K79: =K69/K73 -> 0 | L79: =L69/L73 -> 0 | M79: =M69/M73 -> 0 | N79: =N69/N73 -> 0 | O79: =O69/O73 -> 0 | P79: =P69/P73 -> 0 | Q79: =Q69/Q73 -> 0 | R79: =R69/R73 -> 0 | S79: =S69/S73 -> 0 | T79: =T69/T73 -> 0 | U79: =U69/U73 -> 0 | V79: =V69/V73 -> 0 | W79: =W69/W73 -> 0 | X79: =X69/X73 -> 0 | Y79: =Y69/Y73 -> 0 | Z79: =Z69/Z73 -> 0 | AA79: =AA69/AA73 -> 0 | AB79: =AB69/AB73 -> 0 | AC79: =AC69/AC73 -> 0 | AD79: =AD69/AD73 -> 0 | AE79: =AE69/AE73 -> 0 | AF79: =AF69/AF73 -> 0 | AG79: =AG69/AG73 -> 0 | AH79: =AH69/AH73 -> 0 | AI79: =AI69/AI73 -> 0 | AJ79: =AJ69/AJ73 -> 0 | AK79: =AK69/AK73 -> 0 | AL79: =AL69/AL73 -> 0 | AM79: =AM69/AM73 -> 0 | AN79: =AN69/AN73 -> 0 | AO79: =AO69/AO73 -> 0 | AP79: =AP69/AP73 -> 0 | AQ79: =AQ69/AQ73 -> 0 | AR79: =AR69/AR73 -> 0 | AS79: =AS69/AS73 -> 0 | AT79: =AT69/AT73 -> 0 | AU79: =AU69/AU73 -> 0 | AV79: =AV69/AV73 -> 0 | AW79: =AW69/AW73 -> 0 | AX79: =AX69/AX73 -> 0 | AY79: =AY69/AY73 -> 0 | AZ79: =AZ69/AZ73 -> 0 | BA79: =BA69/BA73 -> 0 | BB79: =BB69/BB73 -> 0 | BC79: =BC69/BC73 -> 0 | BD79: =BD69/BD73 -> 0 | BE79: =BE69/BE73 -> 0 | BF79: =BF69/BF73 -> 0 | BG79: =BG69/BG73 -> 0 | BH79: =BH69/BH73 -> 0 | BI79: =BI69/BI73 -> 0 | BJ79: =BJ69/BJ73 -> 0 | BK79: =BK69/BK73 -> 0 | BL79: =BL69/BL73 -> 0 | BM79: =BM69/BM73 -> 0 | BN79: =BN69/BN73 -> 0 | BO79: =BO69/BO73 -> 0 | BP79: =BP69/BP73 -> 0 | BQ79: =BQ69/BQ73 -> 0 | BR79: =BR69/BR73 -> 0 | BS79: =BS69/BS73 -> 0 | BT79: =BT69/BT73 -> 0 | BU79: =BU69/BU73 -> 0 | BV79: =BV69/BV73 -> 0 | BW79: =BW69/BW73 -> 0 | BX79: =BX69/BX73 -> 0 | BY79: =BY69/BY73 -> 0 | BZ79: =BZ69/BZ73 -> 0 | CA79: =CA69/CA73 -> 0 | CB79: =CB69/CB73 -> 0 | CC79: =CC69/CC73 -> 0 | CD79: =CD69/CD73 -> 0 | CE79: =CE69/CE73 -> 0 | CF79: =CF69/CF73 -> 0 | CG79: =CG69/CG73 -> 0 | CH79: =CH69/CH73 -> 0 | CI79: =CI69/CI73 -> 0 | CJ79: =CJ69/CJ73 -> 0 | CK79: =CK69/CK73 -> 0 | CL79: =CL69/CL73 -> 0 | CM79: =CM69/CM73 -> 0 | CN79: =CN69/CN73 -> 0 | CO79: =CO69/CO73 -> 0 | CP79: =CP69/CP73 -> 0 | CQ79: =CQ69/CQ73 -> 0 | CR79: =CR69/CR73 -> 0 | CS79: =CS69/CS73 -> 0 | CT79: =CT69/CT73 -> 0 | CU79: =CU69/CU73 -> 0 | CV79: =CV69/CV73 -> 0 | CW79: =CW69/CW73 -> 0 | CX79: =CX69/CX73 -> 0 | CY79: =CY69/CY73 -> 0 | CZ79: =CZ69/CZ73 -> 0 | DA79: =DA69/DA73 -> 0 | DB79: =DB69/DB73 -> 0 | DC79: =DC69/DC73 -> 0 | DD79: =DD69/DD73 -> 0 | DE79: =DE69/DE73 -> 0 | DF79: =DF69/DF73 -> 0 | DG79: =DG69/DG73 -> 0 | DH79: =DH69/DH73 -> 0 | DI79: =DI69/DI73 -> 0 | DJ79: =DJ69/DJ73 -> 0 | DK79: =DK69/DK73 -> 0 | DL79: =DL69/DL73 -> 0 | DM79: =DM69/DM73 -> 0 | DN79: =DN69/DN73 -> 0 | DO79: =DO69/DO73 -> 0 | DP79: =DP69/DP73 -> 0 | DQ79: =DQ69/DQ73 -> 0 | DR79: =DR69/DR73 -> 0 | DS79: =DS69/DS73 -> 0 | DT79: =DT69/DT73 -> 0 | DU79: =DU69/DU73 -> 0 | DV79: =DV69/DV73 -> 0 | DW79: =DW69/DW73 -> 0 | DX79: =DX69/DX73 -> 0 | DY79: =DY69/DY73 -> 0 | DZ79: =DZ69/DZ73 -> 0 | EA79: =EA69/EA73 -> 0 | EB79: =EB69/EB73 -> 0 | EC79: =EC69/EC73 -> 0 | ED79: =ED69/ED73 -> 0 | EE79: =EE69/EE73 -> 0 | EF79: =EF69/EF73 -> 0 | EG79: =EG69/EG73 -> 0 | EH79: =EH69/EH73 -> 0 | EI79: =EI69/EI73 -> 0 | EJ79: =EJ69/EJ73 -> 0 | EK79: =EK69/EK73 -> 0 | EL79: =EL69/EL73 -> 0 | EM79: =EM69/EM73 -> 0 | EN79: =EN69/EN73 -> 0 | EO79: =EO69/EO73 -> 0 | EP79: =EP69/EP73 -> 0 | EQ79: =EQ69/EQ73 -> 0 | ER79: =ER69/ER73 -> 0 | ES79: =ES69/ES73 -> 0 | ET79: =ET69/ET73 -> 0 | EU79: =EU69/EU73 -> 0 | EV79: =EV69/EV73 -> 0 | EW79: =EW69/EW73 -> 0 | EX79: =EX69/EX73 -> 0 | EY79: =EY69/EY73 -> 0 | EZ79: =EZ69/EZ73 -> 0 | FA79: =FA69/FA73 -> 0 | FB79: =FB69/FB73 -> 0
B80: 4.15 | C80: Incurred Claims | D80: =D70/D73 -> 633.3267 | E80: =E70/E73 -> 0 | F80: =F70/F73 -> 0 | G80: =G70/G73 -> 0 | H80: =H70/H73 -> 0 | I80: =I70/I73 -> 0 | J80: =J70/J73 -> 0 | K80: =K70/K73 -> 0 | L80: =L70/L73 -> 0 | M80: =M70/M73 -> 0 | N80: =N70/N73 -> 0 | O80: =O70/O73 -> 0 | P80: =P70/P73 -> 0 | Q80: =Q70/Q73 -> 0 | R80: =R70/R73 -> 0 | S80: =S70/S73 -> 0 | T80: =T70/T73 -> 0 | U80: =U70/U73 -> 0 | V80: =V70/V73 -> 0 | W80: =W70/W73 -> 0 | X80: =X70/X73 -> 0 | Y80: =Y70/Y73 -> 0 | Z80: =Z70/Z73 -> 0 | AA80: =AA70/AA73 -> 0 | AB80: =AB70/AB73 -> 0 | AC80: =AC70/AC73 -> 0 | AD80: =AD70/AD73 -> 0 | AE80: =AE70/AE73 -> 0 | AF80: =AF70/AF73 -> 0 | AG80: =AG70/AG73 -> 0 | AH80: =AH70/AH73 -> 0 | AI80: =AI70/AI73 -> 0 | AJ80: =AJ70/AJ73 -> 0 | AK80: =AK70/AK73 -> 0 | AL80: =AL70/AL73 -> 0 | AM80: =AM70/AM73 -> 0 | AN80: =AN70/AN73 -> 0 | AO80: =AO70/AO73 -> 0 | AP80: =AP70/AP73 -> 0 | AQ80: =AQ70/AQ73 -> 0 | AR80: =AR70/AR73 -> 0 | AS80: =AS70/AS73 -> 0 | AT80: =AT70/AT73 -> 0 | AU80: =AU70/AU73 -> 0 | AV80: =AV70/AV73 -> 0 | AW80: =AW70/AW73 -> 0 | AX80: =AX70/AX73 -> 0 | AY80: =AY70/AY73 -> 0 | AZ80: =AZ70/AZ73 -> 0 | BA80: =BA70/BA73 -> 0 | BB80: =BB70/BB73 -> 0 | BC80: =BC70/BC73 -> 0 | BD80: =BD70/BD73 -> 0 | BE80: =BE70/BE73 -> 0 | BF80: =BF70/BF73 -> 0 | BG80: =BG70/BG73 -> 0 | BH80: =BH70/BH73 -> 0 | BI80: =BI70/BI73 -> 0 | BJ80: =BJ70/BJ73 -> 0 | BK80: =BK70/BK73 -> 0 | BL80: =BL70/BL73 -> 0 | BM80: =BM70/BM73 -> 0 | BN80: =BN70/BN73 -> 0 | BO80: =BO70/BO73 -> 0 | BP80: =BP70/BP73 -> 0 | BQ80: =BQ70/BQ73 -> 0 | BR80: =BR70/BR73 -> 0 | BS80: =BS70/BS73 -> 0 | BT80: =BT70/BT73 -> 0 | BU80: =BU70/BU73 -> 0 | BV80: =BV70/BV73 -> 0 | BW80: =BW70/BW73 -> 0 | BX80: =BX70/BX73 -> 0 | BY80: =BY70/BY73 -> 0 | BZ80: =BZ70/BZ73 -> 0 | CA80: =CA70/CA73 -> 0 | CB80: =CB70/CB73 -> 0 | CC80: =CC70/CC73 -> 0 | CD80: =CD70/CD73 -> 0 | CE80: =CE70/CE73 -> 0 | CF80: =CF70/CF73 -> 0 | CG80: =CG70/CG73 -> 0 | CH80: =CH70/CH73 -> 0 | CI80: =CI70/CI73 -> 0 | CJ80: =CJ70/CJ73 -> 0 | CK80: =CK70/CK73 -> 0 | CL80: =CL70/CL73 -> 0 | CM80: =CM70/CM73 -> 0 | CN80: =CN70/CN73 -> 0 | CO80: =CO70/CO73 -> 0 | CP80: =CP70/CP73 -> 0 | CQ80: =CQ70/CQ73 -> 0 | CR80: =CR70/CR73 -> 0 | CS80: =CS70/CS73 -> 0 | CT80: =CT70/CT73 -> 0 | CU80: =CU70/CU73 -> 0 | CV80: =CV70/CV73 -> 0 | CW80: =CW70/CW73 -> 0 | CX80: =CX70/CX73 -> 0 | CY80: =CY70/CY73 -> 0 | CZ80: =CZ70/CZ73 -> 0 | DA80: =DA70/DA73 -> 0 | DB80: =DB70/DB73 -> 0 | DC80: =DC70/DC73 -> 0 | DD80: =DD70/DD73 -> 0 | DE80: =DE70/DE73 -> 0 | DF80: =DF70/DF73 -> 0 | DG80: =DG70/DG73 -> 0 | DH80: =DH70/DH73 -> 0 | DI80: =DI70/DI73 -> 0 | DJ80: =DJ70/DJ73 -> 0 | DK80: =DK70/DK73 -> 0 | DL80: =DL70/DL73 -> 0 | DM80: =DM70/DM73 -> 0 | DN80: =DN70/DN73 -> 0 | DO80: =DO70/DO73 -> 0 | DP80: =DP70/DP73 -> 0 | DQ80: =DQ70/DQ73 -> 0 | DR80: =DR70/DR73 -> 0 | DS80: =DS70/DS73 -> 0 | DT80: =DT70/DT73 -> 0 | DU80: =DU70/DU73 -> 0 | DV80: =DV70/DV73 -> 0 | DW80: =DW70/DW73 -> 0 | DX80: =DX70/DX73 -> 0 | DY80: =DY70/DY73 -> 0 | DZ80: =DZ70/DZ73 -> 0 | EA80: =EA70/EA73 -> 0 | EB80: =EB70/EB73 -> 0 | EC80: =EC70/EC73 -> 0 | ED80: =ED70/ED73 -> 0 | EE80: =EE70/EE73 -> 0 | EF80: =EF70/EF73 -> 0 | EG80: =EG70/EG73 -> 0 | EH80: =EH70/EH73 -> 0 | EI80: =EI70/EI73 -> 0 | EJ80: =EJ70/EJ73 -> 0 | EK80: =EK70/EK73 -> 0 | EL80: =EL70/EL73 -> 0 | EM80: =EM70/EM73 -> 0 | EN80: =EN70/EN73 -> 0 | EO80: =EO70/EO73 -> 0 | EP80: =EP70/EP73 -> 0 | EQ80: =EQ70/EQ73 -> 0 | ER80: =ER70/ER73 -> 0 | ES80: =ES70/ES73 -> 0 | ET80: =ET70/ET73 -> 0 | EU80: =EU70/EU73 -> 0 | EV80: =EV70/EV73 -> 0 | EW80: =EW70/EW73 -> 0 | EX80: =EX70/EX73 -> 0 | EY80: =EY70/EY73 -> 0 | EZ80: =EZ70/EZ73 -> 0 | FA80: =FA70/FA73 -> 0 | FB80: =FB70/FB73 -> 0
B81: 4.16 | C81: Risk Adjustment Transfer Amount | D81: =D71/D73 -> -85.55 | E81: =E71/E73 -> 0 | F81: =F71/F73 -> 0 | G81: =G71/G73 -> 0 | H81: =H71/H73 -> 0 | I81: =I71/I73 -> 0 | J81: =J71/J73 -> 0 | K81: =K71/K73 -> 0 | L81: =L71/L73 -> 0 | M81: =M71/M73 -> 0 | N81: =N71/N73 -> 0 | O81: =O71/O73 -> 0 | P81: =P71/P73 -> 0 | Q81: =Q71/Q73 -> 0 | R81: =R71/R73 -> 0 | S81: =S71/S73 -> 0 | T81: =T71/T73 -> 0 | U81: =U71/U73 -> 0 | V81: =V71/V73 -> 0 | W81: =W71/W73 -> 0 | X81: =X71/X73 -> 0 | Y81: =Y71/Y73 -> 0 | Z81: =Z71/Z73 -> 0 | AA81: =AA71/AA73 -> 0 | AB81: =AB71/AB73 -> 0 | AC81: =AC71/AC73 -> 0 | AD81: =AD71/AD73 -> 0 | AE81: =AE71/AE73 -> 0 | AF81: =AF71/AF73 -> 0 | AG81: =AG71/AG73 -> 0 | AH81: =AH71/AH73 -> 0 | AI81: =AI71/AI73 -> 0 | AJ81: =AJ71/AJ73 -> 0 | AK81: =AK71/AK73 -> 0 | AL81: =AL71/AL73 -> 0 | AM81: =AM71/AM73 -> 0 | AN81: =AN71/AN73 -> 0 | AO81: =AO71/AO73 -> 0 | AP81: =AP71/AP73 -> 0 | AQ81: =AQ71/AQ73 -> 0 | AR81: =AR71/AR73 -> 0 | AS81: =AS71/AS73 -> 0 | AT81: =AT71/AT73 -> 0 | AU81: =AU71/AU73 -> 0 | AV81: =AV71/AV73 -> 0 | AW81: =AW71/AW73 -> 0 | AX81: =AX71/AX73 -> 0 | AY81: =AY71/AY73 -> 0 | AZ81: =AZ71/AZ73 -> 0 | BA81: =BA71/BA73 -> 0 | BB81: =BB71/BB73 -> 0 | BC81: =BC71/BC73 -> 0 | BD81: =BD71/BD73 -> 0 | BE81: =BE71/BE73 -> 0 | BF81: =BF71/BF73 -> 0 | BG81: =BG71/BG73 -> 0 | BH81: =BH71/BH73 -> 0 | BI81: =BI71/BI73 -> 0 | BJ81: =BJ71/BJ73 -> 0 | BK81: =BK71/BK73 -> 0 | BL81: =BL71/BL73 -> 0 | BM81: =BM71/BM73 -> 0 | BN81: =BN71/BN73 -> 0 | BO81: =BO71/BO73 -> 0 | BP81: =BP71/BP73 -> 0 | BQ81: =BQ71/BQ73 -> 0 | BR81: =BR71/BR73 -> 0 | BS81: =BS71/BS73 -> 0 | BT81: =BT71/BT73 -> 0 | BU81: =BU71/BU73 -> 0 | BV81: =BV71/BV73 -> 0 | BW81: =BW71/BW73 -> 0 | BX81: =BX71/BX73 -> 0 | BY81: =BY71/BY73 -> 0 | BZ81: =BZ71/BZ73 -> 0 | CA81: =CA71/CA73 -> 0 | CB81: =CB71/CB73 -> 0 | CC81: =CC71/CC73 -> 0 | CD81: =CD71/CD73 -> 0 | CE81: =CE71/CE73 -> 0 | CF81: =CF71/CF73 -> 0 | CG81: =CG71/CG73 -> 0 | CH81: =CH71/CH73 -> 0 | CI81: =CI71/CI73 -> 0 | CJ81: =CJ71/CJ73 -> 0 | CK81: =CK71/CK73 -> 0 | CL81: =CL71/CL73 -> 0 | CM81: =CM71/CM73 -> 0 | CN81: =CN71/CN73 -> 0 | CO81: =CO71/CO73 -> 0 | CP81: =CP71/CP73 -> 0 | CQ81: =CQ71/CQ73 -> 0 | CR81: =CR71/CR73 -> 0 | CS81: =CS71/CS73 -> 0 | CT81: =CT71/CT73 -> 0 | CU81: =CU71/CU73 -> 0 | CV81: =CV71/CV73 -> 0 | CW81: =CW71/CW73 -> 0 | CX81: =CX71/CX73 -> 0 | CY81: =CY71/CY73 -> 0 | CZ81: =CZ71/CZ73 -> 0 | DA81: =DA71/DA73 -> 0 | DB81: =DB71/DB73 -> 0 | DC81: =DC71/DC73 -> 0 | DD81: =DD71/DD73 -> 0 | DE81: =DE71/DE73 -> 0 | DF81: =DF71/DF73 -> 0 | DG81: =DG71/DG73 -> 0 | DH81: =DH71/DH73 -> 0 | DI81: =DI71/DI73 -> 0 | DJ81: =DJ71/DJ73 -> 0 | DK81: =DK71/DK73 -> 0 | DL81: =DL71/DL73 -> 0 | DM81: =DM71/DM73 -> 0 | DN81: =DN71/DN73 -> 0 | DO81: =DO71/DO73 -> 0 | DP81: =DP71/DP73 -> 0 | DQ81: =DQ71/DQ73 -> 0 | DR81: =DR71/DR73 -> 0 | DS81: =DS71/DS73 -> 0 | DT81: =DT71/DT73 -> 0 | DU81: =DU71/DU73 -> 0 | DV81: =DV71/DV73 -> 0 | DW81: =DW71/DW73 -> 0 | DX81: =DX71/DX73 -> 0 | DY81: =DY71/DY73 -> 0 | DZ81: =DZ71/DZ73 -> 0 | EA81: =EA71/EA73 -> 0 | EB81: =EB71/EB73 -> 0 | EC81: =EC71/EC73 -> 0 | ED81: =ED71/ED73 -> 0 | EE81: =EE71/EE73 -> 0 | EF81: =EF71/EF73 -> 0 | EG81: =EG71/EG73 -> 0 | EH81: =EH71/EH73 -> 0 | EI81: =EI71/EI73 -> 0 | EJ81: =EJ71/EJ73 -> 0 | EK81: =EK71/EK73 -> 0 | EL81: =EL71/EL73 -> 0 | EM81: =EM71/EM73 -> 0 | EN81: =EN71/EN73 -> 0 | EO81: =EO71/EO73 -> 0 | EP81: =EP71/EP73 -> 0 | EQ81: =EQ71/EQ73 -> 0 | ER81: =ER71/ER73 -> 0 | ES81: =ES71/ES73 -> 0 | ET81: =ET71/ET73 -> 0 | EU81: =EU71/EU73 -> 0 | EV81: =EV71/EV73 -> 0 | EW81: =EW71/EW73 -> 0 | EX81: =EX71/EX73 -> 0 | EY81: =EY71/EY73 -> 0 | EZ81: =EZ71/EZ73 -> 0 | FA81: =FA71/FA73 -> 0 | FB81: =FB71/FB73 -> 0
B82: 4.17 | C82: Premium | D82: =D72/D73 -> 891.1084 | E82: =E72/E73 -> 0 | F82: =F72/F73 -> 0 | G82: =G72/G73 -> 0 | H82: =H72/H73 -> 0 | I82: =I72/I73 -> 0 | J82: =J72/J73 -> 0 | K82: =K72/K73 -> 0 | L82: =L72/L73 -> 0 | M82: =M72/M73 -> 0 | N82: =N72/N73 -> 0 | O82: =O72/O73 -> 0 | P82: =P72/P73 -> 0 | Q82: =Q72/Q73 -> 0 | R82: =R72/R73 -> 0 | S82: =S72/S73 -> 0 | T82: =T72/T73 -> 0 | U82: =U72/U73 -> 0 | V82: =V72/V73 -> 0 | W82: =W72/W73 -> 0 | X82: =X72/X73 -> 0 | Y82: =Y72/Y73 -> 0 | Z82: =Z72/Z73 -> 0 | AA82: =AA72/AA73 -> 0 | AB82: =AB72/AB73 -> 0 | AC82: =AC72/AC73 -> 0 | AD82: =AD72/AD73 -> 0 | AE82: =AE72/AE73 -> 0 | AF82: =AF72/AF73 -> 0 | AG82: =AG72/AG73 -> 0 | AH82: =AH72/AH73 -> 0 | AI82: =AI72/AI73 -> 0 | AJ82: =AJ72/AJ73 -> 0 | AK82: =AK72/AK73 -> 0 | AL82: =AL72/AL73 -> 0 | AM82: =AM72/AM73 -> 0 | AN82: =AN72/AN73 -> 0 | AO82: =AO72/AO73 -> 0 | AP82: =AP72/AP73 -> 0 | AQ82: =AQ72/AQ73 -> 0 | AR82: =AR72/AR73 -> 0 | AS82: =AS72/AS73 -> 0 | AT82: =AT72/AT73 -> 0 | AU82: =AU72/AU73 -> 0 | AV82: =AV72/AV73 -> 0 | AW82: =AW72/AW73 -> 0 | AX82: =AX72/AX73 -> 0 | AY82: =AY72/AY73 -> 0 | AZ82: =AZ72/AZ73 -> 0 | BA82: =BA72/BA73 -> 0 | BB82: =BB72/BB73 -> 0 | BC82: =BC72/BC73 -> 0 | BD82: =BD72/BD73 -> 0 | BE82: =BE72/BE73 -> 0 | BF82: =BF72/BF73 -> 0 | BG82: =BG72/BG73 -> 0 | BH82: =BH72/BH73 -> 0 | BI82: =BI72/BI73 -> 0 | BJ82: =BJ72/BJ73 -> 0 | BK82: =BK72/BK73 -> 0 | BL82: =BL72/BL73 -> 0 | BM82: =BM72/BM73 -> 0 | BN82: =BN72/BN73 -> 0 | BO82: =BO72/BO73 -> 0 | BP82: =BP72/BP73 -> 0 | BQ82: =BQ72/BQ73 -> 0 | BR82: =BR72/BR73 -> 0 | BS82: =BS72/BS73 -> 0 | BT82: =BT72/BT73 -> 0 | BU82: =BU72/BU73 -> 0 | BV82: =BV72/BV73 -> 0 | BW82: =BW72/BW73 -> 0 | BX82: =BX72/BX73 -> 0 | BY82: =BY72/BY73 -> 0 | BZ82: =BZ72/BZ73 -> 0 | CA82: =CA72/CA73 -> 0 | CB82: =CB72/CB73 -> 0 | CC82: =CC72/CC73 -> 0 | CD82: =CD72/CD73 -> 0 | CE82: =CE72/CE73 -> 0 | CF82: =CF72/CF73 -> 0 | CG82: =CG72/CG73 -> 0 | CH82: =CH72/CH73 -> 0 | CI82: =CI72/CI73 -> 0 | CJ82: =CJ72/CJ73 -> 0 | CK82: =CK72/CK73 -> 0 | CL82: =CL72/CL73 -> 0 | CM82: =CM72/CM73 -> 0 | CN82: =CN72/CN73 -> 0 | CO82: =CO72/CO73 -> 0 | CP82: =CP72/CP73 -> 0 | CQ82: =CQ72/CQ73 -> 0 | CR82: =CR72/CR73 -> 0 | CS82: =CS72/CS73 -> 0 | CT82: =CT72/CT73 -> 0 | CU82: =CU72/CU73 -> 0 | CV82: =CV72/CV73 -> 0 | CW82: =CW72/CW73 -> 0 | CX82: =CX72/CX73 -> 0 | CY82: =CY72/CY73 -> 0 | CZ82: =CZ72/CZ73 -> 0 | DA82: =DA72/DA73 -> 0 | DB82: =DB72/DB73 -> 0 | DC82: =DC72/DC73 -> 0 | DD82: =DD72/DD73 -> 0 | DE82: =DE72/DE73 -> 0 | DF82: =DF72/DF73 -> 0 | DG82: =DG72/DG73 -> 0 | DH82: =DH72/DH73 -> 0 | DI82: =DI72/DI73 -> 0 | DJ82: =DJ72/DJ73 -> 0 | DK82: =DK72/DK73 -> 0 | DL82: =DL72/DL73 -> 0 | DM82: =DM72/DM73 -> 0 | DN82: =DN72/DN73 -> 0 | DO82: =DO72/DO73 -> 0 | DP82: =DP72/DP73 -> 0 | DQ82: =DQ72/DQ73 -> 0 | DR82: =DR72/DR73 -> 0 | DS82: =DS72/DS73 -> 0 | DT82: =DT72/DT73 -> 0 | DU82: =DU72/DU73 -> 0 | DV82: =DV72/DV73 -> 0 | DW82: =DW72/DW73 -> 0 | DX82: =DX72/DX73 -> 0 | DY82: =DY72/DY73 -> 0 | DZ82: =DZ72/DZ73 -> 0 | EA82: =EA72/EA73 -> 0 | EB82: =EB72/EB73 -> 0 | EC82: =EC72/EC73 -> 0 | ED82: =ED72/ED73 -> 0 | EE82: =EE72/EE73 -> 0 | EF82: =EF72/EF73 -> 0 | EG82: =EG72/EG73 -> 0 | EH82: =EH72/EH73 -> 0 | EI82: =EI72/EI73 -> 0 | EJ82: =EJ72/EJ73 -> 0 | EK82: =EK72/EK73 -> 0 | EL82: =EL72/EL73 -> 0 | EM82: =EM72/EM73 -> 0 | EN82: =EN72/EN73 -> 0 | EO82: =EO72/EO73 -> 0 | EP82: =EP72/EP73 -> 0 | EQ82: =EQ72/EQ73 -> 0 | ER82: =ER72/ER73 -> 0 | ES82: =ES72/ES73 -> 0 | ET82: =ET72/ET73 -> 0 | EU82: =EU72/EU73 -> 0 | EV82: =EV72/EV73 -> 0 | EW82: =EW72/EW73 -> 0 | EX82: =EX72/EX73 -> 0 | EY82: =EY72/EY73 -> 0 | EZ82: =EZ72/EZ73 -> 0 | FA82: =FA72/FA73 -> 0 | FB82: =FB72/FB73 -> 0

Sheet Wksh 3 - Rating Areas
A1: Rating Area Data Collection [assistive technology users, please reference cell A2 for instructions] | C1: Specify the total number of Rating Areas in your State by selecting the Create Rating Areas button or Ctrl + Shift + R.
A2: Press TAB and directional arrow keys to read through the document. If macros are disabled, press and hold the ALT key and press the F, then I, and then N key. After that, select the Enable All Content option by pressing enter. (note that you can also press the C key to select "Enable All Content") Instructions can be found in cells C1 through C4. If screen reader fails to announce a cell after performing a dropdown selection, please press F2 and then ESC to force the screen reader to resume. | C2: Select only the Rating Areas you are offering plans within and add a factor for each area.
C3: To validate, select the Validate button or Ctrl + Shift + I.
C4: To finalize, select the Finalize button or Ctrl + Shift + F.
A5: Rating Area | B5: Rating Factor
A6: Rating Area 1 | B6: 0.76
A7: Rating Area 2 | B7: 0.7215
A8: Rating Area 3 | B8: 0.678
A9: Rating Area 4 | B9: 0.7287
A10: Rating Area 5 | B10: 0.707
A11: Rating Area 6 | B11: 0.778
A12: Rating Area 7 | B12: 0.8156
A13: Rating Area 8 | B13: 0.808

Sheet PlanTemplate (hidden)
A1: REBUILD | C1: Product-Plan Data Collection
C3: Company Legal Name: | D3: =IF('Wksh 1 - Market Experience'!C3<>"", 'Wksh 1 - Market Experience'!C3,"") ->  | N3: State: | O3: =IF('Wksh 1 - Market Experience'!E4="","",'Wksh 1 - Market Experience'!E4) -> 
C4: HIOS Issuer ID: | D4: =IF('Wksh 1 - Market Experience'!C4<>"", 'Wksh 1 - Market Experience'!C4,"") ->  | N4: Market: | O4: =IF('Wksh 1 - Market Experience'!E5="","",'Wksh 1 - Market Experience'!E5) -> 
C5: Effective Date of Rate Change(s): | D5: =IF('Wksh 1 - Market Experience'!#REF!<>"", 'Wksh 1 - Market Experience'!#REF!,"") -> 
C7: Product/Plan Level Calculations
B9: Field # | C9: Section I: General Product and Plan Information
B10: 1.1 | C10: Product Name | K10: Rating Area 1 | L10: AL | M10: New | N10: Platinum | O10: Yes
B11: 1.2 | C11: Product ID | K11: Rating Area 2 | L11: AK | M11: Renewing | N11: Gold | O11: No
B12: 1.3 | C12: Plan Name | K12: Rating Area 3 | L12: AZ | M12: Terminated | N12: Silver
B13: 1.4 | C13: Plan ID (Standard Component ID) | K13: Rating Area 4 | L13: AR | N13: Bronze
B14: 1.5 | C14: Metal | K14: Rating Area 5 | L14: CA | N14: Catastrophic
B15: 1.6 | C15: AV Metal Value | K15: Rating Area 6 | L15: CO | N15: Not Applicable
B16: 1.7 | C16: Plan Category | K16: Rating Area 7 | L16: CT
B17: 1.8 | C17: Plan Type | K17: Rating Area 8 | L17: DC
B18: 1.9 | C18: Exchange Plan? | L18: DE
B19: 1.10 | C19: Effective Date of Proposed Rates | L19: FL
B20: 1.11 | C20: Cumulative Rate Change % (over 12 mos prior) | L20: GA
B21: 1.12 | C21: Product Rate Increase % | L21: HI
B22: 1.13 | C22: Submission Level Rate Increase % | L22: ID
L23: IL
C24: Section II: Experience Period and Current Plan Level Information | L24: IN
B25: 2.1 | C25: Plan ID (Standard Component ID) | D25: Total | E25: =IF(E13<>"",E13,"") ->  | L25: IA
B26: 2.2 | C26: Allowed Claims | D26: =SUM(E26:XFD26) -> 0 | L26: KS
B27: 2.3 | C27: Reinsurance | D27: =SUM(E27:XFD27) -> 0 | L27: KY
B28: 2.4 | C28: Member Cost Sharing | D28: =SUM(E28:XFD28) -> 0 | L28: LA
B29: 2.5 | C29: Cost Sharing Reduction | D29: =SUM(E29:XFD29) -> 0 | L29: ME
B30: 2.6 | C30: Incurred Claims | D30: =D26-D27-D28-D29 -> 0 | E30: =E26-E27-E28-E29 -> 0 | L30: MD
B31: 2.7 | C31: Risk Adjustment Transfer Amount | D31: =SUM(E31:XFD31) -> 0 | L31: MA
B32: 2.8 | C32: Premium | D32: =SUM(E32:XFD32) -> 0 | L32: MI
B33: 2.9 | C33: Experience Period Member Months | D33: =SUM(E33:XFD33) -> 0 | L33: MN
B34: 2.10 | C34: Current Enrollment | D34: =SUM(E34:XFD34) -> 0 | L34: MS
B35: 2.11 | C35: Current Premium PMPM | D35: =SUMPRODUCT(E35:XFD35,E34:XFD34)/D34 ->  | L35: MO
B36: 2.12 | C36: Loss Ratio | D36: =D30/(D31+D32) ->  | E36: =E30/(E31+E32) ->  | L36: MT
C37: Per Member Per Month | L37: NE
B38: 2.13 | C38: Allowed Claims | D38: =D26/D33 ->  | E38: =E26/E33 ->  | L38: NV
B39: 2.14 | C39: Reinsurance | D39: =D27/D33 ->  | E39: =E27/E33 ->  | L39: NH
B40: 2.15 | C40: Member Cost Sharing | D40: =D28/D33 ->  | E40: =E28/E33 ->  | L40: NJ
B41: 2.16 | C41: Cost Sharing Reduction | D41: =D29/D33 ->  | E41: =E29/E33 ->  | L41: NM
B42: 2.17 | C42: Incurred Claims | D42: =D30/D33 ->  | E42: =E30/E33 ->  | L42: NY
B43: 2.18 | C43: Risk Adjustment Transfer Amount | D43: =D31/D33 ->  | E43: =E31/E33 ->  | L43: NC
B44: 2.19 | C44: Premium | D44: =D32/D33 ->  | E44: =E32/E33 ->  | L44: ND
L45: OH
C46: Section III: Plan Adjustment Factors | L46: OK
B47: 3.1 | C47: Plan ID (Standard Component ID) | E47: =IF(E13<>"",E13,"") ->  | L47: OR
B48: 3.2 | C48: Market Adjusted Index Rate | E48: ='Wksh 1 - Market Experience'!F46 -> 0 | L48: PA
B49: 3.3 | C49: AV and Cost Sharing Design of Plan | L49: RI
B50: 3.4 | C50: Provider Network Adjustment | L50: SC
B51: 3.5 | C51: Benefits in Addition to EHB | L51: SD
C52: Administrative Costs | L52: TN
B53: 3.6 | C53: Administrative Expense | L53: TX
B54: 3.7 | C54: Taxes and Fees | L54: UT
B55: 3.8 | C55: Profit & Risk Load | L55: VT
B56: 3.9 | C56: Catastrophic Adjustment | L56: VA
B57: 3.10 | C57: Plan Adjusted Index Rate | E57: =($E$48*PRODUCT(E49:E51)*E56)/(1-SUM(E53:E55)) -> 0 | L57: WA
L58: WV
B59: 3.11 | C59: Age Calibration Factor | E59: =IF(D59<>"", D59, "") ->  | L59: WI
B60: 3.12 | C60: Geographic Calibration Factor | E60: =IF(D60<>"", D60, "") ->  | L60: WY
B61: 3.13 | C61: Tobacco Calibration Factor | E61: =IF(D61<>"", D61, "") -> 
B62: 3.14 | C62: Calibrated Plan Adjusted Index Rate | E62: =E57*(PRODUCT($E$59:$E$61)) -> 0
C64: Section IV: Projected Plan Level Information
B65: 4.1 | C65: Plan ID (Standard Component ID) | D65: Total | E65: =IF(E13<>"",E13,"") -> 
B66: 4.2 | C66: Allowed Claims | D66: =SUM(E66:XFD66) -> 0
B67: 4.3 | C67: Reinsurance | D67: =SUM(E67:XFD67) -> 0
B68: 4.4 | C68: Member Cost Sharing | D68: =SUM(E68:XFD68) -> 0
B69: 4.5 | C69: Cost Sharing Reduction | D69: =SUM(E69:XFD69) -> 0
B70: 4.6 | C70: Incurred Claims | D70: =D66-D67-D68-D69 -> 0 | E70: =E66-E67-E68-E69 -> 0
B71: 4.7 | C71: Risk Adjustment Transfer Amount | D71: =SUM(E71:XFD71) -> 0
B72: 4.8 | C72: Premium | D72: =SUM(E72:XFD72) -> 0
B73: 4.9 | C73: Projected Member Months | D73: =SUM(E73:XFD73) -> 0
B74: 4.10 | C74: Loss Ratio | D74: =D70/(D71+D72) ->  | E74: =E70/(E71+E72) -> 
C75: Per Member Per Month
B76: 4.11 | C76: Allowed Claims | D76: =D66/D73 ->  | E76: =E66/E73 -> 
B77: 4.12 | C77: Reinsurance | D77: =D67/D73 ->  | E77: =E67/E73 -> 
B78: 4.13 | C78: Member Cost Sharing | D78: =D68/D73 ->  | E78: =E68/E73 -> 
B79: 4.14 | C79: Cost Sharing Reduction | D79: =D69/D73 ->  | E79: =E69/E73 -> 
B80: 4.15 | C80: Incurred Claims | D80: =D70/D73 ->  | E80: =E70/E73 -> 
B81: 4.16 | C81: Risk Adjustment Transfer Amount | D81: =D71/D73 ->  | E81: =E71/E73 -> 
B82: 4.17 | C82: Premium | D82: =D72/D73 ->  | E82: =E72/E73 -> 
